Workbook

Sheet Title Page
A1: U.S. EPA Office of Ground Water and Drinking Water
A2: Work Breakdown Structure (WBS) Model for Caustic Feed Treatment
A3: Release Date: March 2023
A4: · The primary purpose of this model is to assist EPA in estimating national compliance costs.
A5: · As such, the costs are intended to be representative of the central tendency of typical facilities.
A6: · The default settings, however, do not account for all of the site-specific factors that could affect the cost of any given individual facility or project.
A7: · Still, other uses of the model might be reasonable if sufficient care is taken by the user to account for site- or project-specific factors.
A8: · The model results are point estimates shown to the nearest $1, but this precision is not meant to imply that the results are accurate to $1.
A9: · Instead, users should review all documentation, modify inputs/assumptions as appropriate to their specific purpose, and form their own informed opinions about the accuracy and suitability of the results.
A10: · Use of this model requires Excel 2007 or later.
A11: · The model should be opened as Read-only, so that any changes you make are saved under a new file name.
A12: · To function properly, macros ("active content") must be enabled. If a security warning appears, click "options" and "enable this content."
A13: · For further information see the following document distributed with this file:
A14: USEPA. 2023. Work Breakdown Structure-Based Cost Model for Caustic Drinking Water Treatment. Office of Water.
A15: · To begin using the model, go to the INPUT sheet.

Sheet Index
A1: INDEX
A2: This page provides an index to all user-adjustable inputs and assumptions. Click on a variable name to go directly to the adjustable cells.
A4: User-adjustable Input or Assumption | B4: Variable Name and Link
A5: Access space for containerized storage | B5: space_containers
A6: Additional freeboard | B6: sec_cont_freeboard
A7: Air conditioner | B7: cooling
A8: Amount of sodium hydroxide | B8: naoh_yr
A9: Annual Administrative LOE | B9: Clerical_LOE
A10: Annual Manager LOE | B10: Manager_LOE
A11: Annual Operator LOE | B11: Operator_LOE
A12: Average Flow | B12: average_flow_I
A13: Builder's risk insurance percentage | B13: br_ins_pct
A14: Calculation method | B14: calc_type
A15: Chemical pipe length multiplier | B15: chem_pipe_mult
A16: Chemical resistant coating coverage | B16: sec_cont_coating_cvg
A17: Chemical storage configuration | B17: storage_type
A18: Chemical tank mixer horsepower | B18: cmix_hp_per
A19: City Index for Total Capital Cost | B19: City_Index
A20: City Index for Total O&M Cost | B20: OM_City_Index
A21: Clearance space beneath the ceiling | B21: ceiling_clearance
A22: Component level | B22: component_level_I
A23: Concrete pad thickness | B23: pad_thick
A24: Concrete pad thickness for small systems | B24: pad_thick_small
A25: Cooling table for buildings 500 square feet or greater | B25: cooling_table
A26: Cooling table for buildings less than 500 ft2 | B26: cooling_table_shed
A27: Cost estimating method | B27: curve
A28: Day tank transfer pumping approach | B28: xfer_pump_approach
A29: Days of chemical storage | B29: cstore_days
A30: Design Flow | B30: design_flow_I
A31: Desired treated water pH | B31: pH_f
A32: Distance between chemical supply and feed point | B32: add_chem_pipe_length
A33: Distance between chemical supply and feed point for small systems | B33: add_chem_pipe_length_small
A34: Drive controllers per chemical pump | B34: S_cm_pump
A35: Drive controllers per mixer | B35: S_mix
A36: Drum diameter | B36: drum_diam
A37: Drum volume | B37: drum_volume
A38: Electric resistance | B38: heating
A39: Electrical percentage | B39: elect_pct
A40: Engineering percentage for large systems | B40: eng_pct_large
A41: Engineering percentage for medium systems | B41: eng_pct_medium
A42: Engineering percentage for small systems | B42: eng_pct_small
A43: Financing percentage | B43: finance_pct
A44: Financing percentage for small systems | B44: finance_pct_small
A45: Fire buffer for buildings | B45: fire_buffer
A46: General Operator Labor | B46: General_Oper_Labor
A47: Heat pump | B47: heating_hp
A48: Heat pump | B48: cooling_hp
A49: Heating table for buildings 500 square feet or greater | B49: heating_table
A50: Heating table for buildings less than 500 ft2 | B50: heating_table_shed
A51: High/Low alarms per NaOH tank | B51: alarm_chem
A52: I/O port table | B52: port_table
A53: Include architectural fee for small systems? | B53: include_arch_small
A54: Include architectural fee? | B54: include_arch
A55: Include buildings? | B55: include_buildings_I
A56: Include concrete pad in total capital cost? | B56: include_pad
A57: Include construction management cost? | B57: include_cm
A58: Include contingency costs for high cost systems? | B58: include_conting_high
A59: Include contingency costs for low cost systems? | B59: include_conting_low
A60: Include contingency costs for medium cost systems? | B60: include_conting_medium
A61: Include heat tracing and insulation? | B61: include_insul
A62: Include HVAC? | B62: include_HVAC_I
A63: Include inline static mixer? | B63: include_mixer
A64: Include land? | B64: include_land_I
A65: Include mixers for chemical tanks | B65: include_cmix
A66: Include performance bond cost? | B66: include_bond
A67: Include permit costs? | B67: include_permits
A68: Include secondary containment | B68: include_sec_cont
A69: Include sitework costs? | B69: include_sitework
A70: Influent water alkalinity | B70: alk_I
A71: Influent water pH | B71: pH_i
A72: Influent water temperature | B72: t_I
A73: Influent water total dissolved solids | B73: TDS_I
A74: Installation, Transportatation, and O&P percentage | B74: inst_pct
A75: Instrumentation and control percentage | B75: i_c_pct
A76: Legal percentage | B76: legal_pct
A77: Lighting | B77: lighting
A78: Lighting power per sf, building 1 | B78: lighting_energy_1
A79: Maximum access space per vessel or tank for large systems | B79: max_space_vessels_cust
A80: Maximum access space per vessel or tank for small systems | B80: max_space_vessels_pre
A81: Maximum curb thickness | B81: sec_cont_max_thick
A82: Mid-efficiency oil furnace | B82: heating_diesel
A83: Minimum average flow as percentage of design | B83: min_avg_flow
A84: Minimum building height | B84: min_building_height
A85: Minimum chemical feed pump size | B85: min_chem_flow
A86: Minimum chemical storage tank size | B86: min_chem_tank_size
A87: Minimum chemical tank mixer horsepower | B87: min_cmix_hp
A88: Miscellaneous allowance percentage | B88: misc_pct
A89: Mobilization percentage for large systems | B89: mob_pct_large
A90: Mobilization percentage for medium systems | B90: mob_pct_medium
A91: Mobilization percentage for small systems | B91: mob_pct_small
A92: Natural gas condensing furnace | B92: heating_gas
A93: Natural gas non-condensing furnace | B93: heating_gas_non
A94: Non-fire buffer for buildings | B94: non_fire_buffer
A95: Number of check valves on caustic line per pump | B95: caustic_chv_pump
A96: Number of chemical supplies | B96: tot_chem
A97: Number of process instruments | B97: tot_inst
A98: Number of process pumps for operation | B98: tot_pumps
A99: Number of process valves | B99: tot_valves
A100: Number of redundant inline mixers | B100: num_in_mix
A101: pH meters | B101: pH_control
A102: Redundant pumps for caustic metering | B102: NRD_pump_chem_caustic
A103: Redundant transfer pumps | B103: NRD_xfer_pumps
A104: Safety factor for pumps | B104: pump_safety_factor
A105: Sales tax percentage | B105: tax_pct
A106: Sodium hydroxide dose | B106: dose_I
A107: Sodium hydroxide unit price (optional) | B107: NaOH_price_override
A108: Sodium hydroxide weight percent | B108: NaOH_pct
A109: Standard efficiency oil furnace | B109: heating_diesel_non
A110: System automation | B110: manual_I
A111: Technology complexity factor | B111: complexity
A112: Total annual building and HVAC maintenance | B112: bldg_maint_cost
A113: Total number of instruments for maintenance | B113: tot_inst_maint
A114: Total number of pumps for maintenance | B114: tot_pumps_maint
A115: Tote length | B115: tote_length
A116: Tote volume | B116: tote_volume
A117: Tote width | B117: tote_width
A118: Transfer pumping time | B118: xfer_pump_time
A119: Valve table | B119: valve_table
A120: Volume required as a percentage of the largest tank | B120: sec_cont_pct_of_largest
A121: Volume required as a percentage of total storage | B121: sec_cont_pct_of_total

Sheet Standard Inputs
A1: Standard Designs
A2: Default inputs represent typical options used to generate national average compliance costs.
A6: Design Index | C6: System Size | G6: Dosage | P6: Equipment | S6: Optional
A7: Scenario | B7: Design # | C7: Design flow | D7: Design Flow Units | E7: Average Flow | F7: Average flow units | G7: Calculation method | H7: Sodium hydroxide dose | I7: Influent water pH | J7: Desired treated water pH | K7: Influent alkalinity | L7: Influent TDS | M7: Influent Temperature | N7: Sodium hydroxide weight percent | O7: Unit price of sodium hydroxide (optional) | P7: Chemical storage configuration | Q7: Include heat tracing and insulation | R7: Include inline static mixer? | S7: Component level | T7: System Automation | U7: Include Buildings? | V7: Include HVAC? | W7: Include Land? | Y7: Match? | Z7: Flow match?
C8: design_flow_I | D8: df_units | E8: average_flow_I | F8: af_units | G8: calc_type | H8: dose_I | I8: pH_I | J8: pH_f | K8: alk_I | L8: TDS_I | M8: t_I | N8: NaOH_pct | O8: NaOH_price_override | P8: storage_type | Q8: include_insul | R8: include_mixer | S8: component_level_I | T8: manual_I | U8: include_buildings_I | V8: Include_HVAC_I | W8: Include_Land_I
A9: 1 | B9: 1 | C9: 0.03 | D9: MGD | E9: 0.007 | F9: MGD | G9: calculate based on pH | I9: 6.5 | J9: 7.5 | K9: 20 | L9: 200 | M9: 10 | N9: 0.25 | P9: 55 gallon drums | R9: yes | T9: fully automated | V9: no | Y9: =AND(C9:W9=inp_used,A9=inp_used_usersel) -> TRUE | Z9: =AND(C9:F9=inp_used_minimal,A9=inp_used_usersel) -> TRUE
A10: 1 | B10: 2 | C10: 0.124 | D10: MGD | E10: 0.035 | F10: MGD | G10: calculate based on pH | I10: 6.5 | J10: 7.5 | K10: 20 | L10: 200 | M10: 10 | N10: 0.25 | P10: 55 gallon drums | R10: yes | T10: fully automated | V10: no | Y10: =AND(C10:W10=inp_used,A10=inp_used_usersel) -> FALSE | Z10: =AND(C10:F10=inp_used_minimal,A10=inp_used_usersel) -> FALSE
A11: 1 | B11: 3 | C11: 0.305 | D11: MGD | E11: 0.094 | F11: MGD | G11: calculate based on pH | I11: 6.5 | J11: 7.5 | K11: 20 | L11: 200 | M11: 10 | N11: 0.25 | P11: 55 gallon drums | R11: yes | T11: fully automated | V11: no | Y11: =AND(C11:W11=inp_used,A11=inp_used_usersel) -> FALSE | Z11: =AND(C11:F11=inp_used_minimal,A11=inp_used_usersel) -> FALSE
A12: 1 | B12: 4 | C12: 0.74 | D12: MGD | E12: 0.251 | F12: MGD | G12: calculate based on pH | I12: 6.5 | J12: 7.5 | K12: 20 | L12: 200 | M12: 10 | N12: 0.25 | P12: 55 gallon drums | R12: yes | T12: fully automated | V12: no | Y12: =AND(C12:W12=inp_used,A12=inp_used_usersel) -> FALSE | Z12: =AND(C12:F12=inp_used_minimal,A12=inp_used_usersel) -> FALSE
A13: 1 | B13: 5 | C13: 2.152 | D13: MGD | E13: 0.819 | F13: MGD | G13: calculate based on pH | I13: 6.5 | J13: 7.5 | K13: 20 | L13: 200 | M13: 10 | N13: 0.5 | P13: storage tanks and day tanks | Q13: yes | R13: yes | T13: fully automated | V13: no | Y13: =AND(C13:W13=inp_used,A13=inp_used_usersel) -> FALSE | Z13: =AND(C13:F13=inp_used_minimal,A13=inp_used_usersel) -> FALSE
A14: 1 | B14: 6 | C14: 7.365 | D14: MGD | E14: 3.2 | F14: MGD | G14: calculate based on pH | I14: 6.5 | J14: 7.5 | K14: 20 | L14: 200 | M14: 10 | N14: 0.5 | P14: storage tanks and day tanks | Q14: yes | R14: yes | T14: fully automated | V14: no | Y14: =AND(C14:W14=inp_used,A14=inp_used_usersel) -> FALSE | Z14: =AND(C14:F14=inp_used_minimal,A14=inp_used_usersel) -> FALSE
A15: 1 | B15: 7 | C15: 22.614 | D15: MGD | E15: 11.066 | F15: MGD | G15: calculate based on pH | I15: 6.5 | J15: 7.5 | K15: 20 | L15: 200 | M15: 10 | N15: 0.5 | P15: storage tanks and day tanks | Q15: yes | R15: yes | T15: fully automated | V15: no | Y15: =AND(C15:W15=inp_used,A15=inp_used_usersel) -> FALSE | Z15: =AND(C15:F15=inp_used_minimal,A15=inp_used_usersel) -> FALSE
A16: 1 | B16: 8 | C16: 75.072 | D16: MGD | E16: 37.536 | F16: MGD | G16: calculate based on pH | I16: 6.5 | J16: 7.5 | K16: 20 | L16: 200 | M16: 10 | N16: 0.5 | P16: storage tanks and day tanks | Q16: yes | R16: yes | T16: fully automated | V16: no | Y16: =AND(C16:W16=inp_used,A16=inp_used_usersel) -> FALSE | Z16: =AND(C16:F16=inp_used_minimal,A16=inp_used_usersel) -> FALSE
A17: 2 | B17: 1 | C17: 0.03 | D17: MGD | E17: 0.007 | F17: MGD | G17: calculate based on pH | I17: 6.5 | J17: 7.5 | K17: 50 | L17: 200 | M17: 10 | N17: 0.25 | P17: 55 gallon drums | R17: yes | T17: fully automated | V17: no | Y17: =AND(C17:W17=inp_used,A17=inp_used_usersel) -> FALSE | Z17: =AND(C17:F17=inp_used_minimal,A17=inp_used_usersel) -> FALSE
A18: 2 | B18: 2 | C18: 0.124 | D18: MGD | E18: 0.035 | F18: MGD | G18: calculate based on pH | I18: 6.5 | J18: 7.5 | K18: 50 | L18: 200 | M18: 10 | N18: 0.25 | P18: 55 gallon drums | R18: yes | T18: fully automated | V18: no | Y18: =AND(C18:W18=inp_used,A18=inp_used_usersel) -> FALSE | Z18: =AND(C18:F18=inp_used_minimal,A18=inp_used_usersel) -> FALSE
A19: 2 | B19: 3 | C19: 0.305 | D19: MGD | E19: 0.094 | F19: MGD | G19: calculate based on pH | I19: 6.5 | J19: 7.5 | K19: 50 | L19: 200 | M19: 10 | N19: 0.25 | P19: 55 gallon drums | R19: yes | T19: fully automated | V19: no | Y19: =AND(C19:W19=inp_used,A19=inp_used_usersel) -> FALSE | Z19: =AND(C19:F19=inp_used_minimal,A19=inp_used_usersel) -> FALSE
A20: 2 | B20: 4 | C20: 0.74 | D20: MGD | E20: 0.251 | F20: MGD | G20: calculate based on pH | I20: 6.5 | J20: 7.5 | K20: 50 | L20: 200 | M20: 10 | N20: 0.25 | P20: 55 gallon drums | R20: yes | T20: fully automated | V20: no | Y20: =AND(C20:W20=inp_used,A20=inp_used_usersel) -> FALSE | Z20: =AND(C20:F20=inp_used_minimal,A20=inp_used_usersel) -> FALSE
A21: 2 | B21: 5 | C21: 2.152 | D21: MGD | E21: 0.819 | F21: MGD | G21: calculate based on pH | I21: 6.5 | J21: 7.5 | K21: 50 | L21: 200 | M21: 10 | N21: 0.5 | P21: storage tanks and day tanks | Q21: yes | R21: yes | T21: fully automated | V21: no | Y21: =AND(C21:W21=inp_used,A21=inp_used_usersel) -> FALSE | Z21: =AND(C21:F21=inp_used_minimal,A21=inp_used_usersel) -> FALSE
A22: 2 | B22: 6 | C22: 7.365 | D22: MGD | E22: 3.2 | F22: MGD | G22: calculate based on pH | I22: 6.5 | J22: 7.5 | K22: 50 | L22: 200 | M22: 10 | N22: 0.5 | P22: storage tanks and day tanks | Q22: yes | R22: yes | T22: fully automated | V22: no | Y22: =AND(C22:W22=inp_used,A22=inp_used_usersel) -> FALSE | Z22: =AND(C22:F22=inp_used_minimal,A22=inp_used_usersel) -> FALSE
A23: 2 | B23: 7 | C23: 22.614 | D23: MGD | E23: 11.066 | F23: MGD | G23: calculate based on pH | I23: 6.5 | J23: 7.5 | K23: 50 | L23: 200 | M23: 10 | N23: 0.5 | P23: storage tanks and day tanks | Q23: yes | R23: yes | T23: fully automated | V23: no | Y23: =AND(C23:W23=inp_used,A23=inp_used_usersel) -> FALSE | Z23: =AND(C23:F23=inp_used_minimal,A23=inp_used_usersel) -> FALSE
A24: 2 | B24: 8 | C24: 75.072 | D24: MGD | E24: 37.536 | F24: MGD | G24: calculate based on pH | I24: 6.5 | J24: 7.5 | K24: 50 | L24: 200 | M24: 10 | N24: 0.5 | P24: storage tanks and day tanks | Q24: yes | R24: yes | T24: fully automated | V24: no | Y24: =AND(C24:W24=inp_used,A24=inp_used_usersel) -> FALSE | Z24: =AND(C24:F24=inp_used_minimal,A24=inp_used_usersel) -> FALSE
A25: 3 | B25: 1 | C25: 0.03 | D25: MGD | E25: 0.007 | F25: MGD | G25: calculate based on pH | I25: 7 | J25: 7.5 | K25: 50 | L25: 200 | M25: 10 | N25: 0.25 | P25: 55 gallon drums | R25: yes | T25: fully automated | V25: no | Y25: =AND(C25:W25=inp_used,A25=inp_used_usersel) -> FALSE | Z25: =AND(C25:F25=inp_used_minimal,A25=inp_used_usersel) -> FALSE
A26: 3 | B26: 2 | C26: 0.124 | D26: MGD | E26: 0.035 | F26: MGD | G26: calculate based on pH | I26: 7 | J26: 7.5 | K26: 50 | L26: 200 | M26: 10 | N26: 0.25 | P26: 55 gallon drums | R26: yes | T26: fully automated | V26: no | Y26: =AND(C26:W26=inp_used,A26=inp_used_usersel) -> FALSE | Z26: =AND(C26:F26=inp_used_minimal,A26=inp_used_usersel) -> FALSE
A27: 3 | B27: 3 | C27: 0.305 | D27: MGD | E27: 0.094 | F27: MGD | G27: calculate based on pH | I27: 7 | J27: 7.5 | K27: 50 | L27: 200 | M27: 10 | N27: 0.25 | P27: 55 gallon drums | R27: yes | T27: fully automated | V27: no | Y27: =AND(C27:W27=inp_used,A27=inp_used_usersel) -> FALSE | Z27: =AND(C27:F27=inp_used_minimal,A27=inp_used_usersel) -> FALSE
A28: 3 | B28: 4 | C28: 0.74 | D28: MGD | E28: 0.251 | F28: MGD | G28: calculate based on pH | I28: 7 | J28: 7.5 | K28: 50 | L28: 200 | M28: 10 | N28: 0.25 | P28: 55 gallon drums | R28: yes | T28: fully automated | V28: no | Y28: =AND(C28:W28=inp_used,A28=inp_used_usersel) -> FALSE | Z28: =AND(C28:F28=inp_used_minimal,A28=inp_used_usersel) -> FALSE
A29: 3 | B29: 5 | C29: 2.152 | D29: MGD | E29: 0.819 | F29: MGD | G29: calculate based on pH | I29: 7 | J29: 7.5 | K29: 50 | L29: 200 | M29: 10 | N29: 0.5 | P29: storage tanks and day tanks | Q29: yes | R29: yes | T29: fully automated | V29: no | Y29: =AND(C29:W29=inp_used,A29=inp_used_usersel) -> FALSE | Z29: =AND(C29:F29=inp_used_minimal,A29=inp_used_usersel) -> FALSE
A30: 3 | B30: 6 | C30: 7.365 | D30: MGD | E30: 3.2 | F30: MGD | G30: calculate based on pH | I30: 7 | J30: 7.5 | K30: 50 | L30: 200 | M30: 10 | N30: 0.5 | P30: storage tanks and day tanks | Q30: yes | R30: yes | T30: fully automated | V30: no | Y30: =AND(C30:W30=inp_used,A30=inp_used_usersel) -> FALSE | Z30: =AND(C30:F30=inp_used_minimal,A30=inp_used_usersel) -> FALSE
A31: 3 | B31: 7 | C31: 22.614 | D31: MGD | E31: 11.066 | F31: MGD | G31: calculate based on pH | I31: 7 | J31: 7.5 | K31: 50 | L31: 200 | M31: 10 | N31: 0.5 | P31: storage tanks and day tanks | Q31: yes | R31: yes | T31: fully automated | V31: no | Y31: =AND(C31:W31=inp_used,A31=inp_used_usersel) -> FALSE | Z31: =AND(C31:F31=inp_used_minimal,A31=inp_used_usersel) -> FALSE
A32: 3 | B32: 8 | C32: 75.072 | D32: MGD | E32: 37.536 | F32: MGD | G32: calculate based on pH | I32: 7 | J32: 7.5 | K32: 50 | L32: 200 | M32: 10 | N32: 0.5 | P32: storage tanks and day tanks | Q32: yes | R32: yes | T32: fully automated | V32: no | Y32: =AND(C32:W32=inp_used,A32=inp_used_usersel) -> FALSE | Z32: =AND(C32:F32=inp_used_minimal,A32=inp_used_usersel) -> FALSE
A33: 4 | B33: 1 | C33: 0.03 | D33: MGD | E33: 0.007 | F33: MGD | G33: calculate based on pH | I33: 7 | J33: 7.5 | K33: 100 | L33: 200 | M33: 10 | N33: 0.25 | P33: 55 gallon drums | R33: yes | T33: fully automated | V33: no | Y33: =AND(C33:W33=inp_used,A33=inp_used_usersel) -> FALSE | Z33: =AND(C33:F33=inp_used_minimal,A33=inp_used_usersel) -> FALSE
A34: 4 | B34: 2 | C34: 0.124 | D34: MGD | E34: 0.035 | F34: MGD | G34: calculate based on pH | I34: 7 | J34: 7.5 | K34: 100 | L34: 200 | M34: 10 | N34: 0.25 | P34: 55 gallon drums | R34: yes | T34: fully automated | V34: no | Y34: =AND(C34:W34=inp_used,A34=inp_used_usersel) -> FALSE | Z34: =AND(C34:F34=inp_used_minimal,A34=inp_used_usersel) -> FALSE
A35: 4 | B35: 3 | C35: 0.305 | D35: MGD | E35: 0.094 | F35: MGD | G35: calculate based on pH | I35: 7 | J35: 7.5 | K35: 100 | L35: 200 | M35: 10 | N35: 0.25 | P35: 55 gallon drums | R35: yes | T35: fully automated | V35: no | Y35: =AND(C35:W35=inp_used,A35=inp_used_usersel) -> FALSE | Z35: =AND(C35:F35=inp_used_minimal,A35=inp_used_usersel) -> FALSE
A36: 4 | B36: 4 | C36: 0.74 | D36: MGD | E36: 0.251 | F36: MGD | G36: calculate based on pH | I36: 7 | J36: 7.5 | K36: 100 | L36: 200 | M36: 10 | N36: 0.25 | P36: 55 gallon drums | R36: yes | T36: fully automated | V36: no | Y36: =AND(C36:W36=inp_used,A36=inp_used_usersel) -> FALSE | Z36: =AND(C36:F36=inp_used_minimal,A36=inp_used_usersel) -> FALSE
A37: 4 | B37: 5 | C37: 2.152 | D37: MGD | E37: 0.819 | F37: MGD | G37: calculate based on pH | I37: 7 | J37: 7.5 | K37: 100 | L37: 200 | M37: 10 | N37: 0.5 | P37: storage tanks and day tanks | Q37: yes | R37: yes | T37: fully automated | V37: no | Y37: =AND(C37:W37=inp_used,A37=inp_used_usersel) -> FALSE | Z37: =AND(C37:F37=inp_used_minimal,A37=inp_used_usersel) -> FALSE
A38: 4 | B38: 6 | C38: 7.365 | D38: MGD | E38: 3.2 | F38: MGD | G38: calculate based on pH | I38: 7 | J38: 7.5 | K38: 100 | L38: 200 | M38: 10 | N38: 0.5 | P38: storage tanks and day tanks | Q38: yes | R38: yes | T38: fully automated | V38: no | Y38: =AND(C38:W38=inp_used,A38=inp_used_usersel) -> FALSE | Z38: =AND(C38:F38=inp_used_minimal,A38=inp_used_usersel) -> FALSE
A39: 4 | B39: 7 | C39: 22.614 | D39: MGD | E39: 11.066 | F39: MGD | G39: calculate based on pH | I39: 7 | J39: 7.5 | K39: 100 | L39: 200 | M39: 10 | N39: 0.5 | P39: storage tanks and day tanks | Q39: yes | R39: yes | T39: fully automated | V39: no | Y39: =AND(C39:W39=inp_used,A39=inp_used_usersel) -> FALSE | Z39: =AND(C39:F39=inp_used_minimal,A39=inp_used_usersel) -> FALSE
A40: 4 | B40: 8 | C40: 75.072 | D40: MGD | E40: 37.536 | F40: MGD | G40: calculate based on pH | I40: 7 | J40: 7.5 | K40: 100 | L40: 200 | M40: 10 | N40: 0.5 | P40: storage tanks and day tanks | Q40: yes | R40: yes | T40: fully automated | V40: no | Y40: =AND(C40:W40=inp_used,A40=inp_used_usersel) -> FALSE | Z40: =AND(C40:F40=inp_used_minimal,A40=inp_used_usersel) -> FALSE
A41: 5 | B41: 1 | C41: 0.03 | D41: MGD | E41: 0.007 | F41: MGD | Y41: =AND(C41:W41=inp_used,A41=inp_used_usersel) -> FALSE | Z41: =AND(C41:F41=inp_used_minimal,A41=inp_used_usersel) -> FALSE
A42: 5 | B42: 2 | C42: 0.124 | D42: MGD | E42: 0.035 | F42: MGD | Y42: =AND(C42:W42=inp_used,A42=inp_used_usersel) -> FALSE | Z42: =AND(C42:F42=inp_used_minimal,A42=inp_used_usersel) -> FALSE
A43: 5 | B43: 3 | C43: 0.305 | D43: MGD | E43: 0.094 | F43: MGD | Y43: =AND(C43:W43=inp_used,A43=inp_used_usersel) -> FALSE | Z43: =AND(C43:F43=inp_used_minimal,A43=inp_used_usersel) -> FALSE
A44: 5 | B44: 4 | C44: 0.74 | D44: MGD | E44: 0.251 | F44: MGD | Y44: =AND(C44:W44=inp_used,A44=inp_used_usersel) -> FALSE | Z44: =AND(C44:F44=inp_used_minimal,A44=inp_used_usersel) -> FALSE
A45: 5 | B45: 5 | C45: 2.152 | D45: MGD | E45: 0.819 | F45: MGD | Y45: =AND(C45:W45=inp_used,A45=inp_used_usersel) -> FALSE | Z45: =AND(C45:F45=inp_used_minimal,A45=inp_used_usersel) -> FALSE
A46: 5 | B46: 6 | C46: 7.365 | D46: MGD | E46: 3.2 | F46: MGD | Y46: =AND(C46:W46=inp_used,A46=inp_used_usersel) -> FALSE | Z46: =AND(C46:F46=inp_used_minimal,A46=inp_used_usersel) -> FALSE
A47: 5 | B47: 7 | C47: 22.614 | D47: MGD | E47: 11.066 | F47: MGD | Y47: =AND(C47:W47=inp_used,A47=inp_used_usersel) -> FALSE | Z47: =AND(C47:F47=inp_used_minimal,A47=inp_used_usersel) -> FALSE
A48: 5 | B48: 8 | C48: 75.072 | D48: MGD | E48: 37.536 | F48: MGD | Y48: =AND(C48:W48=inp_used,A48=inp_used_usersel) -> FALSE | Z48: =AND(C48:F48=inp_used_minimal,A48=inp_used_usersel) -> FALSE
A50: =IF(LEN(scenario)=0,"",scenario) -> 1 | C50: =IF(LEN(design_flow_I)=0,"",design_flow_I) -> 0.03 | D50: =IF(LEN(df_units)=0,"",df_units) -> MGD | E50: =IF(LEN(average_flow_I)=0,"",average_flow_I) -> 0.007 | F50: =IF(LEN(af_units)=0,"",af_units) -> MGD | G50: =IF(LEN(calc_type)=0,"",calc_type) -> calculate based on pH | H50: =IF(LEN(dose_I)=0,"",dose_I) ->  | I50: =IF(LEN(pH_i)=0,"",pH_i) -> 6.5 | J50: =IF(LEN(pH_f)=0,"",pH_f) -> 7.5 | K50: =IF(LEN(alk_I)=0,"",alk_I) -> 20 | L50: =IF(LEN(TDS_I)=0,"",TDS_I) -> 200 | M50: =IF(LEN(t_I)=0,"",t_I) -> 10 | N50: =IF(LEN(NaOH_pct)=0,"",NaOH_pct) -> 0.25 | O50: =IF(LEN(NaOH_price_override)=0,"",NaOH_price_override) ->  | P50: =IF(LEN(storage_type)=0,"",storage_type) -> 55 gallon drums | Q50: =IF(LEN(include_insul)=0,"",include_insul) ->  | R50: =IF(LEN(include_mixer)=0,"",include_mixer) -> yes | S50: =IF(LEN(component_level_I)=0,"",component_level_I) ->  | T50: =IF(LEN(manual_I)=0,"",manual_I) -> fully automated | U50: =IF(LEN(include_buildings_I)=0,"",include_buildings_I) ->  | V50: =IF(LEN(include_HVAC_I)=0,"",include_HVAC_I) -> no | W50: =IF(LEN(include_land_I)=0,"",include_land_I) ->  | X50: <--current inputs
C51: 0.03 | D51: MGD | E51: 0.007 | F51: MGD | G51: calculate based on pH | I51: 6.5 | J51: 7.5 | K51: 20 | L51: 200 | M51: 10 | N51: 0.25 | P51: 55 gallon drums | R51: yes | T51: fully automated | V51: no | X51: <--inputs used at last "Generate Results" | Y51: =AND($C51:$W51=inp_used) -> TRUE

Sheet INPUT
A1: SODIUM HYDROXIDE FEED SYSTEM DESIGN AND COST INPUT
E3: STEP 1
E4: Select Scenario | I4: =IF(scenario<>5,"The scenarios are for EPA's use in estimating national costs, but other users might find them useful as a starting point. See documentation for more information","Under the user-defined scenario, the buttons shown in Step 2 will enter flows only, and clear all other inputs. Advanced users can change this behavior by entering inputs on the Standard Inputs sheet") -> The scenarios are for EPA's use in estimating national costs, but other users might find them useful as a starting point. See documentation for more information
E6: STEP 2: | H6: =IF(OR('Standard Inputs'!Y9,'Standard Inputs'!Y17,'Standard Inputs'!Y25,'Standard Inputs'!Y33,'Standard Inputs'!Y41),"<- Using this design",IF(OR('Standard Inputs'!Z9,'Standard Inputs'!Z17,'Standard Inputs'!Z25,'Standard Inputs'!Z33,'Standard Inputs'!Z41),"<- You modified this design","")) -> <- Using this design | I6: The standard design buttons are for EPA's use in estimating national costs, but other users might find them useful as a starting point. See documentation for more information
E7: Select one of the eight standard designs at right OR select "CLEAR FOR MANUAL ENTRY" | H7: =IF(OR('Standard Inputs'!Y10,'Standard Inputs'!Y18,'Standard Inputs'!Y26,'Standard Inputs'!Y34,'Standard Inputs'!Y42),"<- Using this design",IF(OR('Standard Inputs'!Z10,'Standard Inputs'!Z18,'Standard Inputs'!Z26,'Standard Inputs'!Z34,'Standard Inputs'!Z42),"<- You modified this design","")) -> 
H8: =IF(OR('Standard Inputs'!Y11,'Standard Inputs'!Y19,'Standard Inputs'!Y27,'Standard Inputs'!Y35,'Standard Inputs'!Y43),"<- Using this design",IF(OR('Standard Inputs'!Z11,'Standard Inputs'!Z19,'Standard Inputs'!Z27,'Standard Inputs'!Z35,'Standard Inputs'!Z43),"<- You modified this design","")) -> 
H9: =IF(OR('Standard Inputs'!Y12,'Standard Inputs'!Y20,'Standard Inputs'!Y28,'Standard Inputs'!Y36,'Standard Inputs'!Y44),"<- Using this design",IF(OR('Standard Inputs'!Z12,'Standard Inputs'!Z20,'Standard Inputs'!Z28,'Standard Inputs'!Z36,'Standard Inputs'!Z44),"<- You modified this design","")) -> 
H10: =IF(OR('Standard Inputs'!Y13,'Standard Inputs'!Y21,'Standard Inputs'!Y29,'Standard Inputs'!Y37,'Standard Inputs'!Y45),"<- Using this design",IF(OR('Standard Inputs'!Z13,'Standard Inputs'!Z21,'Standard Inputs'!Z29,'Standard Inputs'!Z37,'Standard Inputs'!Z45),"<- You modified this design","")) -> 
H11: =IF(OR('Standard Inputs'!Y14,'Standard Inputs'!Y22,'Standard Inputs'!Y30,'Standard Inputs'!Y38,'Standard Inputs'!Y46),"<- Using this design",IF(OR('Standard Inputs'!Z14,'Standard Inputs'!Z22,'Standard Inputs'!Z30,'Standard Inputs'!Z38,'Standard Inputs'!Z46),"<- You modified this design","")) -> 
H12: =IF(OR('Standard Inputs'!Y15,'Standard Inputs'!Y23,'Standard Inputs'!Y31,'Standard Inputs'!Y39,'Standard Inputs'!Y47),"<- Using this design",IF(OR('Standard Inputs'!Z15,'Standard Inputs'!Z23,'Standard Inputs'!Z31,'Standard Inputs'!Z39,'Standard Inputs'!Z47),"<- You modified this design","")) -> 
H13: =IF(OR('Standard Inputs'!Y16,'Standard Inputs'!Y24,'Standard Inputs'!Y32,'Standard Inputs'!Y40,'Standard Inputs'!Y48),"<- Using this design",IF(OR('Standard Inputs'!Z16,'Standard Inputs'!Z24,'Standard Inputs'!Z32,'Standard Inputs'!Z40,'Standard Inputs'!Z48),"<- You modified this design","")) -> 
H14: =IF(OR('Standard Inputs'!Y9:Z48),"","Using a manual design") -> 
E15: STEP 3:
E16: (Optional for standard designs) | G16: =IF(input_complete,IF('Standard Inputs'!Y51,"Input Complete -- Results Ready","Input Complete--Press 'Generate Results'"),"Input Incomplete--Check for Error Messages Below") -> Input Complete -- Results Ready
C17: =AND(C29,C45,C52,C61) -> TRUE | E17: Enter or change values in the gold and blue cells below, under "Manual Inputs"
E19: STEP 4: | I19: ="Resulting Costs (in year "&TEXT(current_year_cl,0)&" dollars, see OUTPUT sheet for details)" -> Resulting Costs (in year 2021 dollars, see OUTPUT sheet for details)
E20: =IF(input_status="Input Complete -- results ready","Results are ready (no need to click button)","Click here to generate results -->") -> Results are ready (no need to click button) | I20: ="Direct Capital Cost: " & IF(input_status<>"Input Complete -- Results Ready",input_status,IF(Missing_Cost,"Missing cost!",IF(cost_buildup_error,"Cost buildup error!",IF(ISERROR(direct_cost),"Calculation error!",TEXT(direct_cost,"$0,0"))))) -> Direct Capital Cost: $20,986
I21: ="Total Capital Cost: " & IF(input_status<>"Input Complete -- Results Ready",input_status,IF(Missing_Cost,"Missing cost!",IF(cost_buildup_error,"Cost buildup error!",IF(ISERROR(system_cost),"Calculation error!",TEXT(system_cost,"$0,0"))))) -> Total Capital Cost: $35,201
I22: ="Annualized Capital Cost: "&IF(input_status<>"Input Complete -- Results Ready",input_status,IF(Missing_Cost,"Missing Price!",IF(cost_buildup_error,"Cost buildup error!",IF(ISERROR(Annualized_Capital_Cost),"Calculation error!",TEXT(Annualized_Capital_Cost,"$0,0")&" per year"&" (over "&useful_life&" years at "&Discount_rate*100&"%)")))) -> Annualized Capital Cost: $3,652 per year (over 16.6 years at 7%)
I23: ="Annual O&M Cost: " &IF(input_status<>"input complete -- results ready",input_status,IF(ISERROR(om_cost),"Calculation error!",TEXT(om_cost,"$0,0")&" per year")) -> Annual O&M Cost: $3,361 per year
E24: MANUAL INPUTS | I24: ="Total Annualized Cost: "&IF(input_status<>"Input Complete -- Results Ready",input_status,IF(Missing_Cost,"Missing Price!",IF(cost_buildup_error,"Cost buildup error!",IF(ISERROR(Annualized_Cost),"Calculation error!",TEXT(Annualized_Cost,"$0,0")&" per year ("&TEXT(TAC_pct_cap,"0%")&" capital, "&TEXT(TAC_pct_OM,"0%")&" O&M)")))) -> Total Annualized Cost: $7,013 per year (52% capital, 48% O&M)
E25: Cells in gold are required; cells in blue are optional | I25: =IF(Missing_Cost,"A price is not available for at least one required component. See Use? column on OUTPUT sheet.",IF(cost_buildup_error,"There is an Excel error in the price for at least one component. See the Use? column on OUTPUT sheet.","")) -> 
B26: Used? | C26: Valid input? | D26: Invalid reason? | H26: Select units
E27: Design Flow | F27: design_flow_I | G27: 0.03 | H27: MGD
E28: Average Flow | F28: average_flow_I | G28: 0.007 | H28: MGD
C29: =IF(OR(df_units="",af_units=""),FALSE,IF(OR(average_flow>design_flow,average_flow<design_flow*min_avg_flow),FALSE,IF(OR(design_flow_I=0,average_flow_I=0),FALSE,TRUE))) -> TRUE | D29: =IF(OR(df_units="",af_units=""),"Choose units for design and average flow",IF(average_flow>design_flow,"The average flow should not be greater than the design flow",IF(OR(design_flow_I=0,average_flow_I=0),"Input incomplete",IF(average_flow<design_flow*min_avg_flow,"The average flow must be at least " & min_avg_flow & " times design flow","OK")))) -> OK | H29: =IF(C29,"System size inputs OK",D29) -> System size inputs OK
C31: =NOT(ISBLANK(calc_type)) -> TRUE | D31: =IF(NOT(C31),"Input incomplete","") ->  | E31: Calculation method | F31: calc_type | G31: calculate based on pH | H31: <-- pick one
B32: =IF(calc_type="manual entry",TRUE,FALSE) -> FALSE | C32: =IF(B32,NOT(ISBLANK(dose_I)),TRUE) -> TRUE | D32: =IF(NOT(C32),"Input incomplete","") ->  | E32: Sodium hydroxide dose | F32: dose_I | H32: =IF(B32,"mg/L","not required") -> not required
B33: =IF(calc_type="manual entry",FALSE,TRUE) -> TRUE | C33: =IF(B33,NOT(ISBLANK(pH_i)),TRUE) -> TRUE | D33: =IF(NOT(C33),"Input incomplete","") ->  | E33: Influent water pH | F33: pH_i | G33: 6.5 | H33: =IF(B33,"SU","not required") -> SU
B34: =IF(calc_type="manual entry",FALSE,TRUE) -> TRUE | C34: =IF(B34,IF(ISBLANK(pH_f),FALSE,IF(pH_f<=pH_i,FALSE,TRUE)),TRUE) -> TRUE | D34: =IF(C34,"",IF(ISBLANK(pH_f),"Input incomplete",IF(pH_f<=pH_i,"Treated water pH must be greater than influent pH",""))) ->  | E34: Desired treated water pH | F34: pH_f | G34: 7.5 | H34: =IF(B34,"SU","not required") -> SU
B35: =IF(calc_type="manual entry",FALSE,TRUE) -> TRUE | C35: =IF(B35,NOT(ISBLANK(alk_I)),TRUE) -> TRUE | D35: =IF(NOT(C35),"Input incomplete","") ->  | E35: Influent water alkalinity | F35: alk_I | G35: 20 | H35: =IF(B35,"mg/L as CaCO3","") -> mg/L as CaCO3
B36: =IF(calc_type="manual entry",FALSE,TRUE) -> TRUE | C36: =IF(B36,NOT(ISBLANK(TDS_I)),TRUE) -> TRUE | D36: =IF(NOT(C36),"Input incomplete","") ->  | E36: Influent water total dissolved solids | F36: TDS_I | G36: 200 | H36: =IF(B36,"mg/L","") -> mg/L
B37: =IF(calc_type="manual entry",FALSE,TRUE) -> TRUE | C37: =IF(B37,NOT(ISBLANK(t_I)),TRUE) -> TRUE | D37: =IF(NOT(C37),"Input incomplete","") ->  | E37: Influent water temperature | F37: t_I | G37: 10 | H37: =IF(B37,"degrees centigrade","") -> degrees centigrade
C38: =NOT(ISBLANK(NaOH_pct)) -> TRUE | D38: =IF(NOT(C38),"Input incomplete","") ->  | E38: Sodium hydroxide weight percent | F38: NaOH_pct | G38: 0.25 | I38: Enter weight percent as delivered; price data are available for 50% and 25% solutions
B39: =IF(OR(NaOH_pct=0.5,NaOH_pct=0.25),FALSE,TRUE) -> FALSE | C39: =IF(B39,NOT(ISBLANK(NaOH_price_override)),TRUE) -> TRUE | D39: =IF(NOT(C39),"Input incomplete","") ->  | E39: ="Sodium hydroxide unit price"&IF(NOT(B39)," (optional)") -> Sodium hydroxide unit price (optional) | F39: NaOH_price_override | H39: per pound of bulk solution | I39: =IF(B39,"Input required. Default price data are not available for this solution strength.","Leave blank to accept default unit price. Enter a value to override.") -> Leave blank to accept default unit price. Enter a value to override.
E40: For information: Sodium hydroxide dose | G40: =IF(C45=FALSE,"",NaOH_tot) -> 11.70744452 | H40: mg/l
E41: Solution feed rate | G41: =IF(C17=FALSE,"",des_NaOH_flow) -> 0.04581682004 | H41: gallons per hour
E42: Unit price of sodium hydroxide | G42: =IF(C17=FALSE,"",OUTPUT!E168) -> 0.179783474 | H42: per pound of bulk solution
H43: =IF(NOT(input_complete),"",IF(des_NaOH_flow<min_chem_flow,"Note: solution feed rate is below minimum pump size. Cost estimate will size pumps to meet the minimum.","")) -> Note: solution feed rate is below minimum pump size. Cost estimate will size pumps to meet the minimum. | I43: Adjust feed rate constraint
H44: =IF(NOT(input_complete),"",IF(des_NaOH_flow<min_chem_flow,"Recommendation: it may be more cost-effective to use a more dilute solution.","")) -> Recommendation: it may be more cost-effective to use a more dilute solution.
C45: =AND(C31:C39) -> TRUE | D45: =IF(C45,"OK",IF(NOT(C31),D31,IF(NOT(C32),D32,IF(NOT(C33),D33,IF(NOT(C34),D34,IF(NOT(C35),D35,IF(NOT(C36),D36,IF(NOT(C37),D37,IF(NOT(C38),D38,IF(NOT(C39),D39)))))))))) -> OK | H45: =IF(C45,"Dosage inputs OK",D45) -> Dosage inputs OK
C47: =NOT(ISBLANK(storage_type)) -> TRUE | D47: =IF(NOT(C47),"Input incomplete","") ->  | E47: Chemical storage configuration | F47: storage_type | G47: 55 gallon drums | H47: <-- pick one | I47: =IF(NOT(input_complete),"",IF(storage_type_num=4,"System will feed from day tanks, with additional storage provided in bulk storage tanks","System will feed directly from "&CHOOSE(storage_type_num,"drums","totes","bulk storage tanks",""))) -> System will feed directly from drums
B48: =IF(ISBLANK(storage_type),FALSE,IF(storage_type_num>2,TRUE,FALSE)) -> FALSE | C48: =IF(B48,NOT(ISBLANK(include_insul)),TRUE) -> TRUE | D48: =IF(NOT(C48),"Input incomplete","") ->  | E48: Include heat tracing and insulation? | F48: include_insul | H48: =IF(B48,"<-- pick one","not required") -> not required | I48: =IF(ISBLANK(NaOH_pct),"","Sodium hydroxide solutions around "&TEXT(VLOOKUP(NaOH_pct,NaOH_freeze_table,1),"0%"))&" freeze at "&VLOOKUP(NaOH_pct,NaOH_freeze_table,2)&" degrees F ("&VLOOKUP(NaOH_pct,NaOH_freeze_table,3)&" degrees C)" -> Sodium hydroxide solutions around 25% freeze at 0 degrees F (-18 degrees C)
C49: =NOT(ISBLANK(include_mixer)) -> TRUE | D49: =IF(NOT(C49),"Input incomplete","") ->  | E49: Include inline static mixer? | F49: include_mixer | G49: yes | H49: <-- pick one
E50: For information: Total storage required | G50: =IF(input_complete=FALSE,"",gal_NaOH_store) -> 8 | H50: gallons
E51: Storage configuration | G51: =IF(input_complete=FALSE,"",CHOOSE(storage_type_num,total_chem_containers&" "&chem_container_size&"-gallon drum"&IF(total_chem_containers>1,"s",""),total_chem_containers&" "&chem_container_size&"-gallon tote"&IF(total_chem_containers>1,"s",""),num_caustic_tanks&" "&TEXT(caustic_tank_vol,"0,0")&"-gallon tank"&IF(num_caustic_tanks>1,"s",""),num_caustic_tanks&" "&TEXT(caustic_tank_vol,"0,0")&"-gallon storage tank"&IF(num_caustic_tanks>1,"s","")&" and "&day_tanks&" "&TEXT(day_tank_vol,"0,0")&"-gallon day tank"&IF(day_tanks>1,"s",""))) -> 1 55-gallon drum
C52: =AND(C47:C49) -> TRUE | D52: =IF(C52,"OK",IF(NOT(C47),D47,IF(NOT(C48),D48,IF(NOT(C49),D49)))) -> OK | H52: =IF(C52,"Equipment inputs OK",D52) -> Equipment inputs OK
E54: Component level | F54: component_level_I | H54: <-- pick or leave blank | I54: Leave blank to use low cost components
E55: System automation | F55: manual_I | G55: fully automated | H55: <-- pick or leave blank | I55: Leave blank to allow model to pick based on component level
E56: Include buildings? | F56: include_buildings_I | H56: <-- pick or leave blank | I56: Leave blank to include buildings
E57: Include HVAC? | F57: include_HVAC_I | G57: no | H57: <-- pick or leave blank | I57: Leave blank to allow model to pick based on component level and building type
E58: Include land? | F58: include_land_I | H58: <-- pick or leave blank | I58: Leave blank to include land
E59: For information: Component level | G59: =IF(component_level=2,"high cost",IF(component_level=1,"mid cost","low cost")) -> low cost
E60: Automation | G60: =IF(manual=1,"manual",IF(manual=2,"semi-automated",IF(manual=3,"fully automated"))) -> fully automated
C61: =NOT(ISERROR(manual)) -> TRUE | D61: =IF(ISERROR(manual),"Invalid system automation input","OK") -> OK | H61: =IF(C61,"Optional inputs OK",D61) -> Optional inputs OK

Sheet OUTPUT
A1: OUTPUT SUMMARY
B2: Parameter | C2: Value | D2: Units
B3: Technology | C3: Caustic Feed
B4: System Size Category | C4: =IF(design_flow<1,"small","large") -> small
B5: Design Flow | C5: =design_flow_I -> 0.03 | D5: =df_units -> MGD
B6: Average Flow | C6: =average_flow_I -> 0.007 | D6: =af_units -> MGD
B7: =IF(calc_type="manual entry","","Treated water pH") -> Treated water pH | C7: =IF(calc_type="manual entry","",pH_i) -> 6.5 | D7: =IF(calc_type="manual entry","","SU") -> SU
B8: =IF(calc_type="manual entry","","Desired treated water pH") -> Desired treated water pH | C8: =IF(calc_type="manual entry","",pH_f) -> 7.5 | D8: =IF(calc_type="manual entry","","SU") -> SU
B9: =IF(calc_type="manual entry","","Influent water alkalinity") -> Influent water alkalinity | C9: =IF(calc_type="manual entry","",alk_I) -> 20 | D9: mg/L as CaCO3
B10: Sodium hydroxide dose | C10: =NaOH_tot -> 11.70744452 | D10: mg/L
B11: Component level | C11: =IF(component_level_I="","low", component_level_I) -> low
B12: System automation | C12: =IF(manual=1,"manual",IF(manual=2,"semi-automated","fully automated")) -> fully automated
B13: ="Resulting Costs (in year "&TEXT(current_year_cl,0)&" dollars)" -> Resulting Costs (in year 2021 dollars)
B14: Direct Capital Cost | C14: =IF(input_status<>"input complete -- results ready","Attention needed",IF(Missing_Cost,"Missing cost!",IF(cost_buildup_error,"Error in buildup!",direct_cost))) -> 20986.21401 | D14: Details | E14: =IF(input_status<>"input complete -- results ready",IF(input_complete,"Press Generate Results","Check INPUT sheet for errors"),IF(Missing_Cost,"A price is not available for at least one required component. See Use? column below.",IF(cost_buildup_error,"There is an Excel error in the price for at least one component. See Use? column below.",""))) -> 
B15: Add-on Cost | C15: =IF(input_status<>"input complete -- results ready","Attention needed",addon_cost) -> 967.1500108 | D15: Details
B16: Indirect Capital Cost | C16: =IF(input_status<>"input complete -- results ready","Attention needed",indirect_cost) -> 13247.41529 | D16: Details
B17: Total Capital Cost | C17: =IF(input_status<>"input complete -- results ready","Attention needed",IF(Missing_Cost,"Missing cost!",IF(cost_buildup_error,"Error in buildup!",system_cost))) -> 35200.77931 | D17: Details
B18: ="Annualized Capital Cost "&IF(OR(input_status<>"input complete -- results ready",Missing_Cost,cost_buildup_error),"","(per year over "&useful_life&" years at "&Discount_rate*100&"%)") -> Annualized Capital Cost (per year over 16.6 years at 7%) | C18: =IF(input_status<>"input complete -- results ready","Attention needed",IF(Missing_Cost,"Missing cost!",IF(cost_buildup_error,"Error in buildup!",Annualized_Capital_Cost))) -> 3651.852287 | D18: Details
B19: Annual O&M Cost (per year) | C19: =IF(input_status<>"input complete -- results ready","Attention needed",om_cost) -> 3360.954142 | D19: Details
B20: ="Total Annualized Cost (per year"&IF(OR(input_status<>"input complete -- results ready",ISERROR(OR(TAC_pct_cap,TAC_pct_OM))),"",", "&TEXT(TAC_pct_cap,"0%")&" capital, "&TEXT(TAC_pct_OM,"0%")&" O&M")&")" -> Total Annualized Cost (per year, 52% capital, 48% O&M) | C20: =IF(input_status<>"input complete -- results ready","Attention needed",IF(Missing_Cost,"Missing cost!",IF(cost_buildup_error,"Error in buildup!",Annualized_Cost))) -> 7012.80643 | D20: Details
B21: Annualized cost per 1,000 gallons average flow | C21: =IF(input_status<>"input complete -- results ready","Attention needed",IF(Missing_Cost,"Missing cost!",IF(cost_buildup_error,"Error in buildup!",C197))) -> 2.744738329
B22: Annualized cost per household per year | C22: =IF(input_status<>"input complete -- results ready","Attention needed",IF(Missing_Cost,"Missing cost!",IF(cost_buildup_error,"Error in buildup!",C198))) -> 276.5835092
A24: Direct Capital Cost Details (items in italics, without a 1 in the "Use?" column, represent alternate costs and are excluded from total)
A25: WBS # | B25: Item | C25: Design Quantity | E25: Design Size | G25: Size used in estimate | I25: Unit Cost | J25: Total Cost | K25: Useful Life | L25: Use? | M25: Full Line Item Name | N25: Priority selection | W25: Useful Life
N26: Small (<1 mgd) | Q26: Medium (1-10 mgd) | T26: Large (>10 mgd)
N27: Low | O27: Mid | P27: High | Q27: Low | R27: Mid | S27: High | T27: Low | U27: Mid | V27: High | W27: Count? | X27: Depreciation
A28: 1 | B28: Tanks and Mixers | W28: =IF(ISERROR(K28*L28),0,IF(K28<1,0,L28)) -> 0 | X28: =IF(W28,J28/K28,0) -> 0
A29: 1.1 | B29: Caustic Storage Tanks | W29: 0 | X29: 0
A30: 1.1.1 | B30: Plastic/XLPE | C30: =num_caustic_tanks -> 0 | D30: units | E30: =IF(C30=0,"NA",caustic_tank_vol) -> NA | F30: =IF(C30=0,"","gal") ->  | G30: =IF(C30=0,"NA",IF(curve=1,caustic_tank_vol,VLOOKUP(caustic_tank_vol,pl_cst_cost_cl,2))) -> NA | H30: =IF(C30=0,"","gal") ->  | I30: =IF(C30=0,"NA",IF(curve=1,pl_cst_eq_naoh,VLOOKUP(caustic_tank_vol,pl_cst_cost_cl,3))) -> NA | J30: =IF(C30=0,"--",IF(I30="contact vendor","--",C30*I30)) -> -- | K30: =IF(C30=0,"NA",VLOOKUP(E30,pl_cst_cost_cl,IF(ss_cat="large",4,5))) -> NA | M30: =$B$28&" - "&$B$29&" - "&B30 -> Tanks and Mixers - Caustic Storage Tanks - Plastic/XLPE | N30: 1 | O30: 2 | P30: 3 | Q30: 1 | R30: 2 | S30: 3 | T30: 1 | U30: 2 | V30: 3 | W30: 0 | X30: 0
A31: 1.1.1 | B31: Fiberglass | C31: =num_caustic_tanks -> 0 | D31: units | E31: =IF(C31=0,"NA",caustic_tank_vol) -> NA | F31: =IF(C31=0,"","gal") ->  | G31: =IF(C31=0,"NA",IF(curve=1,caustic_tank_vol,VLOOKUP(caustic_tank_vol,fg_cst_cost_cl,2))) -> NA | H31: =IF(C31=0,"","gal") ->  | I31: =IF(C31=0,"NA",IF(curve=1,fg_cst_eq_naoh,VLOOKUP(caustic_tank_vol,fg_cst_cost_cl,3))) -> NA | J31: -- | K31: =IF(C31=0,"NA",VLOOKUP(E31,fg_cst_cost_cl,IF(ss_cat="large",4,5))) -> NA | M31: =$B$28&" - "&$B$29&" - "&B31 -> Tanks and Mixers - Caustic Storage Tanks - Fiberglass | N31: 2 | O31: 1 | P31: 2 | Q31: 2 | R31: 1 | S31: 2 | T31: 2 | U31: 1 | V31: 2 | W31: 0 | X31: 0
A32: 1.1.1 | B32: Stainless Steel | C32: =num_caustic_tanks -> 0 | D32: units | E32: =IF(C32=0,"NA",caustic_tank_vol) -> NA | F32: =IF(C32=0,"","gal") ->  | G32: =IF(C32=0,"NA",IF(curve=1,caustic_tank_vol,VLOOKUP(caustic_tank_vol,ss_cst_cost_cl,2))) -> NA | H32: =IF(C32=0,"","gal") ->  | I32: =IF(C32=0,"NA",IF(curve=1,ss_cst_eq_naoh,VLOOKUP(caustic_tank_vol,ss_cst_cost_cl,3))) -> NA | J32: -- | K32: =IF(C32=0,"NA",VLOOKUP(E32,ss_cst_cost_cl,IF(ss_cat="large",4,5))) -> NA | M32: =$B$28&" - "&$B$29&" - "&B32 -> Tanks and Mixers - Caustic Storage Tanks - Stainless Steel | N32: 3 | O32: 3 | P32: 1 | Q32: 3 | R32: 3 | S32: 1 | T32: 3 | U32: 3 | V32: 1 | W32: 0 | X32: 0
A33: 1.1.2 | B33: Heat Tracing | C33: =IF(include_insul="yes",num_caustic_tanks,0) -> 0 | D33: units | E33: =IF(C33=0,"NA",caustic_tank_vol) -> NA | F33: =IF(C33=0,"","gal") ->  | G33: =IF(C33=0,"NA",IF(curve=1,caustic_tank_vol,VLOOKUP(caustic_tank_vol,cst_heat_cost_cl,2))) -> NA | H33: =IF(C33=0,"","gal") ->  | I33: =IF(C33=0,"NA",IF(curve=1,cst_heat_eq,VLOOKUP(caustic_tank_vol,cst_heat_cost_cl,3))) -> NA | J33: -- | K33: =IF(C33=0,"NA",VLOOKUP(E33,cst_heat_cost_cl,IF(ss_cat="large",4,5))) -> NA | M33: =$B$28&" - "&$B$29&" - "&B33 -> Tanks and Mixers - Caustic Storage Tanks - Heat Tracing | N33: 1 | O33: 1 | P33: 1 | Q33: 1 | R33: 1 | S33: 1 | T33: 1 | U33: 1 | V33: 1 | W33: 0 | X33: 0
A34: 1.1.3 | B34: Insulation | C34: =IF(include_insul="yes",num_caustic_tanks,0) -> 0 | D34: units | E34: =IF(C34=0,"NA",caustic_tank_vol) -> NA | F34: =IF(C34=0,"","gal") ->  | G34: =IF(C34=0,"NA",IF(curve=1,caustic_tank_vol,VLOOKUP(caustic_tank_vol,cst_insul_cost_cl,2))) -> NA | H34: =IF(C34=0,"","gal") ->  | I34: =IF(C34=0,"NA",IF(curve=1,cst_insul_eq,VLOOKUP(caustic_tank_vol,cst_insul_cost_cl,3))) -> NA | J34: -- | K34: =IF(C34=0,"NA",VLOOKUP(E34,cst_insul_cost_cl,IF(ss_cat="large",4,5))) -> NA | M34: =$B$28&" - "&$B$29&" - "&B34 -> Tanks and Mixers - Caustic Storage Tanks - Insulation | N34: 1 | O34: 1 | P34: 1 | Q34: 1 | R34: 1 | S34: 1 | T34: 1 | U34: 1 | V34: 1 | W34: 0 | X34: 0
A35: 1.2 | B35: Day Tanks | W35: 0 | X35: 0
A36: 1.2.1 | B36: Plastic/XLPE | C36: =day_tanks -> 0 | D36: units | E36: =IF(C36=0,"NA",day_tank_vol) -> NA | F36: =IF(C36=0,"","gal") ->  | G36: =IF(C36=0,"NA",IF(curve=1,day_tank_vol,VLOOKUP(day_tank_vol,pl_cst_cost_cl,2))) -> NA | H36: =IF(C36=0,"","gal") ->  | I36: =IF(C36=0,"NA",IF(curve=1,pl_day_eq,VLOOKUP(day_tank_vol,pl_cst_cost_cl,3))) -> NA | J36: =IF(C36=0,"--",IF(I36="contact vendor","--",C36*I36)) -> -- | K36: =IF(C36=0,"NA",VLOOKUP(E36,pl_cst_cost_cl,IF(ss_cat="large",4,5))) -> NA | M36: =$B$28&" - "&$B$35&" - "&B36 -> Tanks and Mixers - Day Tanks - Plastic/XLPE | N36: 1 | O36: 2 | P36: 3 | Q36: 1 | R36: 2 | S36: 3 | T36: 1 | U36: 2 | V36: 3 | W36: 0 | X36: 0
A37: 1.2.1 | B37: Fiberglass | C37: =day_tanks -> 0 | D37: units | E37: =IF(C37=0,"NA",day_tank_vol) -> NA | F37: =IF(C37=0,"","gal") ->  | G37: =IF(C37=0,"NA",IF(curve=1,day_tank_vol,VLOOKUP(day_tank_vol,fg_cst_cost_cl,2))) -> NA | H37: =IF(C37=0,"","gal") ->  | I37: =IF(C37=0,"NA",IF(curve=1,fg_day_eq,VLOOKUP(day_tank_vol,fg_cst_cost_cl,3))) -> NA | J37: =IF(C37=0,"--",IF(I37="contact vendor","--",C37*I37)) -> -- | K37: =IF(C37=0,"NA",VLOOKUP(E37,fg_cst_cost_cl,IF(ss_cat="large",4,5))) -> NA | M37: =$B$28&" - "&$B$35&" - "&B37 -> Tanks and Mixers - Day Tanks - Fiberglass | N37: 2 | O37: 1 | P37: 2 | Q37: 2 | R37: 1 | S37: 2 | T37: 2 | U37: 1 | V37: 2 | W37: 0 | X37: 0
A38: 1.2.1 | B38: Stainless Steel | C38: =day_tanks -> 0 | D38: units | E38: =IF(C38=0,"NA",day_tank_vol) -> NA | F38: =IF(C38=0,"","gal") ->  | G38: =IF(C38=0,"NA",IF(curve=1,day_tank_vol,VLOOKUP(day_tank_vol,ss_cst_cost_cl,2))) -> NA | H38: =IF(C38=0,"","gal") ->  | I38: =IF(C38=0,"NA",IF(curve=1,ss_day_eq,VLOOKUP(day_tank_vol,ss_cst_cost_cl,3))) -> NA | J38: =IF(C38=0,"--",IF(I38="contact vendor","--",C38*I38)) -> -- | K38: =IF(C38=0,"NA",VLOOKUP(E38,ss_cst_cost_cl,IF(ss_cat="large",4,5))) -> NA | M38: =$B$28&" - "&$B$35&" - "&B38 -> Tanks and Mixers - Day Tanks - Stainless Steel | N38: 3 | O38: 3 | P38: 1 | Q38: 3 | R38: 3 | S38: 1 | T38: 3 | U38: 3 | V38: 1 | W38: 0 | X38: 0
A39: 1.2.2 | B39: Heat Tracing | C39: =IF(include_insul="yes",day_tanks,0) -> 0 | D39: units | E39: =IF(C39=0,"NA",day_tank_vol) -> NA | F39: =IF(C39=0,"","gal") ->  | G39: =IF(C39=0,"NA",IF(curve=1,day_tank_vol,VLOOKUP(day_tank_vol,cst_heat_cost_cl,2))) -> NA | H39: =IF(C39=0,"","gal") ->  | I39: =IF(C39=0,"NA",IF(curve=1,day_heat_eq,VLOOKUP(day_tank_vol,cst_heat_cost_cl,3))) -> NA | J39: =IF(C39=0,"--",IF(I39="contact vendor","--",C39*I39)) -> -- | K39: =IF(C39=0,"NA",VLOOKUP(E39,cst_heat_cost_cl,IF(ss_cat="large",4,5))) -> NA | M39: =$B$28&" - "&$B$35&" - "&B39 -> Tanks and Mixers - Day Tanks - Heat Tracing | N39: 1 | O39: 1 | P39: 1 | Q39: 1 | R39: 1 | S39: 1 | T39: 1 | U39: 1 | V39: 1 | W39: 0 | X39: 0
A40: 1.2.3 | B40: Insulation | C40: =IF(include_insul="yes",day_tanks,0) -> 0 | D40: units | E40: =IF(C40=0,"NA",day_tank_vol) -> NA | F40: =IF(C40=0,"","gal") ->  | G40: =IF(C40=0,"NA",IF(curve=1,day_tank_vol,VLOOKUP(day_tank_vol,cst_insul_cost_cl,2))) -> NA | H40: =IF(C40=0,"","gal") ->  | I40: =IF(C40=0,"NA",IF(curve=1,day_insul_eq,VLOOKUP(day_tank_vol,cst_insul_cost_cl,3))) -> NA | J40: =IF(C40=0,"--",IF(I40="contact vendor","--",C40*I40)) -> -- | K40: =IF(C40=0,"NA",VLOOKUP(E40,cst_insul_cost_cl,IF(ss_cat="large",4,5))) -> NA | M40: =$B$28&" - "&$B$35&" - "&B40 -> Tanks and Mixers - Day Tanks - Insulation | N40: 1 | O40: 1 | P40: 1 | Q40: 1 | R40: 1 | S40: 1 | T40: 1 | U40: 1 | V40: 1 | W40: 0 | X40: 0
A41: 1.3 | B41: Mixers for Storage Tanks | W41: 0 | X41: 0
A42: 1.3.1 | B42: Portable | C42: =cmixers -> 0 | D42: units | E42: =IF(C42=0,"NA",cmix_size) -> NA | F42: =IF(C42=0,"","hp") ->  | G42: =IF(C42=0,"NA",VLOOKUP(cmix_size,port_mix_cost_cl,2)) -> NA | H42: =IF(C42=0,"","hp") ->  | I42: =IF(C42=0,"NA",VLOOKUP(cmix_size,port_mix_cost_cl,3)) -> NA | J42: =IF(C42=0,"--",IF(I42="contact vendor","--",C42*I42)) -> -- | K42: =IF(C42=0,"NA",VLOOKUP(E42,port_mix_cost_cl,IF(ss_cat="large",4,5))) -> NA | M42: =$B$28&" - "&$B$41&" - "&B42 -> Tanks and Mixers - Mixers for Storage Tanks - Portable | N42: 3 | O42: 3 | P42: 3 | Q42: 3 | R42: 3 | S42: 3 | T42: 3 | U42: 3 | V42: 3 | W42: 0 | X42: 0
A43: 1.3.1 | B43: Mounted | C43: =cmixers -> 0 | D43: units | E43: =IF(C43=0,"NA",cmix_size) -> NA | F43: =IF(C43=0,"","hp") ->  | G43: =IF(C43=0,"NA",IF(curve=1,cmix_size,VLOOKUP(cmix_size,mount_mix_cost_cl,2))) -> NA | H43: =IF(C43=0,"","hp") ->  | I43: =IF(C43=0,"NA",IF(curve=1,cmount_mix_eq,VLOOKUP(cmix_size,mount_mix_cost_cl,3))) -> NA | J43: =IF(C43=0,"--",IF(I43="contact vendor","--",C43*I43)) -> -- | K43: =IF(C43=0,"NA",VLOOKUP(E43,mount_mix_cost_cl,IF(ss_cat="large",4,5))) -> NA | M43: =$B$28&" - "&$B$41&" - "&B43 -> Tanks and Mixers - Mixers for Storage Tanks - Mounted | N43: 1 | O43: 1 | P43: 1 | Q43: 1 | R43: 1 | S43: 1 | T43: 1 | U43: 1 | V43: 1 | W43: 0 | X43: =IF(W43,J43/K43,0) -> 0
A44: 1.3.1 | B44: Impeller | C44: =cmixers -> 0 | D44: units | E44: =IF(C44=0,"NA",cmix_size) -> NA | F44: =IF(C44=0,"","hp") ->  | G44: =IF(C44=0,"NA",IF(curve=1,cmix_size,VLOOKUP(cmix_size,imp_mix_cost_cl,2))) -> NA | H44: =IF(C44=0,"","hp") ->  | I44: =IF(C44=0,"NA",IF(curve=1,cimp_mix_eq,VLOOKUP(cmix_size,imp_mix_cost_cl,3))) -> NA | J44: =IF(C44=0,"--",IF(I44="contact vendor","--",C44*I44)) -> -- | K44: =IF(C44=0,"NA",VLOOKUP(E44,imp_mix_cost_cl,IF(ss_cat="large",4,5))) -> NA | M44: =$B$28&" - "&$B$41&" - "&B44 -> Tanks and Mixers - Mixers for Storage Tanks - Impeller | N44: 2 | O44: 2 | P44: 2 | Q44: 2 | R44: 2 | S44: 2 | T44: 2 | U44: 2 | V44: 2 | W44: 0 | X44: 0
A45: 1.4 | B45: Mixers for Day Tanks | W45: 0 | X45: 0
A46: 1.4.1 | B46: Portable | C46: =dmixers -> 0 | D46: units | E46: =IF(C46=0,"NA",dmix_size) -> NA | F46: =IF(C46=0,"","hp") ->  | G46: =IF(C46=0,"NA",VLOOKUP(dmix_size,port_mix_cost_cl,2)) -> NA | H46: =IF(C46=0,"","hp") ->  | I46: =IF(C46=0,"NA",VLOOKUP(dmix_size,port_mix_cost_cl,3)) -> NA | J46: =IF(C46=0,"--",IF(I46="contact vendor","--",C46*I46)) -> -- | K46: =IF(C46=0,"NA",VLOOKUP(E46,port_mix_cost_cl,IF(ss_cat="large",4,5))) -> NA | M46: =$B$28&" - "&$B$45&" - "&B46 -> Tanks and Mixers - Mixers for Day Tanks - Portable | N46: 3 | O46: 3 | P46: 3 | Q46: 3 | R46: 3 | S46: 3 | T46: 3 | U46: 3 | V46: 3 | W46: 0 | X46: 0
A47: 1.4.1 | B47: Mounted | C47: =dmixers -> 0 | D47: units | E47: =IF(C47=0,"NA",dmix_size) -> NA | F47: =IF(C47=0,"","hp") ->  | G47: =IF(C47=0,"NA",IF(curve=1,dmix_size,VLOOKUP(dmix_size,mount_mix_cost_cl,2))) -> NA | H47: =IF(C47=0,"","hp") ->  | I47: =IF(C47=0,"NA",IF(curve=1,dmount_mix_eq,VLOOKUP(dmix_size,mount_mix_cost_cl,3))) -> NA | J47: =IF(C47=0,"--",IF(I47="contact vendor","--",C47*I47)) -> -- | K47: =IF(C47=0,"NA",VLOOKUP(E47,mount_mix_cost_cl,IF(ss_cat="large",4,5))) -> NA | M47: =$B$28&" - "&$B$45&" - "&B47 -> Tanks and Mixers - Mixers for Day Tanks - Mounted | N47: 1 | O47: 1 | P47: 1 | Q47: 1 | R47: 1 | S47: 1 | T47: 1 | U47: 1 | V47: 1 | W47: 0 | X47: 0
A48: 1.4.1 | B48: Impeller | C48: =dmixers -> 0 | D48: units | E48: =IF(C48=0,"NA",dmix_size) -> NA | F48: =IF(C48=0,"","hp") ->  | G48: =IF(C48=0,"NA",IF(curve=1,dmix_size,VLOOKUP(dmix_size,imp_mix_cost_cl,2))) -> NA | H48: =IF(C48=0,"","hp") ->  | I48: =IF(C48=0,"NA",IF(curve=1,dimp_mix_eq,VLOOKUP(dmix_size,imp_mix_cost_cl,3))) -> NA | J48: =IF(C48=0,"--",IF(I48="contact vendor","--",C48*I48)) -> -- | K48: =IF(C48=0,"NA",VLOOKUP(E48,imp_mix_cost_cl,IF(ss_cat="large",4,5))) -> NA | M48: =$B$28&" - "&$B$45&" - "&B48 -> Tanks and Mixers - Mixers for Day Tanks - Impeller | N48: 2 | O48: 2 | P48: 2 | Q48: 2 | R48: 2 | S48: 2 | T48: 2 | U48: 2 | V48: 2 | W48: 0 | X48: 0
A49: 1.5 | B49: Secondary Containment for Storage Tanks | W49: =IF(ISERROR(K49*L49),0,IF(K49<1,0,L49)) -> 0 | X49: =IF(W49,J49/K49,0) -> 0
A50: 1.5.1 | B50: Concrete Curbing | C50: =IF(OR(include_sec_cont=0,num_caustic_tanks=0),0,ct_curb_concrete) -> 0 | D50: cy | E50: NA | G50: NA | I50: =IF(C50=0,"NA",VLOOKUP(0,conc_basin_cost_cl,3)) -> NA | J50: =IF(C50=0,"--",IF(I50="contact vendor","--",C50*I50)) -> -- | K50: =IF(C50=0,"NA",VLOOKUP(0,conc_basin_cost_cl,IF(ss_cat="large",4,5))) -> NA | M50: =$B$28&" - "&$B$49&" - "&B50 -> Tanks and Mixers - Secondary Containment for Storage Tanks - Concrete Curbing | N50: 1 | O50: 1 | P50: 1 | Q50: 1 | R50: 1 | S50: 1 | T50: 1 | U50: 1 | V50: 1 | W50: 0 | X50: 0
A51: 1.5.2 | B51: Chemical Resistant Coating | C51: =IF(OR(include_sec_cont=0,num_caustic_tanks=0),0,ct_coating_gal) -> 0 | D51: gal | E51: NA | G51: NA | I51: =IF(C51=0,"NA",VLOOKUP(0,conc_coating_cost_cl,3)) -> NA | J51: =IF(C51=0,"--",IF(I51="contact vendor","--",C51*I51)) -> -- | K51: =IF(C51=0,"NA",VLOOKUP(0,conc_coating_cost_cl,IF(ss_cat="large",4,5))) -> NA | M51: =$B$28&" - "&$B$49&" - "&B51 -> Tanks and Mixers - Secondary Containment for Storage Tanks - Chemical Resistant Coating | N51: 1 | O51: 1 | P51: 1 | Q51: 1 | R51: 1 | S51: 1 | T51: 1 | U51: 1 | V51: 1 | W51: 0 | X51: 0
A52: 1.6 | B52: Secondary Containment for Day Tanks | W52: =IF(ISERROR(K52*L52),0,IF(K52<1,0,L52)) -> 0 | X52: =IF(W52,J52/K52,0) -> 0
A53: 1.6.1 | B53: Concrete Curbing | C53: =IF(OR(include_sec_cont=0,day_tanks=0),0,dt_curb_concrete) -> 0 | D53: cy | E53: NA | G53: NA | I53: =IF(C53=0,"NA",VLOOKUP(0,conc_basin_cost_cl,3)) -> NA | J53: =IF(C53=0,"--",IF(I53="contact vendor","--",C53*I53)) -> -- | K53: =IF(C53=0,"NA",VLOOKUP(0,conc_basin_cost_cl,IF(ss_cat="large",4,5))) -> NA | M53: =$B$28&" - "&$B$52&" - "&B53 -> Tanks and Mixers - Secondary Containment for Day Tanks - Concrete Curbing | N53: 1 | O53: 1 | P53: 1 | Q53: 1 | R53: 1 | S53: 1 | T53: 1 | U53: 1 | V53: 1 | W53: 0 | X53: 0
A54: 1.6.2 | B54: Chemical Resistant Coating | C54: =IF(OR(include_sec_cont=0,day_tanks=0),0,dt_coating_gal) -> 0 | D54: gal | E54: NA | G54: NA | I54: =IF(C54=0,"NA",VLOOKUP(0,conc_coating_cost_cl,3)) -> NA | J54: =IF(C54=0,"--",IF(I54="contact vendor","--",C54*I54)) -> -- | K54: =IF(C54=0,"NA",VLOOKUP(0,conc_coating_cost_cl,IF(ss_cat="large",4,5))) -> NA | M54: =$B$28&" - "&$B$52&" - "&B54 -> Tanks and Mixers - Secondary Containment for Day Tanks - Chemical Resistant Coating | N54: 1 | O54: 1 | P54: 1 | Q54: 1 | R54: 1 | S54: 1 | T54: 1 | U54: 1 | V54: 1 | W54: 0 | X54: 0
A55: 1.7 | B55: Secondary Containment for Containerized Storage | W55: =IF(ISERROR(K55*L55),0,IF(K55<1,0,L55)) -> 0 | X55: =IF(W55,J55/K55,0) -> 0
A56: 1.7.1 | B56: Concrete Curbing | C56: =IF(OR(include_sec_cont=0,active_chem_containers=0),0,drum_curb_concrete) -> 1 | D56: cy | E56: NA | G56: NA | I56: =IF(C56=0,"NA",VLOOKUP(0,conc_basin_cost_cl,3)) -> 739.6055887 | J56: =IF(C56=0,"--",IF(I56="contact vendor","--",C56*I56)) -> 739.6055887 | K56: =IF(C56=0,"NA",VLOOKUP(0,conc_basin_cost_cl,IF(ss_cat="large",4,5))) -> 37 | L56: 1 | M56: =$B$28&" - "&$B$55&" - "&B56 -> Tanks and Mixers - Secondary Containment for Containerized Storage - Concrete Curbing | N56: 1 | O56: 1 | P56: 1 | Q56: 1 | R56: 1 | S56: 1 | T56: 1 | U56: 1 | V56: 1 | W56: 1 | X56: 19.98934024
A57: 1.7.2 | B57: Chemical Resistant Coating | C57: =IF(OR(include_sec_cont=0,active_chem_containers=0),0,drum_coating_gal) -> 1 | D57: gal | E57: NA | G57: NA | I57: =IF(C57=0,"NA",VLOOKUP(0,conc_coating_cost_cl,3)) -> 389.13 | J57: =IF(C57=0,"--",IF(I57="contact vendor","--",C57*I57)) -> 389.13 | K57: =IF(C57=0,"NA",VLOOKUP(0,conc_coating_cost_cl,IF(ss_cat="large",4,5))) -> 10 | L57: 1 | M57: =$B$28&" - "&$B$55&" - "&B57 -> Tanks and Mixers - Secondary Containment for Containerized Storage - Chemical Resistant Coating | N57: 1 | O57: 1 | P57: 1 | Q57: 1 | R57: 1 | S57: 1 | T57: 1 | U57: 1 | V57: 1 | W57: 1 | X57: 38.913
A58: 2 | B58: Piping | W58: 0 | X58: 0
A59: 2.1 | B59: Caustic Piping | W59: 0 | X59: 0
A60: 2.1.1 | B60: CPVC | C60: =caust_pipe_length -> 110 | D60: lf | E60: =caustic_pipe_diam -> 0.5 | F60: in. diam | G60: =IF(curve=1,caustic_pipe_diam,VLOOKUP(caustic_pipe_diam,cpvc_pipe_cost_cl,2)) -> 0.5 | H60: in. diam | I60: =IF(curve=1,cpvc_pipe_eq_caustic,VLOOKUP(caustic_pipe_diam,cpvc_pipe_cost_cl,3)) -> 2.593344082 | J60: =IF(I60="contact vendor","--",C60*I60) -> 285.2678491 | K60: =IF(C60=0,"NA",VLOOKUP(E60,cpvc_pipe_cost_cl,IF(ss_cat="large",4,5))) -> 17 | L60: 0 | M60: =$B$59&" - "&B60 -> Caustic Piping - CPVC | N60: 2 | O60: 1 | P60: 2 | Q60: 2 | R60: 1 | S60: 2 | T60: 2 | U60: 1 | V60: 2 | W60: 0 | X60: 0
A61: 2.1.1 | B61: PVC | C61: =caust_pipe_length -> 110 | D61: lf | E61: =caustic_pipe_diam -> 0.5 | F61: in. diam | G61: =IF(curve=1,caustic_pipe_diam,VLOOKUP(caustic_pipe_diam,pvc_pipe_cost_cl,2)) -> 0.5 | H61: in. diam | I61: =IF(curve=1,pvc_pipe_eq_caustic,VLOOKUP(caustic_pipe_diam,pvc_pipe_cost_cl,3)) -> 1.852484879 | J61: =IF(I61="contact vendor","--",C61*I61) -> 203.7733367 | K61: =IF(C61=0,"NA",VLOOKUP(E61,pvc_pipe_cost_cl,IF(ss_cat="large",4,5))) -> 17 | L61: 1 | M61: =$B$59&" - "&B61 -> Caustic Piping - PVC | N61: 1 | O61: 2 | P61: 3 | Q61: 1 | R61: 2 | S61: 3 | T61: 1 | U61: 2 | V61: 3 | W61: 1 | X61: 11.98666686
A62: 2.1.1 | B62: Stainless Steel | C62: =caust_pipe_length -> 110 | D62: lf | E62: =caustic_pipe_diam -> 0.5 | F62: in. diam | G62: =IF(curve=1,caustic_pipe_diam,VLOOKUP(caustic_pipe_diam,ss_pipe_cost_cl,2)) -> 0.5 | H62: in. diam | I62: =IF(curve=1,ss_pipe_eq_caustic,VLOOKUP(caustic_pipe_diam,ss_pipe_cost_cl,3)) -> 16.35807022 | J62: =IF(I62="contact vendor","--",C62*I62) -> 1799.387724 | K62: =IF(C62=0,"NA",VLOOKUP(E62,ss_pipe_cost_cl,IF(ss_cat="large",4,5))) -> 40 | L62: 0 | M62: =$B$59&" - "&B62 -> Caustic Piping - Stainless Steel | N62: 3 | O62: 3 | P62: 1 | Q62: 3 | R62: 3 | S62: 1 | T62: 3 | U62: 3 | V62: 1 | W62: 0 | X62: 0
A63: 3 | B63: Valves and Fittings | W63: 0 | X63: 0
A64: 3.1 | B64: Motor/Air Operated (on/off) | W64: 0 | X64: 0
A65: 3.1.1 | B65: Caustic line - Polypropylene/PVC | C65: =tot_caustic_MOVs -> 4 | D65: units | E65: =IF(C65=0,"NA",caustic_valve_size) -> 0.5 | F65: =IF(C65=0,"","in. diam") -> in. diam | G65: =IF(C65=0,"NA",IF(curve=1,caustic_valve_size,VLOOKUP(caustic_valve_size,pp_mov_cost_cl,2))) -> 0.5 | H65: =IF(C65=0,"","in. diam") -> in. diam | I65: =IF(C65=0,"NA",IF(curve=1,pp_mov_eq_caustic,VLOOKUP(caustic_valve_size,pp_mov_cost_cl,3))) -> 656.0631953 | J65: =IF(C65=0,"--",IF(I65="contact vendor","--",C65*I65)) -> 2624.252781 | K65: =IF(C65=0,"NA",VLOOKUP(E65,pp_mov_cost_cl,IF(ss_cat="large",4,5))) -> 20 | L65: 1 | M65: =$B$64&" "&$B$63&" - "&B65 -> Motor/Air Operated (on/off) Valves and Fittings - Caustic line - Polypropylene/PVC | N65: 1 | O65: 2 | P65: 2 | Q65: 1 | R65: 2 | S65: 2 | T65: 1 | U65: 2 | V65: 2 | W65: 1 | X65: 131.2126391
A66: 3.1.1 | B66: Caustic line - Stainless Steel | C66: =tot_caustic_MOVs -> 4 | D66: units | E66: =IF(C66=0,"NA",caustic_valve_size) -> 0.5 | F66: =IF(C66=0,"","in. diam") -> in. diam | G66: =IF(C66=0,"NA",IF(curve=1,caustic_valve_size,VLOOKUP(caustic_valve_size,ss_mov_cost_cl,2))) -> 0.5 | H66: =IF(C66=0,"","in. diam") -> in. diam | I66: =IF(C66=0,"NA",IF(curve=1,ss_mov_eq_caustic,VLOOKUP(caustic_valve_size,ss_mov_cost_cl,3))) -> 1419.488948 | J66: =IF(C66=0,"--",IF(I66="contact vendor","--",C66*I66)) -> 5677.95579 | K66: =IF(C66=0,"NA",VLOOKUP(E66,ss_mov_cost_cl,IF(ss_cat="large",4,5))) -> 20 | L66: 0 | M66: =$B$64&" "&$B$63&" - "&B66 -> Motor/Air Operated (on/off) Valves and Fittings - Caustic line - Stainless Steel | N66: 2 | O66: 1 | P66: 1 | Q66: 2 | R66: 1 | S66: 1 | T66: 2 | U66: 1 | V66: 1 | W66: 0 | X66: 0
A67: 3.2 | B67: Manual | W67: 0 | X67: 0
A68: 3.2.1 | B68: Caustic line - Polypropylene/PVC | C68: =tot_caustic_man -> 0 | D68: units | E68: =IF(C68=0,"NA",caustic_valve_size) -> NA | F68: =IF(C68=0,"","in. diam") ->  | G68: =IF(C68=0,"NA",IF(curve=1,caustic_valve_size,VLOOKUP(caustic_valve_size,pp_man_cost_cl,2))) -> NA | H68: =IF(C68=0,"","in. diam") ->  | I68: =IF(C68=0,"NA",IF(curve=1,pp_man_eq_caustic,VLOOKUP(caustic_valve_size,pp_man_cost_cl,3))) -> NA | J68: =IF(C68=0,"--",IF(I68="contact vendor","--",C68*I68)) -> -- | K68: =IF(C68=0,"NA",VLOOKUP(E68,pp_man_cost_cl,IF(ss_cat="large",4,5))) -> NA | M68: =$B$67&" "&$B$63&" - "&B68 -> Manual Valves and Fittings - Caustic line - Polypropylene/PVC | N68: 1 | O68: 2 | P68: 2 | Q68: 1 | R68: 2 | S68: 2 | T68: 1 | U68: 2 | V68: 2 | W68: 0 | X68: 0
A69: 3.2.1 | B69: Caustic line - Stainless Steel | C69: =tot_caustic_man -> 0 | D69: units | E69: =IF(C69=0,"NA",caustic_valve_size) -> NA | F69: =IF(C69=0,"","in. diam") ->  | G69: =IF(C69=0,"NA",IF(curve=1,caustic_valve_size,VLOOKUP(caustic_valve_size,ss_man_cost_cl,2))) -> NA | H69: =IF(C69=0,"","in. diam") ->  | I69: =IF(C69=0,"NA",IF(curve=1,ss_man_eq_caustic,VLOOKUP(caustic_valve_size,ss_man_cost_cl,3))) -> NA | J69: =IF(C69=0,"--",IF(I69="contact vendor","--",C69*I69)) -> -- | K69: =IF(C69=0,"NA",VLOOKUP(E69,ss_man_cost_cl,IF(ss_cat="large",4,5))) -> NA | M69: =$B$67&" "&$B$63&" - "&B69 -> Manual Valves and Fittings - Caustic line - Stainless Steel | N69: 2 | O69: 1 | P69: 1 | Q69: 2 | R69: 1 | S69: 1 | T69: 2 | U69: 1 | V69: 1 | W69: =IF(ISERROR(K69*L69),0,IF(K69<1,0,L69)) -> 0 | X69: =IF(W69,J69/K69,0) -> 0
A70: 3.3 | B70: Check Valves | W70: 0 | X70: 0
A71: 3.3.1 | B71: Caustic line - Polypropylene/PVC | C71: =tot_caustic_chv -> 4 | D71: units | E71: =caustic_valve_size -> 0.5 | F71: in. diam | G71: =IF(caustic_valve_size=0,0,IF(curve=1,caustic_valve_size,VLOOKUP(caustic_valve_size,pp_chv_cost_cl,2))) -> 0.5 | H71: =IF(C71=0,"","in. diam") -> in. diam | I71: =IF(curve=1,pp_chv_eq_caustic,VLOOKUP(caustic_valve_size,pp_chv_cost_cl,3)) -> 76.11900968 | J71: =IF(I71="contact vendor","--",C71*I71) -> 304.4760387 | K71: =IF(C71=0,"NA",VLOOKUP(E71,pp_chv_cost_cl,IF(ss_cat="large",4,5))) -> 20 | L71: 1 | M71: =$B$70&" - "&B71 -> Check Valves - Caustic line - Polypropylene/PVC | N71: 1 | O71: 2 | P71: 2 | Q71: 1 | R71: 2 | S71: 2 | T71: 1 | U71: 2 | V71: 2 | W71: 1 | X71: 15.22380194
A72: 3.3.1 | B72: Caustic line - Stainless Steel | C72: =tot_caustic_chv -> 4 | D72: units | E72: =caustic_valve_size -> 0.5 | F72: in. diam | G72: =IF(caustic_valve_size=0,0,IF(curve=1,caustic_valve_size,VLOOKUP(caustic_valve_size,ss_chv_cost_cl,2))) -> 0.5 | H72: =IF(C72=0,"","in. diam") -> in. diam | I72: =IF(curve=1,ss_chv_eq_caustic,VLOOKUP(caustic_valve_size,ss_chv_cost_cl,3)) -> 218.4037498 | J72: =IF(I72="contact vendor","--",C72*I72) -> 873.614999 | K72: =IF(C72=0,"NA",VLOOKUP(E72,ss_chv_cost_cl,IF(ss_cat="large",4,5))) -> 20 | L72: 0 | M72: =$B$70&" - "&B72 -> Check Valves - Caustic line - Stainless Steel | N72: 2 | O72: 1 | P72: 1 | Q72: 2 | R72: 1 | S72: 1 | T72: 2 | U72: 1 | V72: 1 | W72: 0 | X72: 0
A73: 4 | B73: Pumps | W73: 0 | X73: 0
A74: 4.1 | B74: Caustic Metering | W74: 0 | X74: 0
A75: 4.1.1 | B75: PVC - Motor Driven | C75: =pump_chem_caustic -> 2 | D75: units | E75: =IF(C75=0,"NA",cm_pump_rating) -> 0.13 | F75: =IF(C75=0,"","gph") -> gph | G75: =IF(C75=0,"NA",IF(curve=1,cm_pump_rating,VLOOKUP(cm_pump_rating,pvc_mmpump_cost_cl,2))) -> 0.13 | H75: =IF(C75=0,"","gph") -> gph | I75: =IF(C75=0,"NA",IF(curve=1,pvc_mmpump_eq_caustic,VLOOKUP(cm_pump_rating,pvc_mmpump_cost_cl,3))) -> 3008.169431 | J75: =IF(C75=0,0,IF(I75="contact vendor","--",C75*I75)) -> 6016.338862 | K75: =IF(C75=0,"NA",VLOOKUP(E75,pvc_mmpump_cost_cl,IF(ss_cat="large",4,5))) -> 17 | L75: 0 | M75: =$B$73&" - "&$B$74&" - "&B75 -> Pumps - Caustic Metering - PVC - Motor Driven | N75: 3 | O75: 3 | P75: 2 | Q75: 4 | R75: 4 | S75: 1 | T75: 4 | U75: 4 | V75: 1 | W75: 0 | X75: 0
A76: 4.1.1 | B76: Stainless Steel - Motor Driven | C76: =pump_chem_caustic -> 2 | D76: units | E76: =IF(C76=0,"NA",cm_pump_rating) -> 0.13 | F76: =IF(C76=0,"","gph") -> gph | G76: =IF(C76=0,"NA",IF(curve=1,cm_pump_rating,VLOOKUP(cm_pump_rating,ss_mmpump_cost_cl,2))) -> 0.13 | H76: =IF(C76=0,"","gph") -> gph | I76: =IF(C75=0,"NA",IF(curve=1,ss_mmpump_eq_caustic,VLOOKUP(cm_pump_rating,ss_mmpump_cost_cl,3))) -> 3438.717763 | J76: =IF(C76=0,0,IF(I76="contact vendor","--",C76*I76)) -> 6877.435526 | K76: =IF(C76=0,"NA",VLOOKUP(E76,ss_mmpump_cost_cl,IF(ss_cat="large",4,5))) -> 17 | L76: 0 | M76: =$B$73&" - "&$B$74&" - "&B76 -> Pumps - Caustic Metering - Stainless Steel - Motor Driven | N76: 4 | O76: 4 | P76: 1 | Q76: 3 | R76: 3 | S76: 2 | T76: 3 | U76: 3 | V76: 2 | W76: 0 | X76: 0
A77: 4.1.1 | B77: PVC - Electric | C77: =pump_chem_caustic -> 2 | D77: units | E77: =IF(C77=0,"NA",cm_pump_rating) -> 0.13 | F77: =IF(C77=0,"","gph") -> gph | G77: =IF(C77=0,"NA",IF(curve=1,cm_pump_rating,VLOOKUP(cm_pump_rating,pvc_empump_cost_cl,2))) -> 0.13 | H77: =IF(C77=0,"","gph") -> gph | I77: =IF(C75=0,"NA",IF(curve=1,pvc_empump_eq_caustic,VLOOKUP(cm_pump_rating,pvc_empump_cost_cl,3))) -> 1156.17085 | J77: =IF(C77=0,0,IF(I77="contact vendor","--",C77*I77)) -> 2312.3417 | K77: =IF(C77=0,"NA",VLOOKUP(E77,pvc_empump_cost_cl,IF(ss_cat="large",4,5))) -> 15 | L77: 1 | M77: =$B$73&" - "&$B$74&" - "&B77 -> Pumps - Caustic Metering - PVC - Electric | N77: 1 | O77: 2 | P77: 4 | Q77: 1 | R77: 2 | S77: 4 | T77: 1 | U77: 2 | V77: 4 | W77: 1 | X77: 154.1561133
A78: 4.1.1 | B78: Stainless Steel - Electric | C78: =pump_chem_caustic -> 2 | D78: units | E78: =IF(C78=0,"NA",cm_pump_rating) -> 0.13 | F78: =IF(C78=0,"","gph") -> gph | G78: =IF(C78=0,"NA",IF(curve=1,cm_pump_rating,VLOOKUP(cm_pump_rating,ss_empump_cost_cl,2))) -> 0.13 | H78: =IF(C78=0,"","gph") -> gph | I78: =IF(C75=0,"NA",IF(curve=1,ss_empump_eq_caustic,VLOOKUP(cm_pump_rating,ss_empump_cost_cl,3))) -> 1729.497108 | J78: =IF(C78=0,0,IF(I78="contact vendor","--",C78*I78)) -> 3458.994216 | K78: =IF(C78=0,"NA",VLOOKUP(E78,ss_empump_cost_cl,IF(ss_cat="large",4,5))) -> 15 | L78: 0 | M78: =$B$73&" - "&$B$74&" - "&B78 -> Pumps - Caustic Metering - Stainless Steel - Electric | N78: 2 | O78: 1 | P78: 3 | Q78: 2 | R78: 1 | S78: 3 | T78: 2 | U78: 1 | V78: 3 | W78: 0 | X78: 0
A79: 4.2 | B79: =IF(xfer_pump_approach=2,"Transfer Pumps (supply and return)","Transfer/Recirculation Pumps") -> Transfer/Recirculation Pumps | C79: =xfer_pumps -> 0 | D79: units | E79: =IF(C79=0,"NA",xfer_pump_rating) -> NA | F79: =IF(C79=0,"","gph") ->  | G79: =IF(C79=0,"NA",IF(curve=1,xfer_pump_rating,VLOOKUP(xfer_pump_rating,chem_pump_cost_cl,2))) -> NA | H79: =IF(C79=0,"","gph") ->  | I79: =IF(C79=0,"NA",IF(curve=1,xfer_pump_eq,VLOOKUP(mixer_size,chem_pump_cost_cl,3))) -> NA | J79: =IF(C79=0,"--",IF(I79="contact vendor","--",C79*I79)) -> -- | K79: =IF(C79=0,"NA",VLOOKUP(xfer_pump_rating,chem_pump_cost_cl,IF(ss_cat="large",4,5))) -> NA | M79: =$B$73&" - "&B79 -> Pumps - Transfer/Recirculation Pumps | N79: 1 | O79: 1 | P79: 1 | Q79: 1 | R79: 1 | S79: 1 | T79: 1 | U79: 1 | V79: 1 | W79: 0 | X79: 0
A80: 5 | B80: Mixers | W80: 0 | X80: 0
A81: 5.1 | B81: Inline Static Mixers | W81: 0 | X81: 0
A82: 5.1.1 | B82: Plastic | C82: =tot_in_mix -> 1 | D82: units | E82: =IF(tot_in_mix=0,"NA",mixer_size) -> 1.5 | F82: =IF(tot_in_mix=0,"","in. diam") -> in. diam | G82: =IF(tot_in_mix=0,"NA",IF(curve=1,mixer_size,VLOOKUP(mixer_size,pl_in_mix_cost_cl,2))) -> 1.5 | H82: =IF(tot_in_mix=0,"","in. diam") -> in. diam | I82: =IF(tot_in_mix=0,"NA",IF(curve=1,pl_in_mix_eq,VLOOKUP(mixer_size,pl_in_mix_cost_cl,3))) -> 555.7061717 | J82: =IF(tot_in_mix=0,"--",IF(I82="contact vendor","--",C82*I82)) -> 555.7061717 | K82: =IF(C82=0,"NA",VLOOKUP(E82,pl_in_mix_cost_cl,IF(ss_cat="large",4,5))) -> 22 | L82: 1 | M82: =$B$80&" - "&$B$81&" - "&B82 -> Mixers - Inline Static Mixers - Plastic | N82: 1 | O82: 2 | P82: 2 | Q82: 1 | R82: 2 | S82: 2 | T82: 1 | U82: 2 | V82: 2 | W82: 1 | X82: 25.25937144
A83: 5.1.1 | B83: Stainless Steel | C83: =tot_in_mix -> 1 | D83: units | E83: =IF(tot_in_mix=0,"NA",mixer_size) -> 1.5 | F83: =IF(tot_in_mix=0,"","in. diam") -> in. diam | G83: =IF(tot_in_mix=0,"NA",IF(curve=1,mixer_size,VLOOKUP(mixer_size,in_mix_cost_cl,2))) -> 1.5 | H83: =IF(tot_in_mix=0,"","in. diam") -> in. diam | I83: =IF(tot_in_mix=0,"NA",IF(curve=1,in_mix_eq,VLOOKUP(mixer_size,in_mix_cost_cl,3))) -> 1713.480068 | J83: =IF(tot_in_mix=0,"--",IF(I83="contact vendor","--",C83*I83)) -> 1713.480068 | K83: =IF(C83=0,"NA",VLOOKUP(E83,in_mix_cost_cl,IF(ss_cat="large",4,5))) -> 22 | L83: 0 | M83: =$B$80&" - "&$B$81&" - "&B83 -> Mixers - Inline Static Mixers - Stainless Steel | N83: 2 | O83: 1 | P83: 1 | Q83: 2 | R83: 1 | S83: 1 | T83: 2 | U83: 1 | V83: 1 | W83: 0 | X83: 0
A84: 6 | B84: Instrumentation | W84: 0 | X84: 0
A85: 6.1 | B85: High/Low Alarm (for caustic tanks) | C85: =tot_chem_alarm -> 1 | D85: units | E85: NA | G85: NA | I85: =VLOOKUP(0,alarm_cost_cl,3) -> 600.1870767 | J85: =IF(I85="contact vendor","--",C85*I85) -> 600.1870767 | K85: =VLOOKUP(0,alarm_cost_cl,IF(ss_cat="large",4,5)) -> 14 | L85: 1 | M85: =B85 -> High/Low Alarm (for caustic tanks) | N85: 1 | O85: 1 | P85: 1 | Q85: 1 | R85: 1 | S85: 1 | T85: 1 | U85: 1 | V85: 1 | W85: 1 | X85: 42.87050548
A86: 6.2 | B86: pH Meters | C86: =pH_controls -> 2 | D86: units | E86: NA | G86: NA | I86: =VLOOKUP(0,pH_meter_cost_cl,3) -> 3047.115548 | J86: =IF(I86="contact vendor","--",C86*I86) -> 6094.231096 | K86: =IF(C86=0,"NA",VLOOKUP(0,pH_meter_cost_cl,IF(ss_cat="large",4,5))) -> 14 | L86: 1 | M86: =B86 -> pH Meters | N86: 1 | O86: 1 | P86: 1 | Q86: 1 | R86: 1 | S86: 1 | T86: 1 | U86: 1 | V86: 1 | W86: 1 | X86: 435.3022211
A87: 7 | B87: System Controls | W87: 0 | X87: 0
A88: 7.1 | B88: PLC Units | W88: 0 | X88: 0
A89: 7.1.1 | B89: I/O discrete input modules | C89: =IF(manual=1,0,plc_discrete_input) -> 1 | D89: units | E89: NA | G89: NA | I89: =IF(manual=1,"NA",VLOOKUP(0,plc_discrete_input_cost_cl,3)) -> 382.68 | J89: =IF(I89="contact vendor","--",IF(manual=1,0,C89*I89)) -> 382.68 | K89: =IF(manual=1,"NA",VLOOKUP(0,plc_discrete_input_cost_cl,IF(ss_cat="large",4,5))) -> 8 | L89: 1 | M89: =$B$87&" - "&$B$88&" - "&B89 -> System Controls - PLC Units - I/O discrete input modules | N89: 1 | O89: 1 | P89: 1 | Q89: 1 | R89: 1 | S89: 1 | T89: 1 | U89: 1 | V89: 1 | W89: 1 | X89: 47.835
A90: 7.1.2 | B90: I/O discrete output modules | C90: =IF(manual=1,0,plc_discrete_output) -> 1 | D90: units | E90: NA | G90: NA | I90: =IF(manual=1,"NA",VLOOKUP(0,plc_discrete_output_cost_cl,3)) -> 340.425 | J90: =IF(I90="contact vendor","--",IF(manual=1,0,C90*I90)) -> 340.425 | K90: =IF(manual=1,"NA",VLOOKUP(0,plc_discrete_output_cost_cl,IF(ss_cat="large",4,5))) -> 8 | L90: 1 | M90: =$B$87&" - "&$B$88&" - "&B90 -> System Controls - PLC Units - I/O discrete output modules | N90: 1 | O90: 1 | P90: 1 | Q90: 1 | R90: 1 | S90: 1 | T90: 1 | U90: 1 | V90: 1 | W90: 1 | X90: 42.553125
A91: 7.1.3 | B91: I/O combination analog modules | C91: =IF(manual=1,0,plc_combination_analog) -> 1 | D91: units | E91: NA | G91: NA | I91: =IF(manual=1,"NA",VLOOKUP(0,plc_combination_analog_cost_cl,3)) -> 557.335 | J91: =IF(I91="contact vendor","--",IF(manual=1,0,C91*I91)) -> 557.335 | K91: =IF(manual=1,"NA",VLOOKUP(0,plc_combination_analog_cost_cl,IF(ss_cat="large",4,5))) -> 8 | L91: 1 | M91: =$B$87&" - "&$B$88&" - "&B91 -> System Controls - PLC Units - I/O combination analog modules | N91: 1 | O91: 1 | P91: 1 | Q91: 1 | R91: 1 | S91: 1 | T91: 1 | U91: 1 | V91: 1 | W91: 1 | X91: 69.666875
A92: 7.1.4 | B92: Base expansion modules | C92: =IF(manual=1,0,plc_base_expansion) -> 1 | D92: units | E92: NA | G92: NA | I92: =IF(manual=1,"NA",VLOOKUP(0,plc_base_expansion_cost_cl,3)) -> 142.67 | J92: =IF(I92="contact vendor","--",IF(manual=1,0,C92*I92)) -> 142.67 | K92: =IF(manual=1,"NA",VLOOKUP(0,plc_base_expansion_cost_cl,IF(ss_cat="large",4,5))) -> 8 | L92: 1 | M92: =$B$87&" - "&$B$88&" - "&B92 -> System Controls - PLC Units - Base expansion modules | N92: 1 | O92: 1 | P92: 1 | Q92: 1 | R92: 1 | S92: 1 | T92: 1 | U92: 1 | V92: 1 | W92: 1 | X92: 17.83375
A93: 7.1.5 | B93: Base expansion controller modules | C93: =IF(manual=1,0,plc_base_expansion_controller) -> 1 | D93: units | E93: NA | G93: NA | I93: =IF(C93=0,"NA",VLOOKUP(0,plc_base_expansion_controller_cost_cl,3)) -> 107.74 | J93: =IF(OR(C93=0,I93="contact vendor"),"--",C93*I93) -> 107.74 | K93: =IF(C93=0,"NA",VLOOKUP(0,plc_base_expansion_controller_cost_cl,IF(ss_cat="large",4,5))) -> 8 | L93: 1 | M93: =$B$87&" - "&$B$88&" - "&B93 -> System Controls - PLC Units - Base expansion controller modules | N93: 1 | O93: 1 | P93: 1 | Q93: 1 | R93: 1 | S93: 1 | T93: 1 | U93: 1 | V93: 1 | W93: =IF(ISERROR(K93*L93),0,IF(K93<1,0,L93)) -> 1 | X93: =IF(W93,J93/K93,0) -> 13.4675
A94: 7.2 | B94: Operator Equipment | W94: 0 | X94: 0
A95: 7.2.1 | B95: Drive controllers | C95: =IF(manual=1,0,tot_switches) -> 2 | D95: units | E95: NA | G95: NA | I95: =IF(manual=1,"NA",VLOOKUP(0,switch_cost_cl,3)) -> 1300.897873 | J95: =IF(I95="contact vendor","--",IF(manual=1,0,C95*I95)) -> 2601.795745 | K95: =IF(C95=0,"NA",VLOOKUP(0,switch_cost_cl,IF(ss_cat="large",4,5))) -> 14 | L95: 1 | M95: =$B$87&" - "&$B$94&" - "&B95 -> System Controls - Operator Equipment - Drive controllers | N95: 1 | O95: 1 | P95: 1 | Q95: 1 | R95: 1 | S95: 1 | T95: 1 | U95: 1 | V95: 1 | W95: 1 | X95: 185.8425532
A96: 8 | B96: Building Structures and HVAC | W96: 0 | X96: 0
A97: 8.1 | B97: Building 1 | W97: 0 | X97: 0
A98: 8.1.1 | B98: Small Low Cost Shed | C98: =IF(AND(build1_fp>0,build1_fp<500),1,0) -> 1 | D98: units | E98: =build1_fp -> 50 | F98: sf | G98: =build1_fp -> 50 | H98: sf | I98: =IF(C98=0,"NA",VLOOKUP(build1_fp,bldg_shed_cost_cl,3)) -> 50.74228944 | J98: =IF(OR(I98="NA",I98="contact vendor"),"--",G98*I98) -> 2537.114472 | K98: =IF($C98=0,"N/A",VLOOKUP(build1_fp,bldg_shed_cost_cl,IF(ss_cat="large",4,5))) -> 20 | L98: 1 | M98: =$B$96&" - "&$B$97&" - "&B98 -> Building Structures and HVAC - Building 1 - Small Low Cost Shed | N98: =IF(include_buildings=1,2,0) -> 2 | O98: 2 | P98: 2 | Q98: 2 | R98: 2 | S98: 2 | T98: 2 | U98: 2 | V98: 2 | W98: 1 | X98: 126.8557236 | Y98: =IF(W98,K98,0) -> 20
A99: 8.1.1 | B99: Low Quality | C99: =IF(build1_fp>=500,1,0) -> 0 | D99: units | E99: =build1_fp -> 50 | F99: sf | G99: =build1_fp -> 50 | H99: sf | I99: =IF(C99=0,"NA",IF(curve=1,bldg_lo_eq_1,VLOOKUP(build1_fp, bldg_lo_cost_cl,3))) -> NA | J99: =IF(OR(I99="NA",I99="contact vendor"),"--",G99*I99) -> -- | K99: =IF($C99=0,"N/A",VLOOKUP(build1_fp,bldg_lo_cost_cl,IF(ss_cat="large",4,5))) -> N/A | L99: 0 | M99: =$B$96&" - "&$B$97&" - "&B99 -> Building Structures and HVAC - Building 1 - Low Quality | N99: =include_buildings -> 1 | Q99: =include_buildings -> 1 | T99: =include_buildings -> 1 | W99: 0 | X99: 0 | Y99: =IF(W99,K99,0) -> 0
A100: 8.1.1 | B100: Medium Quality | C100: =IF(build1_fp>=500,1,0) -> 0 | D100: units | E100: =build1_fp -> 50 | F100: sf | G100: =build1_fp -> 50 | H100: sf | I100: =IF(C100=0,"NA",IF(curve=1,bldg_mid_eq_1,VLOOKUP(build1_fp, bldg_mid_cost_cl,3))) -> NA | J100: -- | K100: =IF($C100=0,"N/A",VLOOKUP(build1_fp,bldg_mid_cost_cl,IF(ss_cat="large",4,5))) -> N/A | L100: 0 | M100: =$B$96&" - "&$B$97&" - "&B100 -> Building Structures and HVAC - Building 1 - Medium Quality | O100: =include_buildings -> 1 | R100: =include_buildings -> 1 | U100: =include_buildings -> 1 | W100: 0 | X100: 0 | Y100: =IF(W100,K100,0) -> 0
A101: 8.1.1 | B101: High Quality | C101: =IF(build1_fp>=500,1,0) -> 0 | D101: units | E101: =build1_fp -> 50 | F101: sf | G101: =build1_fp -> 50 | H101: sf | I101: =IF(C101=0,"NA",IF(curve=1,bldg_hi_eq_1,VLOOKUP(build1_fp, bldg_hi_cost_cl,3))) -> NA | J101: -- | K101: =IF($C101=0,"N/A",VLOOKUP(build1_fp,bldg_hi_cost_cl,IF(ss_cat="large",4,5))) -> N/A | L101: 0 | M101: =$B$96&" - "&$B$97&" - "&B101 -> Building Structures and HVAC - Building 1 - High Quality | P101: =include_buildings -> 1 | S101: =include_buildings -> 1 | V101: =include_buildings -> 1 | W101: 0 | X101: 0 | Y101: =IF(W101,K101,0) -> 0
A102: 8.1.2 | B102: ="Heating System"&IF(build1_heat="heat pump"," (included with cooling system)","") -> Heating System | W102: =IF(ISERROR(K102*L102),0,IF(K102<1,0,L102)) -> 0 | X102: =IF(W102,J102/K102,0) -> 0
A103: 8.1.2.1 | B103: Electric resistance | C103: =IF(build1_heat="heat pump","NA",IF(build1_need_heat,build1_zones,"NA")) -> NA | D103: =IF(C103="NA","","zones") ->  | E103: =IF(C103="NA","NA",build1_heat_mbh) -> NA | F103: =IF(C103="NA","","MBH") ->  | G103: =IF(C103="NA","NA",IF(curve=1,build1_heat_mbh,VLOOKUP(build1_heat_mbh,hvac_elec_cost_cl,2))) -> NA | H103: =IF(C103="NA","","MBH") ->  | I103: =IF(C103="NA","NA",IF(curve=1,hvac_elec_eq_1,VLOOKUP(build1_heat_mbh,hvac_elec_cost_cl,3))) -> NA | J103: =IF(OR(I103="NA",I103="contact vendor"),"--",C103*I103) -> -- | K103: =IF(C103="NA","NA",VLOOKUP(build1_heat_mbh,hvac_elec_cost_cl,IF(ss_cat="large",4,5))) -> NA | M103: =$B$96&" - "&$B$97&" - "&B103 -> Building Structures and HVAC - Building 1 - Electric resistance | N103: =IF(include_HVAC=0,0,IF(build1_heat=$B103,1,"")) -> 0 | O103: 0 | P103: 0 | Q103: 0 | R103: 0 | S103: 0 | T103: 0 | U103: 0 | V103: 0 | W103: 0 | X103: 0
A104: 8.1.2.1 | B104: Natural gas non-condensing furnace | C104: =IF(build1_heat="heat pump","NA",IF(build1_need_heat,build1_zones,"NA")) -> NA | D104: =IF(C104="NA","","zones") ->  | E104: =IF(C104="NA","NA",build1_heat_mbh) -> NA | F104: =IF(C104="NA","","MBH") ->  | G104: =IF(C104="NA","NA",IF(curve=1,build1_heat_mbh,VLOOKUP(build1_heat_mbh,hvac_gas_non_cost_cl,2))) -> NA | H104: =IF(C104="NA","","MBH") ->  | I104: =IF(C104="NA","NA",IF(curve=1,hvac_gas_non_eq_1,VLOOKUP(build1_heat_mbh,hvac_gas_non_cost_cl,3))) -> NA | J104: =IF(OR(I104="NA",I104="contact vendor"),"--",C104*I104) -> -- | K104: =IF(C104="NA","NA",VLOOKUP(build1_heat_mbh,hvac_gas_non_cost_cl,IF(ss_cat="large",4,5))) -> NA | M104: =$B$96&" - "&$B$97&" - "&B104 -> Building Structures and HVAC - Building 1 - Natural gas non-condensing furnace | N104: 0 | O104: 0 | P104: 0 | Q104: 0 | R104: 0 | S104: 0 | T104: 0 | U104: 0 | V104: 0 | W104: 0 | X104: 0
A105: 8.1.2.1 | B105: Natural gas condensing furnace | C105: =IF(build1_heat="heat pump","NA",IF(build1_need_heat,build1_zones,"NA")) -> NA | D105: =IF(C105="NA","","zones") ->  | E105: =IF(C105="NA","NA",build1_heat_mbh) -> NA | F105: =IF(C105="NA","","MBH") ->  | G105: =IF(C105="NA","NA",IF(curve=1,build1_heat_mbh,VLOOKUP(build1_heat_mbh,hvac_gas_cost_cl,2))) -> NA | H105: =IF(C105="NA","","MBH") ->  | I105: =IF(C105="NA","NA",IF(curve=1,hvac_gas_eq_1,VLOOKUP(build1_heat_mbh,hvac_gas_cost_cl,3))) -> NA | J105: =IF(OR(I105="NA",I105="contact vendor"),"--",C105*I105) -> -- | K105: =IF(C105="NA","NA",VLOOKUP(build1_heat_mbh,hvac_gas_cost_cl,IF(ss_cat="large",4,5))) -> NA | M105: =$B$96&" - "&$B$97&" - "&B105 -> Building Structures and HVAC - Building 1 - Natural gas condensing furnace | N105: 0 | O105: 0 | P105: 0 | Q105: 0 | R105: 0 | S105: 0 | T105: 0 | U105: 0 | V105: 0 | W105: 0 | X105: 0
A106: 8.1.2.1 | B106: Standard efficiency oil furnace | C106: =IF(build1_heat="heat pump","NA",IF(build1_need_heat,build1_zones,"NA")) -> NA | D106: =IF(C106="NA","","zones") ->  | E106: =IF(C106="NA","NA",build1_heat_mbh) -> NA | F106: =IF(C106="NA","","MBH") ->  | G106: =IF(C106="NA","NA",IF(curve=1,build1_heat_mbh,VLOOKUP(E106,hvac_oil_std_cost_cl,2))) -> NA | H106: =IF(C106="NA","","MBH") ->  | I106: =IF(C106="NA","NA",IF(curve=1,hvac_oil_std_eq_1,VLOOKUP(build1_heat_mbh,hvac_oil_std_cost_cl,3))) -> NA | J106: =IF(OR(I106="NA",I106="contact vendor"),"--",C106*I106) -> -- | K106: =IF(C106="NA","NA",VLOOKUP(build1_heat_mbh,hvac_oil_std_cost_cl,IF(ss_cat="large",4,5))) -> NA | M106: =$B$96&" - "&$B$97&" - "&B106 -> Building Structures and HVAC - Building 1 - Standard efficiency oil furnace | N106: 0 | O106: 0 | P106: 0 | Q106: 0 | R106: 0 | S106: 0 | T106: 0 | U106: 0 | V106: 0 | W106: 0 | X106: 0
A107: 8.1.2.1 | B107: Mid-efficiency oil furnace | C107: =IF(build1_heat="heat pump","NA",IF(build1_need_heat,build1_zones,"NA")) -> NA | D107: =IF(C107="NA","","zones") ->  | E107: =IF(C107="NA","NA",build1_heat_mbh) -> NA | F107: =IF(C107="NA","","MBH") ->  | G107: =IF(C107="NA","NA",IF(curve=1,build1_heat_mbh,VLOOKUP(build1_heat_mbh,hvac_oil_mid_cost_cl,2))) -> NA | H107: =IF(C107="NA","","MBH") ->  | I107: =IF(C107="NA","NA",IF(curve=1,hvac_oil_mid_eq_1,VLOOKUP(build1_heat_mbh,hvac_oil_mid_cost_cl,3))) -> NA | J107: =IF(OR(I107="NA",I107="contact vendor"),"--",C107*I107) -> -- | K107: =IF(C107="NA","NA",VLOOKUP(build1_heat_mbh,hvac_oil_mid_cost_cl,IF(ss_cat="large",4,5))) -> NA | M107: =$B$96&" - "&$B$97&" - "&B107 -> Building Structures and HVAC - Building 1 - Mid-efficiency oil furnace | N107: 0 | O107: 0 | P107: 0 | Q107: 0 | R107: 0 | S107: 0 | T107: 0 | U107: 0 | V107: 0 | W107: 0 | X107: 0
A108: 8.1.3 | B108: =IF(build1_heat="heat pump","Heating and ","")&"Cooling System" -> Cooling System | W108: 0 | X108: 0
A109: 8.1.3.1 | B109: Air conditioner | C109: =IF(build1_need_cool,build1_zones,"NA") -> NA | D109: =IF(C109="NA","","zones") ->  | E109: =IF(C109="NA","NA",build1_cooling_tons) -> NA | F109: =IF(C109="NA","","tons") ->  | G109: =IF(C109="NA","NA",IF(curve=1,build1_cooling_tons,VLOOKUP(build1_cooling_tons,hvac_ac_cost_cl,2))) -> NA | H109: =IF(C109="NA","","tons") ->  | I109: =IF(C109="NA","NA",IF(curve=1,hvac_ac_eq_1,VLOOKUP(build1_cooling_tons,hvac_ac_cost_cl,3))) -> NA | J109: =IF(OR(I109="NA",I109="contact vendor"),"--",C109*I109) -> -- | K109: =IF(C109="NA","NA",VLOOKUP(build1_cooling_tons,hvac_ac_cost_cl,IF(ss_cat="large",4,5))) -> NA | M109: =$B$96&" - "&$B$97&" - "&B109 -> Building Structures and HVAC - Building 1 - Air conditioner | N109: =IF(include_HVAC=0,0,IF(build1_cool=$B109,1,"")) -> 0 | O109: 0 | P109: 0 | Q109: 0 | R109: 0 | S109: 0 | T109: 0 | U109: 0 | V109: 0 | W109: 0 | X109: 0
A110: 8.1.3.1 | B110: Heat pump | C110: =IF(AND(hp_ok_1,build1_need_cool),build1_zones,"NA") -> NA | D110: =IF(C110="NA","","zones") ->  | E110: =IF(C110="NA","NA",build1_cooling_tons) -> NA | F110: =IF(C110="NA","","tons") ->  | G110: =IF(C110="NA","NA",IF(curve=1,build1_cooling_tons,VLOOKUP(build1_cooling_tons,hvac_hp_cost_cl,2))) -> NA | H110: =IF(C110="NA","","tons") ->  | I110: =IF(C110="NA","NA",IF(curve=1,hvac_hp_eq_1,VLOOKUP(build1_cooling_tons,hvac_hp_cost_cl,3))) -> NA | J110: =IF(OR(I110="NA",I110="contact vendor"),"--",C110*I110) -> -- | K110: =IF(C110="NA","NA",VLOOKUP(build1_cooling_tons,hvac_hp_cost_cl,IF(ss_cat="large",4,5))) -> NA | M110: =$B$96&" - "&$B$97&" - "&B110 -> Building Structures and HVAC - Building 1 - Heat pump | N110: 0 | O110: 0 | P110: 0 | Q110: 0 | R110: 0 | S110: 0 | T110: 0 | U110: 0 | V110: 0 | W110: 0 | X110: 0
A111: 8.2 | B111: Concrete Pad | C111: 1 | D111: units | E111: =concrete -> 1 | F111: cy | G111: =concrete -> 1 | H111: cy | I111: =VLOOKUP(0,conc_pad_cost_cl,3) -> 492.75 | J111: =IF(I111="contact vendor","-",E111*I111) -> 492.75 | K111: =VLOOKUP(0,conc_pad_cost_cl,IF(ss_cat="large",4,5)) -> 37 | L111: 1 | M111: =$B$96&" - "&B111 -> Building Structures and HVAC - Concrete Pad | N111: =include_pad -> 1 | O111: 1 | P111: 1 | Q111: 1 | R111: 1 | S111: 1 | T111: 1 | U111: 1 | V111: 1 | W111: 1 | X111: 13.31756757
W112: direct_for_UL | X112: total_direct_depreciation | Y112: build_UL
A113: Total of direct line items above: | W113: =SUMPRODUCT(W27:W110,J27:J110) -> 20493.46401 | X113: =SUM(X27:X110) -> 1378.968186 | Y113: =MAX(Y98:Y101) -> 20
B114: Direct cost category | C114: Total | D114: Guidance
B115: Process costs | C115: =SUMPRODUCT(J28:J95,L28:L95) -> 17956.34953 | D115: Excludes alternate cost line items in italics, without a 1 in the "Use?" column. Includes installation, transportation, and O&P
B116: Building costs | C116: =SUMPRODUCT(J96:J111,L96:L111) -> 3029.864472 | D116: See input sheet to exclude buildings/HVAC; indirect assumptions sheet to exclude concrete pad
B117: Total direct capital cost | C117: =process_cost+building_cost -> 20986.21401 | D117: Total of process costs
A119: Add-on Cost Details (See indirect assumptions sheet to exclude individual add-on items)
B120: Add-on Line Item | C120: Total | D120: Guidance
B121: Permits | C121: =include_permits*permit_cost -> 216.45 | D121: For building permits
B122: Pilot Study | C122: 0 | D122: No pilot study needed for this technology
B123: Land Cost | C123: =include_land*land_required*land_cost -> 750.7000108 | D123: ="For "&TEXT(land_required,"#0.000")&" acres" -> For 0.035 acres
B124: Total add-on costs | C124: =SUM(C121:C123) -> 967.1500108
A126: Indirect Capital Cost Details (See indirect assumptions sheet to exclude individual indirect items)
B127: Indirect Line Item | C127: Total | D127: Percent | E127: Guidance
B128: Mobilization and Demobilization | C128: =(direct_cost+C130+C131+C132+C133+C134+C135+C136+C139)*D128 -> 1282.00154 | D128: =CHOOSE(ss_cat2,mob_pct_small,mob_pct_medium,mob_pct_large) -> 0.05
B129: Architectural Fees for Treatment Building | C129: =IF(ss_cat2=1,include_arch_small,include_arch)*D129*building_cost -> 0 | D129: =VLOOKUP(building_cost,architectural_table_cl,3) -> 0.09 | E129: Excluded by default for small systems
B130: Installation, Transportation, and O&P | C130: =direct_cost*D130 -> 0 | D130: =inst_pct -> 0
B131: Site Work | C131: =include_sitework*sitework_cost -> 759.5604396 | E131: Calculated based on system requirements.
B132: Yard Piping | C132: =0 -> 0 | E132: Not included in this technology
B133: Geotechnical | C133: =0 -> 0 | E133: Not included in this technology
B134: Standby Power | C134: =0 -> 0 | E134: Not included in this technology
B135: Electrical (including yard wiring) | C135: =process_cost*D135 -> 1795.634953 | D135: =elect_pct -> 0.1 | E135: Percentage is applied only to process cost. Building direct costs include electrical components.
B136: Instrumentation and Control | C136: =direct_cost*D136 -> 0 | D136: =i_c_pct -> 0
B137: Contingency | C137: =IF(component_level="",include_conting_low,IF(component_level=1,include_conting_medium,include_conting_high))*(direct_cost+addon_cost+SUM(C128:C136,C138:C143))*D137 -> 0 | D137: =IF(component_level="",include_conting_low,IF(component_level=1,include_conting_medium,include_conting_high))*VLOOKUP(direct_cost,contingency_table_cl,3)*complexity -> 0 | E137: Included for high cost systems only.
B138: Process Engineering | C138: =direct_cost*D138 -> 4197.242801 | D138: =CHOOSE(ss_cat2,eng_pct_small,eng_pct_medium,eng_pct_large) -> 0.2
B139: Miscellaneous Allowance | C139: =direct_cost*D139 -> 2098.621401 | D139: =misc_pct -> 0.1
B140: Legal, Fiscal, and Administrative | C140: =direct_cost*D140 -> 419.7242801 | D140: =legal_pct -> 0.02
B141: Sales Tax | C141: =direct_cost*D141 -> 0 | D141: =tax_pct -> 0
B142: Financing during Construction | C142: =direct_cost*D142 -> 0 | D142: =IF(ss_cat2=1,finance_pct_small,finance_pct) -> 0
B143: Construction Management and GC Overhead | C143: =cm_cost -> 2694.629878
B144: Total indirect capital cost | C144: =indirect_cost_mult*direct_cost+indirect_cost_add -> 13247.41529 | E144: Total of indirect line items
A146: TOTAL CAPITAL COST DETAILS
B147: Assumption | C147: Value | D147: Guidance
B148: City Index for Total Capital Cost | C148: 1 | D148: User adjustable. Can be used to adjust estimated costs to be more reflective of a specific geographical location
B150: Capital Cost Category | C150: Total
B151: Total Direct Capital Cost (from above) | C151: =direct_cost -> 20986.21401
B152: Total Add-on Cost (from above) | C152: =addon_cost -> 967.1500108
B153: Total Indirect Cost (from above) | C153: =C144 -> 13247.41529
B154: Grand total capital cost (incorporating city index) | C154: =(direct_cost*(1+SUM(cul_indir_mult_table))+SUM(cul_indir_add_table))*city_index -> 35200.77931
A156: Annual Operating and Maintenance Cost Details (items in italics, without a 1 in the "Use?" column, represent alternate costs and are excluded from total)
B157: Assumption | C157: Value | D157: Guidance
B158: City Index for Total O&M Cost | C158: 1 | D158: User adjustable. Can be used to adjust estimated costs to be more reflective of a specific geographical location
B160: Item | C160: Quantity | E160: Unit Cost | G160: Total Cost | H160: Use? | I160: Guidance
B161: Labor
B162: Manager | C162: =Manager_LOE -> 6.145833333 | D162: hrs/yr | E162: =VLOOKUP(design_flow,labor_table_cl,5) -> 50.6486631 | F162: /hr | G162: =E162*C162 -> 311.278242 | H162: =IF(C162=0,0,1) -> 1
B163: Administrative | C163: =Clerical_LOE -> 6.145833333 | D163: hrs/yr | E163: =VLOOKUP(design_flow,labor_table_cl,4) -> 34.16157754 | F163: /hr | G163: =E163*C163 -> 209.951362 | H163: =IF(C163=0,0,1) -> 1
B164: Operator | C164: =Operator_LOE -> 61.45833333 | D164: hrs/yr | E164: =VLOOKUP(design_flow,labor_table_cl,6) -> 32.90061497 | F164: /hr | G164: =E164*C164 -> 2022.016962 | H164: =IF(C164=0,0,1) -> 1 | I164: Includes labor for regular operations, maintenance, etc.
B165: Materials
B166: Building and HVAC maintenance (materials and labor) | C166: =total_fp -> 50 | D166: sf | E166: =G166/C166 -> 6.479028536 | F166: /sf/yr | G166: =bldg_maint_cost -> 323.9514268 | H166: 1
B167: Chemicals
B168: ="Sodium Hydroxide "&TEXT(NaOH_pct,"0%")&chem_purchase -> Sodium Hydroxide 25% - Small Qty | C168: =naoh_yr -> 1046.333333 | D168: lbs/yr | E168: =IF(NaOH_price_override="",VLOOKUP(B168,chem_cost_cl,3,FALSE),NaOH_price_override) -> 0.179783474 | F168: /lb | G168: =E168*C168 -> 188.1134416 | H168: 1
B169: Energy
B170: Energy for lighting | C170: =lighting -> 0.000921875 | D170: Mwh/yr | E170: =energy_cost_cl -> 0.1100175092 | F170: /kwh | G170: =E170*C170*1000 -> 0.1014223913 | H170: =IF(C170=0,0,1) -> 1
B171: Energy for ventilation | C171: =ventilation -> 0 | D171: Mwh/yr | E171: =energy_cost_cl -> 0.1100175092 | F171: /kwh | G171: =E171*C171*1000 -> 0 | H171: =IF(C171=0,0,1) -> 0
B172: Energy for cooling
B173: Air conditioning | C173: =cooling -> 0 | D173: Mwh/yr | E173: =energy_cost_cl -> 0.1100175092 | F173: /kwh | G173: =E173*C173*1000 -> 0 | H173: =IF(C173=0,0,1) -> 0
B174: Heat pump (cooling mode) | C174: =cooling_hp -> 0 | D174: Mwh/yr | E174: =energy_cost_cl -> 0.1100175092 | F174: /kwh | G174: =E174*C174*1000 -> 0 | H174: =IF(C174=0,0,1) -> 0
B175: Energy for heating
B176: Electric resistance | C176: =heating -> 0 | D176: Mwh/yr | E176: =energy_cost_cl -> 0.1100175092 | F176: /kwh | G176: =E176*C176*1000 -> 0 | H176: =IF(C176=0,0,1) -> 0
B177: Heat pump | C177: =heating_hp -> 0 | D177: Mwh/yr | E177: =energy_cost_cl -> 0.1100175092 | F177: /kwh | G177: =E177*C177*1000 -> 0 | H177: 0
B178: Natural gas non-condensing furnace | C178: =heating_gas_non -> 0 | D178: therms/yr | E178: =gas_cost_cl -> 0.5785614035 | F178: /therm | G178: =E178*C178 -> 0 | H178: 0
B179: Natural gas condensing furnace | C179: =heating_gas -> 0 | D179: therms/yr | E179: =gas_cost_cl -> 0.5785614035 | F179: /therm | G179: =E179*C179 -> 0 | H179: 0
B180: Standard efficiency oil furnace | C180: =heating_diesel_non -> 0 | D180: gal/yr | E180: =diesel_cost_cl -> 3.829500772 | F180: /gal | G180: =E180*C180 -> 0 | H180: 0
B181: Mid-efficiency oil furnace | C181: =heating_diesel -> 0 | D181: gal/yr | E181: =diesel_cost_cl -> 3.829500772 | F181: /gal | G181: =E181*C181 -> 0 | H181: 0
B182: Miscellaneous Allowance | C182: =misc_pct -> 0.1 | G182: =SUMPRODUCT(G162:G181,H162:H181)*C182 -> 305.5412857 | H182: 1
B183: Total Annual O&M Cost (incorporating city index) | G183: =SUMPRODUCT(G162:G182,H162:H182)*OM_City_Index -> 3360.954142
A185: ANNUALIZED COSTS
B186: Assumption | C186: Value | D186: Guidance
B187: Discount rate | C187: 0.07 | D187: User adjustable
B188: Calculate households based on: | C188: ground water | D188: User adjustable
B189: Household size (people per household) | C189: 2.53 | D189: User adjustable
B191: Calculation | C191: Value | D191: Units
B192: Useful Life (Reciprocal Weighted Average) | C192: =ROUND((direct_for_UL+IF(build_UL=0,0,addon_cost+indirect_cost))/(total_direct_depreciation+IF(build_UL=0,0,(addon_cost+indirect_cost)/build_UL)),1) -> 16.6 | D192: years
B193: Number of households served | C193: =IF(source_select="ground water",(average_flow*1000/0.08558)^(1/1.0584),(average_flow*1000/0.14004)^(1/0.99703))/hh_size -> 25.35511409 | D193: households
B194: Annualized Capital Cost | C194: =-PMT(Discount_rate,useful_life,system_cost) -> 3651.852287 | D194: /year
B195: Annual O&M Cost | C195: =om_cost -> 3360.954142 | D195: /year
B196: Total Annualized Cost | C196: =Annualized_Capital_Cost+om_cost -> 7012.80643 | D196: /year | E196: =IF(ISERROR(OR(TAC_pct_cap,TAC_pct_OM)),"",TEXT(TAC_pct_cap,"0%")&" annualized capital, "&TEXT(TAC_pct_OM,"0%")&" annual O&M") -> 52% annualized capital, 48% annual O&M
B197: Annualized cost per 1,000 gallons average flow | C197: =Annualized_Cost/(average_flow*365*1000) -> 2.744738329 | D197: /kgal
B198: Annualized cost per household | C198: =Annualized_Cost/households -> 276.5835092 | D198: /household/year
A200: Internal use
B201: Mobilization and Demobilization | C201: =C128 -> 1282.00154
B202: Architectural Fees for Treatment Building | C202: =C129 -> 0
B203: Installation, Transportation, and O&P | C203: =D130 -> 0
B204: Site Work | C204: =C131 -> 759.5604396
B205: Yard Piping | C205: =C132 -> 0
B206: Geotechnical | C206: =C133 -> 0
B207: Standby Power | C207: =C134 -> 0
B208: Electrical (including yard wiring) | C208: =C135 -> 1795.634953
B209: Instrumentation and Control | C209: =D136 -> 0
B210: Contingency | C210: =C137 -> 0
... 12 more rows

Sheet Critical Design Assumptions
A1: Default Critical Design Assumptions
A2: Users may change any of the cells in the Value column; cells in gold are most important and may vary based on contaminant treated and site-specific conditions
A4: Assumption | B4: Range Name | C4: Value | D4: Units | E4: Guidance
A5: Cost estimating method | B5: curve | C5: 1 | D5: <-- enter 1 to use cost equations, leave blank to use lookup tables for component costs | E5: Keeping this assumption with a value of 1 is strongly recommended; the cost equations method is more appropriate for national cost estimating and will be more accurate for nearly all user-specified designs
A6: Minimum average flow as percentage of design | B6: min_avg_flow | C6: 0.1 | E6: The minimum ratio of average flow to design flow. If the ratio falls below this value, it will trigger a warning on the INPUT sheet. If this value is zero, no minimum is enforced.
A8: Pumping
A9: Safety factor for pumps | B9: pump_safety_factor | C9: 0.25
A10: Redundant pumps for caustic metering | B10: NRD_pump_chem_caustic | C10: 1 | D10: pump
A11: Minimum chemical feed pump size | B11: min_chem_flow | C11: 0.13 | D11: gph | E11: Metering pumps will be designed to meet this minimum
A12: Day tank transfer pumping approach | B12: xfer_pump_approach | C12: 1 | D12: <-- enter 2 to include both supply and return pumps, 1 to use only supply pumps, 0 to exclude transfer pumps
A13: Redundant transfer pumps | B13: NRD_xfer_pumps | C13: 1 | D13: pump | E13: Applies to both supply and return if used
A14: Transfer pumping time | B14: xfer_pump_time | C14: 0.5 | D14: hours | E14: Fill/empty day tank in this amount of time
A16: Chemical Requirements
A17: Days of chemical storage | B17: cstore_days | C17: 30 | D17: days
A18: Minimum chemical storage tank size | B18: min_chem_tank_size | C18: 60 | D18: gallons
A19: Include mixers for chemical tanks | B19: include_cmix | C19: 0 | D19: <--- enter 1 for yes, 0 for no
A20: Chemical tank mixer horsepower | B20: cmix_hp_per | C20: 0.25 | D20: hp per 1000 gal
A21: Minimum chemical tank mixer horsepower | B21: min_cmix_hp | C21: =1/3 -> 0.3333333333 | D21: hp
A22: Number of redundant inline mixers | B22: num_in_mix | C22: 0 | D22: units
A23: Drum volume | B23: drum_volume | C23: 55 | D23: gallons
A24: Drum diameter | B24: drum_diam | C24: 2 | D24: feet
A25: Tote volume | B25: tote_volume | C25: 330 | D25: gallons
A26: Tote length | B26: tote_length | C26: =40/12 -> 3.333333333 | D26: feet
A27: Tote width | B27: tote_width | C27: 4 | D27: feet
A29: Secondary Containment Requirements
A30: Include secondary containment | B30: include_sec_cont | C30: 1 | D30: <--- enter 1 for yes, 0 for no
A31: Volume required as a percentage of the largest tank | B31: sec_cont_pct_of_largest | C31: 1.1
A32: Volume required as a percentage of total storage | B32: sec_cont_pct_of_total | C32: 0.1
A33: Additional freeboard | B33: sec_cont_freeboard | C33: 6 | D33: inches | E33: Additional freeboard is typically required to contain precipitation when storage is outside; we also include freeboard indoors to ensure a minimum reasonable curb height
A34: Maximum curb thickness | B34: sec_cont_max_thick | C34: 1 | D34: foot | E34: Calculations assume thickness equal to height, up to this maximum
A35: Chemical resistant coating coverage | B35: sec_cont_coating_cvg | C35: 125 | D35: square feet/gallon
A37: Pipe Length Multipliers
A38: Chemical pipe length multiplier | B38: chem_pipe_mult | C38: 1 | D38: times facility length
A39: Distance between chemical supply and feed point | B39: add_chem_pipe_length | C39: 200 | D39: feet
A40: Distance between chemical supply and feed point for small systems | B40: add_chem_pipe_length_small | C40: 100 | D40: feet
A42: Valves and Instrumentation
A43: See the Valve Table at the bottom of this page for additional assumptions relating to valves
A44: Number of check valves on caustic line per pump | B44: caustic_chv_pump | C44: 2 | D44: valves/pump
A45: High/Low alarms per NaOH tank | B45: alarm_chem | C45: 1 | D45: units/tank
A46: pH meters | B46: pH_control | C46: 2 | D46: unit | E46: Before and after
A48: System Controls
A49: See the I/O Port Table at the bottom of this page for additional assumptions relating to system controls
A50: Controllers are used only under full automation
A51: To change the degree of automation, change the number of controllers to zero for the appropriate items.
A52: Drive controllers per chemical pump | B52: S_cm_pump | C52: 1 | D52: units
A53: Drive controllers per mixer | B53: S_mix | C53: 1 | D53: units
A55: Structure/Floorplan
A56: Maximum access space per vessel or tank for large systems | B56: max_space_vessels_cust | C56: 6 | D56: feet | E56: This is the MAXIMUM; space between vessels and tanks defaults to vessel or tank diameter, up to this maximum. Maximum provides space for sandblasting and painting for large vessels (5-8 feet per Richard E. Hubel, Peter Keenan, American Water Works Service Company).
A57: Maximum access space per vessel or tank for small systems | B57: max_space_vessels_pre | C57: 1 | D57: feet | E57: Assumes skid-mounting with minimal access space
A58: Access space for containerized storage | B58: space_containers | C58: 2 | D58: feet | E58: Provides this space around three sides of the active container, and around two sides of the area for standby containers
A59: Clearance space beneath the ceiling | B59: ceiling_clearance | C59: 3 | D59: feet | E59: Minimum space between the tops of storage tanks and the ceiling
A60: Non-fire buffer for buildings | B60: non_fire_buffer | C60: 10 | D60: feet
A61: Fire buffer for buildings | B61: fire_buffer | C61: 40 | D61: feet
A62: Minimum building height | B62: min_building_height | C62: 10 | D62: feet
A63: Concrete pad thickness | B63: pad_thick | C63: 1 | D63: feet
A64: Concrete pad thickness for small systems | B64: pad_thick_small | C64: 0.5 | D64: feet
A66: Valve Table
A67: Under assumptions below, valves are motorized for fully automated systems, manual for semi-automated and manual systems
A68: To change the degree of automation, the user may replace the numbers in each of the blue columns.
A69: Number of control valves of x type on y line per z | B69: Lookup name | C69: Manual | D69: Semi-auto | E69: Fully Auto | F69: Units | G69: Guidance
A70: Number of motor/air operated control valves per pump | B70: caustic_mov_pump | C70: 0 | D70: 0 | E70: 2 | F70: valves/pump
A71: Number of manual valves per pump | B71: caustic_man_pump | C71: 2 | D71: 2 | E71: 0 | F71: valves/pump
A72: Number of motor/air operated control valves per day tank | B72: caustic_mov_cst | C72: 0 | D72: 0 | E72: 1 | F72: valves/tank | G72: For recirculation, only when return pumps are not specified above
A73: Number of manual valves per day tank | B73: caustic_man_cst | C73: 1 | D73: 1 | E73: 0 | F73: valves/tank | G73: For recirculation, only when return pumps are not specified above
A74: Number of motor/air operated control valves per day tank | B74: caustic_mov_day | C74: 0 | D74: 0 | E74: 1 | F74: valves/tank | G74: Not needed when both supply and return pumps are specified above
A75: Number of manual valves per day tank | B75: caustic_man_day | C75: 1 | D75: 1 | E75: 0 | F75: valves/tank | G75: Not needed when both supply and return pumps are specified above
A77: I/O Port Table
A78: Full automation includes all inputs and outputs, semi-automated uses inputs only, manual control uses neither
A79: To change the degree of automation, the user may replace the numbers in each of the blue columns.
A80: I/O Ports needed per…. | B80: Lookup name | C80: Discrete Inputs | D80: Discrete Outputs | E80: Analog Inputs | F80: Analog Outputs
A81: Alarm | B81: alarm | C81: 1 | D81: 1 | E81: 0 | F81: 0
A82: pH meter | B82: ph | C82: 0 | D82: 0 | E82: 1 | F82: 0
A83: Drive controller | B83: switch | C83: 3 | D83: 1 | E83: 0 | F83: 0
A84: Motor/air operated valve | B84: valve | C84: 0 | D84: 0 | E84: 1 | F84: 1

Sheet O&M Assumptions
A1: Default O&M Assumptions
A2: Users may change any of the cells in the Value column
A4: Assumption | B4: Range Name | C4: Value | D4: Units | E4: Guidance
A5: Labor
A6: Managerial LOE as a percent of average technical labor | B6: Manager_percent | C6: 0.1 | D6: fraction
A7: Administrative LOE as a percent of average technical labor | B7: Clerical_percent | C7: 0.1 | D7: fraction
A9: Operating LOE assumptions
A10: Minutes per instrument per day | B10: uloe_inst | C10: 5 | D10: min/day | E10: For manual systems only
A11: Recording operating paramenters for automated systems | B11: uloe_inst_auto | C11: 5 | D11: min/day | E11: For semiautomated and automated systems
A12: Minutes per pump per day | B12: uloe_pump | C12: 5 | D12: min/day | E12: For manual and semiautomated systems
A13: Minutes per valve per week | B13: uloe_valve | C13: 5 | D13: min/week | E13: For manual and semiautomated systems
A14: Minutes per 100 sf per day | B14: uloe_fp | C14: 1 | D14: min/100 sf/day
A16: Maintenance LOE assumptions
A17: For instruments (includes calibration) | B17: uloe_inst_maint | C17: 10 | D17: min/month
A18: For pumps | B18: uloe_pump_maint | C18: 30.25 | D18: hours/year | E18: Based on vendor recommended maintenance activities; applied to large, frequently operated pumps only
A19: For valves | B19: uloe_valve_maint | C19: 5 | D19: min/year | E19: Applied to main process valves only
A20: For chemical supply systems | B20: uloe_chem_maint | C20: 120 | D20: min/month
A22: Lighting and HVAC
A23: Lighting power per sf, low-quality buildings and sheds | B23: lighting_power_low | C23: 0.3 | D23: W/sf | E23: 0.3, 0.6, and 1.2 W/sf are the assumptions used for building capital costs
A24: Lighting power per sf, mid-quality buildings | B24: lighting_power_mid | C24: 0.6 | D24: W/sf
A25: Lighting power per sf, high-quality buildings | B25: lighting_power_high | C25: 1.2 | D25: W/sf
A27: Ventilation air change rate for chemical storage | B27: Air_changes_chem_storage | C27: 2 | D27: air changes/hr
A28: Pressure drop across the fan | B28: Fan_pressure_drop | C28: 0.25 | D28: lbs/ft2
A29: Number of mechanical ventilation days per year first building (small system) | B29: fan_days_build1_small | C29: 90 | D29: days/year | E29: Number of days per year where natural ventilation is applicable cannot be greater than 365 days
A30: Number of mechanical ventilation days per year first building (medium system) | B30: fan_days_build1_medium | C30: 120 | D30: days/year | E30: For medium systems (1 - 10 MGD)
A31: Number of mechanical ventilation days per year first building (large system) | B31: fan_days_build1_large | C31: 185 | D31: days/year | E31: For large systems (> 10 MGD)
A33: R-value for walls | B33: R_wall | C33: 25 | D33: hr-sf-degF/BTU | E33: See Appendix E. If higher R-value materials are desired, user may also need to adjust the cost of building materials in cl.xls
A34: R-value for ceilings | B34: R_ceiling | C34: 49 | D34: hr-sf-degF/BTU | E34: See Appendix E. If higher R-value materials are desired, user may also need to adjust the cost of building materials in cl.xls
A35: Annual heating degree days | B35: heat_DD | C35: 4260 | D35: degree days | E35: Heating and cooling assumptions should be consistent with one another. Assumed values are for a climate that results in a total energy usage for heating and cooling equal to the national median.
A36: Annual cooling degree days | B36: cool_DD | C36: 1415 | D36: degree days | E36: Heating and cooling assumptions should be consistent with one another. Assumed values are for a climate that results in a total energy usage for heating and cooling equal to the national median.
A37: Heating ventilation/infiltration load | B37: heat_viload | C37: 168679 | D37: BTU/cfm | E37: Heating and cooling assumptions should be consistent with one another. Assumed values are for a climate that results in a total energy usage for heating and cooling equal to the national median.
A38: Cooling ventilation/infiltration load | B38: cool_viload | C38: 51771 | D38: BTU/cfm | E38: Heating and cooling assumptions should be consistent with one another. Assumed values are for a climate that results in a total energy usage for heating and cooling equal to the national median.
A39: Electric resistance heating efficiency | B39: resist_eff | C39: 0.98 | E39: See Appendix E
A40: Heat pump heating coefficient of performance | B40: COP | C40: 3.3 | E40: See Appendix E
A41: Natural gas non-condensing furnace efficiency | B41: gas_non_eff | C41: 0.85 | E41: See Appendix E
A42: Natural gas condensing furnace efficiency | B42: gas_eff | C42: 0.9 | E42: See Appendix E
A43: Standard oil furnace efficiency | B43: diesel_non_eff | C43: 0.82 | E43: See Appendix E
A44: Mid-efficiency oil furnace efficiency | B44: diesel_eff | C44: 0.9 | E44: See Appendix E
A45: Air conditioning EER | B45: EER | C45: 11.8 | D45: BTU/Whr | E45: See Appendix E
A46: Heat pump cooling mode EER | B46: hp_EER | C46: 11.8 | D46: BTU/Whr | E46: See Appendix E
A48: Heating oil heat content | B48: diesel_heat_content | C48: 139000 | D48: BTU/gal | E48: U.S. DOE, Energy Information Administration.

Sheet Indirect Assumptions
A1: Default Assumptions for Indirect and Add-On Costs
A2: Users may change any of the cells in the Value column
A4: Assumption | B4: Range Name | C4: Value | D4: Units | E4: Guidance
A5: Permits
A6: Include permit costs? | B6: include_permits | C6: 1 | D6: <--- enter 1 for yes, 0 for no
A8: Mobilization and Demobilization
A9: Mobilization percentage for small systems | B9: mob_pct_small | C9: 0.05 | D9: of direct capital cost | E9: Typically 2-5% of the estimated construction cost. Enter 0% to exclude.
A10: Mobilization percentage for medium systems | B10: mob_pct_medium | C10: 0.04 | D10: of direct capital cost
A11: Mobilization percentage for large systems | B11: mob_pct_large | C11: 0.02 | D11: of direct capital cost
A13: Architectural Fees for Treatment Building
A14: Include architectural fee? | B14: include_arch | C14: 1 | D14: <--- enter 1 for yes, 0 for no | E14: Must be added to building cost. Change for special considerations. Includes structural, mechanical, and electrical engineering for building only.
A15: Include architectural fee for small systems? | B15: include_arch_small | C15: 0 | D15: <--- enter 1 for yes, 0 for no
A17: Installation, Transportatation, and O&P
A18: Installation, Transportatation, and O&P percentage | B18: inst_pct | C18: 0 | D18: of direct capital cost | E18: Included in line item unit costs. Add a percentage for special considerations such as a remote site or high cost location.
A20: Sitework
A21: Include sitework costs? | B21: include_sitework | C21: 1 | D21: <--- enter 1 for yes, 0 for no
A23: Electrical (including yard wiring)
A24: Electrical percentage | B24: elect_pct | C24: 0.1 | D24: of direct cost
A26: Instrumentation and Control
A27: Instrumentation and control percentage | B27: i_c_pct | C27: 0 | D27: of direct cost | E27: Included as a direct cost line item.
A29: Contingency
A30: Include contingency costs for low cost systems? | B30: include_conting_low | C30: 0 | D30: <--- enter 1 for yes, 0 for no
A31: Include contingency costs for medium cost systems? | B31: include_conting_medium | C31: 0 | D31: <--- enter 1 for yes, 0 for no
A32: Include contingency costs for high cost systems? | B32: include_conting_high | C32: 1 | D32: <--- enter 1 for yes, 0 for no
A33: Technology complexity factor | B33: complexity | C33: 0.5 | E33: Technology-specific factor. See Appendices for details. Low complexity = 0.5; Average complexity = 1.0; High complexity = 1.5; Very high complexity = 2.0.
A35: Process Engineering
A36: Engineering percentage for small systems | B36: eng_pct_small | C36: 0.2 | D36: of direct capital cost | E36: Enter 0% to exclude.
A37: Engineering percentage for medium systems | B37: eng_pct_medium | C37: 0.12 | D37: of direct capital cost
A38: Engineering percentage for large systems | B38: eng_pct_large | C38: 0.08 | D38: of direct capital cost
A40: Miscellaneous Allowance
A41: Miscellaneous allowance percentage | B41: misc_pct | C41: 0.1 | D41: of direct capital cost | E41: Enter 0% to exclude.
A43: Legal, Fiscal, and Administrative
A44: Legal percentage | B44: legal_pct | C44: 0.02 | D44: of direct capital cost | E44: Enter 0% to exclude. Highly site-specific. Can range from 2-5% of equipment, installation, construction, electrical, and standby power. To estimate, add 5% to total estimated construction cost.
A46: Sales Tax
A47: Sales tax percentage | B47: tax_pct | C47: 0 | D47: of direct capital cost | E47: May be exempt if constructed with public funds. May be as high as 7.25% of equipment and construction, with national average 4.75%.
A49: Financing during Construction
A50: Financing percentage | B50: finance_pct | C50: 0 | D50: of direct capital cost | E50: Even for large systems, installation of add-on process assumed to take less than one year.
A51: Financing percentage for small systems | B51: finance_pct_small | C51: 0 | D51: of direct capital cost | E51: Small system construction assumed to take less than one year
A53: Construction Management and General Contractor Overhead | E53: Excluded by default, consistent with a minor addition to an existing facility, rather than as part of a large-scale construction project
A54: Builder's risk insurance percentage | B54: br_ins_pct | C54: 0.0034 | E54: Enter 0% to exclude. 0.34% is national average rate. RSMeans Building Construction Cost Data 2009, reference section R01100-070
A55: Include performance bond cost? | B55: include_bond | C55: 1 | D55: <--- enter 1 for yes, 0 for no
A56: Include construction management cost? | B56: include_cm | C56: 1 | D56: <--- enter 1 for yes, 0 for no
A58: Concrete Pad
A59: Include concrete pad in total capital cost? | B59: include_pad | C59: 1 | D59: <--- enter 1 for yes, 0 for no
A61: Heating Table (1=include heating in buildings and O&M, 0 = do not include heating)
A62: Component Level | B62: Range Name | C62: System Size
C63: Small (<1 mgd) | D63: Medium (1-10 mgd) | E63: Large (>10 mgd)
A64: Buildings 500 square feet or greater
A65: low cost | B65: heating_table | C65: 0 | D65: 1 | E65: 1
A66: mid cost | C66: 1 | D66: 1 | E66: 1
A67: high cost | C67: 1 | D67: 1 | E67: 1
A68: Buildings less than 500 ft2 (other than those used for chlorine storage)
A69: low cost | B69: heating_table_shed | C69: 0 | D69: 0 | E69: 1
A70: mid cost | C70: 0 | D70: 0 | E70: 1
A71: high cost | C71: 1 | D71: 1 | E71: 1
A73: Cooling Table (1=include cooling in buildings and O&M, 0 = do not include cooling)
A74: Component Level | B74: Range Name | C74: System Size
C75: Small (<1 mgd) | D75: Medium (1-10 mgd) | E75: Large (>10 mgd)
A76: Buildings 500 square feet or greater
A77: low cost | B77: cooling_table | C77: 0 | D77: 0 | E77: 1
A78: mid cost | C78: 0 | D78: 1 | E78: 1
A79: high cost | C79: 1 | D79: 1 | E79: 1
A80: Buildings less than 500 ft2 (other than those used for chlorine storage)
A81: low cost | B81: cooling_table_shed | C81: 0 | D81: 0 | E81: 0
A82: mid cost | C82: 0 | D82: 0 | E82: 0
A83: high cost | C83: 0 | D83: 0 | E83: 0

Sheet Chemical Use
A1: Chemical Use Calculations
A3: Calculation | B3: Range Name | C3: Value | D3: Units | E3: Guidance
A4: From Inputs
A5: Treatment Scenario | B5: scenario | C5: 1
A6: Design Flow | B6: design_flow | C6: =IF(df_units="gpm",design_flow_I*24*60/1000000,design_flow_I) -> 0.03 | D6: MGD
A7: Average Flow | B7: average_flow | C7: =IF(af_units="gpm",average_flow_I*24*60/1000000,IF(af_units="fraction of design flow",average_flow_I*design_flow,average_flow_I)) -> 0.007 | D7: MGD
A8: Design Flow Rate | B8: design_flow_rate | C8: =design_flow*1000000/(24*60) -> 20.83333333 | D8: gpm | E8: Design flow expressed in gpm
A9: Average Flow Rate | B9: average_flow_rate | C9: =average_flow*1000000/(24*60) -> 4.861111111 | D9: gpm | E9: Average flow expressed in gpm
A10: Storage type (code number) | B10: storage_type_num | C10: =VLOOKUP(storage_type,storage_type_table,2,FALSE) -> 1 | D10: 1 = drums, 2 = totes, 3 = storage tanks only, 4 = storage tanks and day tanks
A12: pH Adjustment Chemistry
A13: Ionic strength (I) | B13: I_ion_str | C13: =TDS_I/40000 -> 0.005 | D13: mol/L | E13: 40,000 converts TDS to ionic strength, Equation 4, Trussell 1998
A14: Temperature variance from 25 degrees centigrade | B14: t_minus25 | C14: =t_I-25 -> -15 | D14: degrees C | E14: For use in Equation S14, Trussell 1998
A15: Dielectric constant (D) | B15: D_dielectric | C15: =78.54*(1-0.004579*t_minus25+0.0000119*t_minus25^2+0.000000028*t_minus25^3) -> 84.13738872 | E15: Equation S14, Trussell 1998
A16: Temperature in degrees Kelvin | B16: T_K | C16: =t_I+273 -> 283 | D16: degrees K | E16: 273 converts degrees C to degrees K
A17: Limiting theoretical slope (A) | B17: A_slope_lim | C17: =1290000*(SQRT(2)/(D_dielectric*T_K)^1.5) -> 0.496525447 | E17: Equation S13, Trussell 1998
A18: Monovalent activity coefficient (-log form) | B18: log_gamma_1 | C18: =A_slope_lim*1^2*(SQRT(I_ion_str)/(1+SQRT(I_ion_str))-0.3*I_ion_str) -> 0.03204619055 | E18: Modified Davies equation, Equation S12, Trussell 1998
A19: Divalent activity coefficient (-log form) | B19: log_gamma_2 | C19: =A_slope_lim*2^2*(SQRT(I_ion_str)/(1+SQRT(I_ion_str))-0.3*I_ion_str) -> 0.1281847622 | E19: Modified Davies equation, Equation S12, Trussell 1998
A20: Monovalent activity coefficient (ɣ1) | B20: gamma_1 | C20: =10^-log_gamma_1 -> 0.9288675893
A21: Divalent activity coefficient (ɣ2) | B21: gamma_2 | C21: =10^-log_gamma_2 -> 0.7444152094
A22: Equilibrium constant for carbonic acid (H2CO3) (-log form) | B22: pK_1 | C22: =a1_K1+a2_K1/T_K+a3_K1*LOG10(T_K)+a4_K1*T_K+a5_K1/T_K^2 -> 6.476641144
A23: Equilibrium constant for bicarbonate (HCO3-) (-log form) | B23: pK_2 | C23: =a1_K2+a2_K2/T_K+a3_K2*LOG10(T_K)+a4_K2*T_K+a5_K2/T_K^2 -> 10.48853824
A24: Equilibrium constant for water (H2O) (-log form) | B24: pK_w | C24: =a1_Kw+a2_Kw/T_K+a3_Kw*LOG10(T_K)+a4_Kw*T_K+a5_Kw/T_K^2 -> 14.53856657
A25: Equilibrium constant for carbonic acid (H2CO3) (K1) | B25: K_1 | C25: =10^-pK_1 -> 3.337020356e-07
A26: Equilibrium constant for bicarbonate (HCO3-) (K2) | B26: K_2 | C26: =10^-pK_2 -> 3.246846499e-11
A27: Equilibrium constant for water (H2O) (Kw) | B27: K_w | C27: =10^-pK_w -> 2.893566232e-15
A28: Intermediate calculation | B28: term1_i | C28: =gamma_1*10^-pH_i/K_1 -> 0.8802275424 | E28: ɣ110-pH / K1
A29: Intermediate calculation | B29: term2_i | C29: =(gamma_1*K_2)/(gamma_2*10^-pH_i) -> 0.0001281151026 | E29: ɣ1K2 / ɣ210-pH
A30: Intermediate calculation | B30: term3_i | C30: =alk_I/50000 -> 0.0004 | D30: eq/L | E30: Alk / 50,000 (where 50,000 converts mg/L to eq/L)
A31: Intermediate calculation | B31: term4_i | C31: =K_w/(gamma_1*10^-pH_i) -> 9.8509841e-09 | E31: Kw / ɣ110-pH
A32: Intermediate calculation | B32: term5_i | C32: =10^-pH_i/gamma_1 -> 3.404443967e-07 | E32: 10-pH / ɣ1
A33: Intermediate calculation | B33: term6_i | C33: =(2*K_2*gamma_1)/(gamma_2*10^-pH_i) -> 0.0002562302051 | E33: 2K2ɣ1 / ɣ210-pH
A34: Initial total inorganic carbon (CT) | B34: C_T_i | C34: =(1+term1_i+term2_i)*((term3_i-term4_i+term5_i)/(1+term6_i)) -> 0.0007525710647 | D34: mol/L | E34: Equation 15, Najm 2001
A35: Intermediate calculation | B35: term1_f | C35: =(2*K_2*gamma_1)/(gamma_2*10^-pH_f) -> 0.002562302051 | E35: 2K2ɣ1 / ɣ210-pH
A36: Intermediate calculation | B36: term2_f | C36: =(gamma_1*10^-pH_f)/K_1 -> 0.08802275424 | E36: ɣ110-pH / K1
A37: Intermediate calculation | B37: term3_f | C37: =(gamma_1*K_2)/(gamma_2*10^-pH_f) -> 0.001281151026 | E37: ɣ1K2 / ɣ210-pH
A38: Intermediate calculation | B38: term4_f | C38: =K_w/(gamma_1*10^-pH_f) -> 9.8509841e-08 | E38: Kw / ɣ110-pH
A39: Intermediate calculation | B39: term5_f | C39: =10^-pH_f/gamma_1 -> 3.404443967e-08 | E39: 10-pH / ɣ1
A40: Treated water alkalinity | B40: alk_f | C40: =50000*((C_T_i*(1+term1_f))/(1+term2_f+term3_f)+term4_f-term5_f) -> 34.6354033 | D40: mg/L as CaCO3 | E40: Equation 17, Najm 2001, where 50,000 converts eq/L to mg/L
A41: Hydroxide (OH-) required | B41: OH_tot | C41: =(alk_f-alk_I)/50000 -> 0.000292708066 | D41: mol/L | E41: Equation 20, Najm 2001, where 50,000 converts from mg/L to mol/L
A43: Chemical Usage
A44: NaOH dose required | B44: NaOH_tot | C44: =IF(calc_type="manual entry",dose_I,39.997*OH_tot*1000) -> 11.70744452 | D44: mg/L | E44: 39.997 is molar mass of NaOH in g/mol, 1,000 converts g to mg
A45: NaOH concentration in lbs/gal | B45: caustic_conc_lb | C45: =VLOOKUP(NaOH_pct,NaOH_table_cl,2) -> 2.66 | D45: lbs/gal
A46: Pounds of pure NaOH needed per day | B46: lb_NaOH_day | C46: =1000000*3.7854*NaOH_tot*2.2*average_flow/1000000 -> 0.6824873513 | D46: lbs
A47: Pounds of pure NaOH needed in storage | B47: lb_NaOH_store | C47: =ROUNDUP(lb_NaOH_day*cstore_days,0) -> 21 | D47: lbs
A48: Gallons of NaOH needed per day | B48: gal_NaOH_day | C48: =lb_NaOH_day/caustic_conc_lb -> 0.2565741922 | D48: gal
A49: Gallons of NaOH needed in storage | B49: gal_NaOH_store | C49: =ROUNDUP(lb_NaOH_store/caustic_conc_lb,0) -> 8 | D49: gal
A50: Max NaOH flow (based on design flow) | B50: des_NaOH_flow | C50: =gal_NaOH_day/24*design_flow/average_flow -> 0.04581682004 | D50: gph
A51: NaOH solution specific gravity | B51: NaOH_spgr | C51: =VLOOKUP(NaOH_pct,NaOH_table_cl,4) -> 1.278
A52: Total weight of bulk NaOH solution in storage | B52: NaOH_lbs | C52: =IF(gal_NaOH_store=0,0,ROUNDUP(gal_NaOH_store*NaOH_spgr*8.345,0)) -> 86 | D52: lbs
A54: Sodium Hydroxide Purchasing
A55: Quantity required for large quantity purchase | C55: =VLOOKUP("Sodium Hydroxide "&TEXT(NaOH_pct,"00%")&" - Large Qty",chem_break_table_cl,2,FALSE) -> 21317.04 | D55: lbs | E55: #N/A indicates that price data do not depend on volume purchased.
A56: Quantity required for mid quantity purchase | C56: =VLOOKUP("Sodium Hydroxide "&TEXT(NaOH_pct,"00%")&" - Mid Qty",chem_break_table_cl,2,FALSE) -> 4000 | D56: lbs | E56: #N/A indicates that price data do not depend on volume purchased.
A57: Quantity required for small quantity purchase | C57: =VLOOKUP("Sodium Hydroxide "&TEXT(NaOH_pct,"00%")&" - Small Qty",chem_break_table_cl,2,FALSE) -> 0 | D57: lbs | E57: #N/A indicates that price data do not depend on volume purchased.
A58: Purchase Type | B58: chem_purchase | C58: =IF(AND(ISNA(C55),ISNA(C56),ISNA(C57)),"",IF(NaOH_lbs>=C55," - Large Qty",IF(NaOH_lbs>=C56," - Mid Qty"," - Small Qty"))) -> - Small Qty | E58: Returns descriptive term based on volume of each purchase for use in determining pricing. Blank indicates that price data do not depend on volume purchased.
A60: Caustic Tanks
A61: Maximum chemical storage tank size | B61: max_chem_tank_size | C61: =MAX(VLOOKUP(10^6,pl_cst_cost_cl,1)-1,VLOOKUP(10^6,fg_cst_cost_cl,1)-1,VLOOKUP(10^6,ss_cst_cost_cl,1)-1) -> 30000 | D61: gallons | E61: The largest size for which costs are available
A62: Number of caustic storage tanks | B62: num_caustic_tanks | C62: =IF(OR(storage_type_num<3,gal_NaOH_store=0),0,ROUNDUP(gal_NaOH_store/max_chem_tank_size,0)) -> 0 | D62: units
A63: Volume of caustic storage tanks | B63: caustic_tank_vol | C63: =IF(num_caustic_tanks=0,0,MAX(min_chem_tank_size,ROUNDUP(gal_NaOH_store/num_caustic_tanks,0))) -> 0 | D63: gallons
A64: Day tank storage volume required (based on design flow) | B64: day_tank_vol_needed | C64: =(1000000*3.7854*NaOH_tot*2.2*design_flow/1000000)/caustic_conc_lb -> 1.099603681 | D64: gallons
A65: Number of day tanks | B65: day_tanks | C65: =IF(storage_type_num<4,0,ROUNDUP(day_tank_vol_needed/max_chem_tank_size,0)) -> 0 | D65: units
A66: Volume of day tanks | B66: day_tank_vol | C66: =IF(day_tanks=0,0,MAX(min_chem_tank_size,ROUNDUP(day_tank_vol_needed/day_tanks,0))) -> 0 | D66: gallons
A68: Containerized Storage
A69: Number of active containers | B69: active_chem_containers | C69: =IF(storage_type_num<3,1,0) -> 1 | D69: units
A70: Container size | B70: chem_container_size | C70: =CHOOSE(storage_type_num,drum_volume,tote_volume,0,0) -> 55 | D70: gallons
A71: Total containers | B71: total_chem_containers | C71: =IF(active_chem_containers=0,0,ROUNDUP(gal_NaOH_store/chem_container_size,0)) -> 1 | D71: units
A72: Number of standby containers | B72: standby_chem_containers | C72: =total_chem_containers-active_chem_containers -> 0 | D72: units
A74: Mixers
A75: Maximum chemical tank mixer horsepower | B75: cmix_hp_max | C75: =MAX(VLOOKUP(10^6,port_mix_cost_cl,1)-0.1,VLOOKUP(10^6,mount_mix_cost_cl,1)-0.1,VLOOKUP(10^6,imp_mix_cost_cl,1)-0.1) -> 30 | D75: hp
A76: Mixers per storage tank | B76: cmix_per_tank | C76: =IF(AND(include_cmix=1,num_caustic_tanks<>0),ROUNDUP(caustic_tank_vol/1000*cmix_hp_per/cmix_hp_max,0),0) -> 0 | D76: units
A77: Number of storage tank mixers | B77: cmixers | C77: =IF(num_caustic_tanks<>0,num_caustic_tanks*cmix_per_tank,0) -> 0 | D77: units
A78: Mixer size for storage tanks | B78: cmix_size | C78: =IF(cmixers<>0,MAX(min_cmix_hp,caustic_tank_vol/1000*cmix_hp_per/cmix_per_tank),0) -> 0 | D78: hp
A79: Mixers per day tank | B79: dmix_per_tank | C79: =IF(AND(include_cmix=1,day_tanks<>0),ROUNDUP(day_tank_vol/1000*cmix_hp_per/cmix_hp_max,0),0) -> 0 | D79: units
A80: Number of day tank mixers | B80: dmixers | C80: =IF(day_tanks<>0,day_tanks*cmix_per_tank,0) -> 0 | D80: units
A81: Mixer size for day tanks | B81: dmix_size | C81: =IF(dmixers<>0,MAX(min_cmix_hp,day_tank_vol/1000*cmix_hp_per/cmix_per_tank),0) -> 0 | D81: hp
A83: Secondary Containment for Storage Tanks
A84: Minimum volume required | B84: ct_cont_volume | C84: =MAX(num_caustic_tanks*caustic_tank_vol*sec_cont_pct_of_total,caustic_tank_vol*sec_cont_pct_of_largest)/7.48 -> 0 | D84: cubic feet | E84: 7.48 converts gallons to cubic feet
A85: Footprint available | B85: ct_cont_fp | C85: =IF(num_caustic_tanks=0,0,chem_store_fp-num_caustic_tanks*PI()*(ct_diam/2)^2) -> 0 | D85: square feet | E85: Total footprint minus displacement by tanks themselves
A86: Curb height required | B86: ct_curb_height | C86: =IF(num_caustic_tanks=0,0,ct_cont_volume/ct_cont_fp+sec_cont_freeboard/12) -> 0 | D86: feet
A87: Curb thickness | B87: ct_curb_thick | C87: =IF(num_caustic_tanks=0,0,MIN(sec_cont_max_thick,ct_curb_height)) -> 0 | D87: feet
A88: Curb length (long side) | B88: ct_curb_len_long | C88: =IF(num_caustic_tanks=0,0,num_caustic_tanks*ct_diam+2*space_ct+(num_caustic_tanks-1)*space_ct+2*ct_curb_thick) -> 0 | D88: feet
A89: Curb length (short side) | B89: ct_curb_len_short | C89: =IF(num_caustic_tanks=0,0,ct_diam+2*space_ct) -> 0 | D89: feet
A90: Curb concrete volume | B90: ct_curb_concrete | C90: =IF(num_caustic_tanks=0,0,ROUNDUP((ct_curb_len_long*2+ct_curb_len_short*2)*ct_curb_height*ct_curb_thick/27,0)) -> 0 | D90: cubic yards | E90: 27 converts cubic feet to cubic yards
A91: Chemical resistant coating required | B91: ct_coating_gal | C91: =IF(num_caustic_tanks=0,0,ROUNDUP((chem_store_fp+2*(ct_curb_len_long-2*ct_curb_thick)*ct_curb_height+2*ct_curb_len_short*ct_curb_height)/sec_cont_coating_cvg,0)) -> 0 | D91: gallons | E91: Covers total footprint plus inside surface and top of curbs
A93: Secondary Containment for Day Tanks
A94: Minimum volume required | B94: dt_cont_volume | C94: =MAX(day_tanks*day_tank_vol*sec_cont_pct_of_total,day_tank_vol*sec_cont_pct_of_largest)/7.48 -> 0 | D94: cubic feet | E94: 7.48 converts gallons to cubic feet
A95: Footprint available | B95: dt_cont_fp | C95: =IF(day_tanks=0,0,day_tank_fp-day_tanks*PI()*(dt_diam/2)^2) -> 0 | D95: square feet | E95: Total footprint minus displacement by tanks themselves
A96: Curb height required | B96: dt_curb_height | C96: =IF(day_tanks=0,0,dt_cont_volume/dt_cont_fp+sec_cont_freeboard/12) -> 0 | D96: feet
A97: Curb thickness | B97: dt_curb_thick | C97: =IF(day_tanks=0,0,MIN(sec_cont_max_thick,dt_curb_height)) -> 0 | D97: feet
A98: Curb length (long side) | B98: dt_curb_len_long | C98: =IF(day_tanks=0,0,day_tanks*dt_diam+2*space_dt+(day_tanks-1)*space_dt+2*dt_curb_thick) -> 0 | D98: feet
A99: Curb length (short side) | B99: dt_curb_len_short | C99: =IF(day_tanks=0,0,dt_diam+2*space_dt) -> 0 | D99: feet
A100: Curb concrete volume | B100: dt_curb_concrete | C100: =IF(day_tanks=0,0,ROUNDUP((dt_curb_len_long*2+dt_curb_len_short*2)*dt_curb_height*dt_curb_thick/27,0)) -> 0 | D100: cubic yards | E100: 27 converts cubic feet to cubic yards
A101: Chemical resistant coating required | B101: dt_coating_gal | C101: =IF(day_tanks=0,0,ROUNDUP((day_tank_fp+2*(dt_curb_len_long-2*dt_curb_thick)*dt_curb_height+2*dt_curb_len_short*dt_curb_height)/sec_cont_coating_cvg,0)) -> 0 | D101: gallons | E101: Covers total footprint plus inside surface and top of curbs
A103: Secondary Containment for Containerized Storage
A104: Minimum volume required | B104: drum_cont_volume | C104: =MAX(total_chem_containers*chem_container_size*sec_cont_pct_of_total,chem_container_size*sec_cont_pct_of_largest)/7.48 -> 8.088235294 | D104: cubic feet | E104: 7.48 converts gallons to cubic feet
A105: Footprint available | B105: drum_cont_fp | C105: =IF(active_chem_containers=0,0,chem_store_fp-total_chem_containers*IF(storage_type_num=1,PI()*(drum_diam/2)^2,tote_length*tote_width)) -> 44.85840735 | D105: square feet | E105: Total footprint minus displacement by containers
A106: Curb height required | B106: drum_curb_height | C106: =IF(active_chem_containers=0,0,drum_cont_volume/drum_cont_fp+sec_cont_freeboard/12) -> 0.6803058952 | D106: feet
A107: Curb thickness | B107: drum_curb_thick | C107: =IF(active_chem_containers=0,0,MIN(sec_cont_max_thick,drum_curb_height)) -> 0.6803058952 | D107: feet
A108: Curb length (long side) | B108: drum_curb_len_long | C108: =IF(active_chem_containers=0,0,IF(storage_type_num=1,total_chem_containers*drum_diam,total_chem_containers*tote_width)+3*space_containers+2*drum_curb_thick) -> 9.36061179 | D108: feet
A109: Curb length (short side) | B109: drum_curb_len_short | C109: =IF(active_chem_containers=0,0,IF(storage_type_num=1,drum_diam,tote_length)+2*space_containers) -> 6 | D109: feet
A110: Curb concrete volume | B110: drum_curb_concrete | C110: =IF(active_chem_containers=0,0,ROUNDUP((drum_curb_len_long*2+drum_curb_len_short*2)*drum_curb_height*drum_curb_thick/27,0)) -> 1 | D110: cubic yards | E110: 27 converts cubic feet to cubic yards
A111: Chemical resistant coating required | B111: drum_coating_gal | C111: =IF(active_chem_containers=0,0,ROUNDUP((chem_store_fp+2*(drum_curb_len_long-2*drum_curb_thick)*drum_curb_height+2*drum_curb_len_short*drum_curb_height)/sec_cont_coating_cvg,0)) -> 1 | D111: gallons | E111: Covers total footprint plus inside surface and top of curbs

Sheet Pumps Pipe Structure
A1: Pumps, Piping, and Structure Calculations
A3: Calculation | B3: Range Name | C3: Value | D3: Units | E3: Guidance
A4: Pump Design
A5: Total caustic metering flow needed | B5: cm_pump_flow_total | C5: =MAX(min_chem_flow,des_NaOH_flow*(1+pump_safety_factor)) -> 0.13 | D5: gph | E5: Includes safety factor
A6: Maximum chemical metering pump size | B6: max_cm_pump_size | C6: =MAX(VLOOKUP(10^6,ss_empump_cost_cl,1)-0.01,VLOOKUP(10^6,ss_mmpump_cost_cl,1)-0.01,VLOOKUP(10^6,pvc_empump_cost_cl,1)-0.01,VLOOKUP(10^6,pvc_mmpump_cost_cl,1)-0.01) -> 132 | D6: gph | E6: The largest size for which costs are available.
A7: Number of caustic metering pumps | B7: pump_chem_caustic | C7: =ROUNDUP(cm_pump_flow_total/max_cm_pump_size,0)+NRD_pump_chem_caustic -> 2 | D7: pumps | E7: Multiple pumps used if total flow is very high, includes redundant pumps
A8: Caustic metering pump rating | B8: cm_pump_rating | C8: =cm_pump_flow_total/(pump_chem_caustic-NRD_pump_chem_caustic) -> 0.13 | D8: gph
A10: Total transfer pump flow needed | B10: xfer_pump_flow_total | C10: =IF(OR(day_tanks=0,xfer_pump_approach=0),0,day_tank_vol/xfer_pump_time*(1+pump_safety_factor)) -> 0 | D10: gph | E10: Includes safety factor
A11: Maximum transfer pump size | B11: max_xfer_pump_size | C11: =VLOOKUP(10^6,chem_pump_cost_cl,1)-0.1 -> 12179.91 | D11: gph
A12: Number of transfer pumps | B12: xfer_pumps | C12: =IF(xfer_pump_flow_total=0,0,xfer_pump_approach*(day_tanks*ROUNDUP(xfer_pump_flow_total/max_xfer_pump_size,0)+NRD_xfer_pumps)) -> 0 | D12: pumps | E12: Multiple pumps used if total flow is very high, includes redundant pumps and both supply and return (if so configured)
A13: Tranfer pump rating | B13: xfer_pump_rating | C13: =IF(xfer_pumps=0,0,xfer_pump_flow_total/ROUNDUP(xfer_pump_flow_total/max_xfer_pump_size,0)) -> 0 | D13: gph
A15: Piping Design
A16: Caustic piping length | B16: caust_pipe_length | C16: =chem_pipe_mult*facil_length+IF(ss_cat="large",add_chem_pipe_length,add_chem_pipe_length_small) -> 110 | D16: linear feet
A17: Caustic pipe flow | B17: caustic_pipe_flow | C17: =des_NaOH_flow/60 -> 0.0007636136673 | D17: gpm
A18: Caustic pipe diameter | B18: caustic_pipe_diam | C18: =VLOOKUP(caustic_pipe_flow,pipe_size_table_cl,2) -> 0.5 | D18: inches
A19: Maximum inline mixer size | B19: max_inmix | C19: =MAX(VLOOKUP(10^6,in_mix_cost_cl,1)-0.1,VLOOKUP(10^6,pl_in_mix_cost_cl,1)-0.1) -> 42 | D19: in. diam | E19: The largest size for which costs are available.
A20: Maximum flow supported by maximum mixer size | B20: max_mixer_flow | C20: =VLOOKUP(max_inmix,max_pipe_flow_table_cl,2) -> 122025 | D20: gpm
A21: Number of inline mixers required | B21: tot_in_mix | C21: =IF(include_mixer="no",0,ROUNDUP(design_flow_rate/max_mixer_flow,0)+num_in_mix) -> 1 | D21: units | E21: Assume multiple injection points if large enough mixers are not available (i.e., assume flow is split somewhere in main process)
A22: In-line mixer size | B22: mixer_size | C22: =IF(include_mixer="no",0,VLOOKUP(design_flow_rate/(tot_in_mix-num_in_mix),pipe_size_table_cl,2)) -> 1.5 | D22: inches
A24: Building Structure
A25: Caustic tank diameter | B25: ct_diam | C25: =ROUNDUP((2*(caustic_tank_vol/7.48)/PI())^(1/3),0) -> 0 | D25: feet
A26: Day tank diameter | B26: dt_diam | C26: =ROUNDUP((2*(day_tank_vol/7.48)/PI())^(1/3),0) -> 0 | D26: feet
A27: Maximum access space per tank | B27: max_space_vessels | C27: =IF(ss_cat2=1,max_space_vessels_pre,max_space_vessels_cust) -> 1 | D27: feet
A28: Access space per caustic tank | B28: space_ct | C28: =IF(ct_diam>max_space_vessels,max_space_vessels,ct_diam) -> 0 | D28: feet
A29: Access space per day tank | B29: space_dt | C29: =IF(dt_diam>max_space_vessels,max_space_vessels,dt_diam) -> 0 | D29: feet
A30: Caustic tank footprint | C30: =ROUNDUP((ct_diam+2*space_ct)^2+(num_caustic_tanks-1)*(ct_diam+2*space_ct)*(ct_diam+space_ct),0) -> 0 | D30: square feet
A31: Drum footprint | C31: =IF(storage_type_num<>1,0,ROUNDUP((drum_diam+2*space_containers)*(drum_diam+2*space_containers)+(standby_chem_containers*drum_diam+space_containers)*(drum_diam+2*space_containers),0)) -> 48 | D31: square feet
A32: Tote footprint | C32: =IF(storage_type_num<>2,0,ROUNDUP((tote_width+2*space_containers)*(tote_length+2*space_containers)+(standby_chem_containers*tote_width+space_containers)*(tote_length+2*space_containers),0)) -> 0 | D32: square feet
A33: Chemical storage footprint | B33: chem_store_fp | C33: =SUM(C30:C32) -> 48 | D33: square feet
A34: Day tank footprint | B34: day_tank_fp | C34: =ROUNDUP((dt_diam+2*space_dt)^2+(day_tanks-1)*(dt_diam+2*space_dt)*(dt_diam+space_dt),0) -> 0 | D34: square feet
A36: Exact building footprint required | B36: fp_required | C36: =chem_store_fp+day_tank_fp -> 48 | D36: square feet
A37: Concrete Class A for vessel and pumps padding | B37: concrete | C37: =ROUNDUP(fp_required*IF(ss_cat2=1,pad_thick_small,pad_thick)/27,0) -> 1 | D37: cubic yards
A38: Footprint of building 1 | B38: build1_fp | C38: =ROUNDUP(fp_required,-1) -> 50 | D38: square feet
A39: Total footprint | B39: total_fp | C39: =build1_fp -> 50 | D39: square feet
A41: Facility dimension assumed square | B41: facil_length | C41: =ROUNDUP(total_fp^0.5,-1) -> 10 | D41: feet
A42: Land acquisition required | B42: land_required | C42: =((build1_fp)^0.5+(2*non_fire_buffer))*((build1_fp)^0.5+(non_fire_buffer+fire_buffer))/43560 -> 0.03546773983 | D42: acres
A44: Land acquisition cost | B44: land_cost | C44: =VLOOKUP(design_flow,land_cost_cl,3) -> 21165.71325 | D44: /acre

Sheet Instrumentation and Control
A1: Instrumentation and Control Calculations
A3: Calculation | B3: Range Name | C3: Value | D3: Units | E3: Guidance
A4: From Inputs
A5: Component level | B5: component_level | C5: =IF(component_level_I="high cost",2,IF(component_level_I="mid cost",1,"")) ->  | D5: blank = low cost, 1 = mid cost, 2 = high cost
A6: Manual system controls | B6: manual | C6: =IF(manual_I="manual",1,IF(manual_I="semi-automated",2,IF(manual_I="fully automated",3,IF(component_level="",1,IF(component_level=2,3,CHOOSE(ss_cat2,1,3,3)))))) -> 3 | D6: 1 = fully manual system, 2 = semi-automated system, 3 = fully automated system. | E6: Based on system size and component level (see cell comment), unless user overrides on input sheet
A8: Valves and Instrumentation
A9: Size of valves for caustic pipe lines | B9: caustic_valve_size | C9: =caustic_pipe_diam -> 0.5 | D9: inches
A11: Number of MOVs for caustic line | B11: tot_caustic_MOVs | C11: =VLOOKUP("caustic_MOV_pump",valve_table,manual+1,FALSE)*(pump_chem_caustic+xfer_pumps)+IF(xfer_pump_approach=2,0,VLOOKUP("caustic_MOV_day",valve_table,manual+1,FALSE)*day_tanks)+IF(OR(day_tanks=0,xfer_pump_approach<>1),0,VLOOKUP("caustic_MOV_cst",valve_table,manual+1,FALSE)*num_caustic_tanks) -> 4 | D11: valves
A12: Number of manual valves for caustic line | B12: tot_caustic_man | C12: =VLOOKUP("caustic_man_pump",valve_table,manual+1,FALSE)*(pump_chem_caustic+xfer_pumps)+IF(xfer_pump_approach=2,0,VLOOKUP("caustic_man_day",valve_table,manual+1,FALSE)*day_tanks)+IF(OR(day_tanks=0,xfer_pump_approach<>1),0,VLOOKUP("caustic_man_cst",valve_table,manual+1,FALSE)*num_caustic_tanks) -> 0 | D12: valves
A13: Number of check valves for caustic line | B13: tot_caustic_chv | C13: =caustic_chv_pump*(pump_chem_caustic+xfer_pumps) -> 4 | D13: valves
A15: Total high/low alarms for chemical tanks | B15: tot_chem_alarm | C15: =alarm_chem*(num_caustic_tanks+day_tanks+active_chem_containers) -> 1 | D15: units
A16: Total pH controls | B16: pH_controls | C16: =pH_control -> 2 | D16: units
A17: Total drive controllers | B17: tot_switches | C17: =IF(manual<>3,0,S_cm_pump*(pump_chem_caustic+xfer_pumps)+S_mix*(cmixers+dmixers)) -> 2 | D17: units
A19: System Controls
A20: Total discrete inputs | B20: discrete_inputs | C20: =VLOOKUP("alarm",port_table,2,FALSE)*tot_chem_alarm+VLOOKUP("valve",port_table,2,FALSE)*tot_caustic_MOVs+VLOOKUP("ph",port_table,2,FALSE)*pH_controls+VLOOKUP("switch",port_table,2,FALSE)*tot_switches -> 7 | D20: units
A21: Total discrete outputs | B21: discrete_outputs | C21: =IF(manual=2,0,VLOOKUP("alarm",port_table,3,FALSE)*tot_chem_alarm+VLOOKUP("valve",port_table,3,FALSE)*tot_caustic_MOVs+VLOOKUP("ph",port_table,3,FALSE)*pH_controls+VLOOKUP("switch",port_table,3,FALSE)*tot_switches) -> 3 | D21: units
A22: Total analog inputs | B22: analog_inputs | C22: =VLOOKUP("alarm",port_table,4,FALSE)*tot_chem_alarm+VLOOKUP("valve",port_table,4,FALSE)*tot_caustic_MOVs+VLOOKUP("ph",port_table,4,FALSE)*pH_controls+VLOOKUP("switch",port_table,4,FALSE)*tot_switches -> 6 | D22: units
A23: Total analog outputs | B23: analog_outputs | C23: =IF(manual=2,0,VLOOKUP("alarm",port_table,5,FALSE)*tot_chem_alarm+VLOOKUP("valve",port_table,5,FALSE)*tot_caustic_MOVs+VLOOKUP("ph",port_table,5,FALSE)*pH_controls+VLOOKUP("switch",port_table,5,FALSE)*tot_switches) -> 4 | D23: units
A24: I/O Discrete Output Modules | B24: plc_discrete_output | C24: =ROUNDUP(discrete_outputs/32,0) -> 1 | D24: units
A25: I/O Discrete Input Modules | B25: plc_discrete_input | C25: =ROUNDUP(discrete_inputs/32,0) -> 1 | D25: units
A26: I/O Combination Analog Modules | B26: plc_combination_analog | C26: =ROUNDUP((analog_inputs + analog_outputs)/12,0) -> 1 | D26: units
A27: Total number of PLC slots used | B27: plc_slots | C27: =plc_discrete_input + plc_discrete_output + plc_combination_analog -> 3 | D27: units
A28: Expansions required | B28: plc_expansions | C28: =IF(plc_slots<=9,1,ROUNDUP((plc_slots-9)/8,0)) -> 1 | D28: units
A29: Base Expansion Modules | B29: plc_base_expansion | C29: =plc_expansions -> 1 | D29: units
A30: Base Expansion Controller Modules | B30: plc_base_expansion_controller | C30: =plc_expansions -> 1 | D30: units

Sheet O&M
A1: Operation and Maintenance Calculations
A3: Calculation | B3: Range Name | C3: Value | D3: Units | E3: Guidance
A4: Materials
A5: Chemicals
A6: Amount of sodium hydroxide | B6: naoh_yr | C6: =NaOH_lbs/cstore_days*365 -> 1046.333333 | D6: lb/yr
A8: Labor
A9: General Labor
A10: Number of process instruments | B10: tot_inst | C10: =pH_controls -> 2 | E10: Instruments requiring daily observation
A11: Total number of instruments for maintenance | B11: tot_inst_maint | C11: =pH_controls -> 2 | E11: All instruments for preventative maintenance
A12: Number of process pumps for operation | B12: tot_pumps | C12: =MAX(pump_chem_caustic-NRD_pump_chem_caustic,0)+MAX(xfer_pumps-xfer_pump_approach*NRD_xfer_pumps,0) -> 1
A13: Total number of pumps for maintenance | B13: tot_pumps_maint | C13: 0 | E13: No large pumps in this technology
A14: Number of process valves | B14: tot_valves | C14: 0 | E14: Chemical feed valve operation and maintenance adequately covered by labor for pumps/feeders and chemical supplies
A15: Number of chemical supplies | B15: tot_chem | C15: =num_caustic_tanks+active_chem_containers -> 1
A17: Record system operating parameters (includes routine sampling) | C17: =IF(manual=1,tot_inst*uloe_inst*365/60,uloe_inst_auto*365/60) -> 30.41666667 | D17: hr/yr
A18: Preventative maintenance and calibration of instruments | C18: =tot_inst_maint*uloe_inst_maint*12/60 -> 4 | D18: hr/yr
A19: Verify/adjust pump operating parameters | C19: =IF(OR(manual=1,manual=2),tot_pumps*uloe_pump*365/60,0) -> 0 | D19: hr/yr
A20: Preventative maintenance of pumps | C20: =tot_pumps_maint*uloe_pump_maint -> 0 | D20: hr/yr
A21: Verify/adjust valve positions | C21: =IF(OR(manual=1,manual=2),tot_valves*uloe_valve*52/60,0) -> 0 | D21: hr/yr
A22: Preventative maintenance and inspection of valves | C22: =tot_valves*uloe_valve_maint/60 -> 0 | D22: hr/yr
A23: Visual inspection of facility | C23: =total_fp/100*uloe_fp*365/60 -> 3.041666667 | D23: hr/yr
A24: Maintain/inspect chemical supply | C24: =tot_chem*uloe_chem_maint*12/60 -> 24 | D24: hr/yr
A26: General Operator Labor | B26: General_Oper_Labor | C26: =SUM(C17:C24) -> 61.45833333 | D26: hr/yr
A28: Annual Operator LOE | B28: Operator_LOE | C28: =General_Oper_Labor -> 61.45833333 | D28: hr/yr
A29: Annual Manager LOE | B29: Manager_LOE | C29: =Operator_LOE*Manager_percent -> 6.145833333 | D29: hr/yr | E29: Based on general operator labor and percentages in critical design assumptions
A30: Annual Administrative LOE | B30: Clerical_LOE | C30: =Operator_LOE*Clerical_percent -> 6.145833333 | D30: hr/yr | E30: Based on general operator labor and percentages in critical design assumptions
A32: Building and HVAC Maintenance
A33: Cost excluding heating and cooling | C33: =IF(include_buildings=0,0,building_matl_rate_cl*total_fp) -> 323.9514268 | D33: /yr
A34: Cost to maintain heating system, building 1 | C34: =build1_need_heat*heating_matl_rate_cl*build1_fp -> 0 | D34: /yr
A35: Cost to maintain cooling system, building 1 | C35: =build1_need_cool*cooling_matl_rate_cl*build1_fp -> 0 | D35: /yr
A36: Total annual building and HVAC maintenance | B36: bldg_maint_cost | C36: =SUM(C33:C35) -> 323.9514268
A38: Energy
A39: Building Lighting
A40: Lighting power per sf, building 1 | B40: lighting_energy_1 | C40: =IF(OR(build1_fp<500,component_level=""),lighting_power_low,CHOOSE(component_level,lighting_power_mid,lighting_power_high))*24*365/1000 -> 2.628 | D40: kWh/sf/yr
A41: Lighting | B41: lighting | C41: =IF(include_buildings=0,0,MIN(1,Operator_LOE/(24*365))*(build1_fp*lighting_energy_1)/1000) -> 0.000921875 | D41: MWh/yr
A43: HVAC
A44: Heating energy usage for:
A45: Electric resistance | B45: heating | C45: =IF(build1_heat=A45,VLOOKUP(A45,build1_heat_options, 7,FALSE),0) -> 0 | D45: MWh/yr
A46: Natural gas non-condensing furnace | B46: heating_gas_non | C46: 0 | D46: therms/yr
A47: Natural gas condensing furnace | B47: heating_gas | C47: 0 | D47: therms/yr
A48: Standard efficiency oil furnace | B48: heating_diesel_non | C48: 0 | D48: gal/yr
A49: Mid-efficiency oil furnace | B49: heating_diesel | C49: 0 | D49: gal/yr
A50: Heat pump | B50: heating_hp | C50: 0 | D50: MWh/yr
A52: Cooling energy usage for:
A53: Air conditioner | B53: cooling | C53: =IF(build1_cool=A53,VLOOKUP(A53,build1_cool_options, 7,FALSE),0) -> 0 | D53: MWh/yr
A54: Heat pump | B54: cooling_hp | C54: =IF(build1_cool=A54,VLOOKUP(A54,build1_cool_options, 7,FALSE),0) -> 0 | D54: MWh/yr

Sheet HVAC
A1: Building Heating, Ventilating, and Air Conditioning Calculations
A3: Calculation | B3: Range Name | C3: Value | D3: Units | E3: Guidance
A4: General information
A5: System size | B5: ss_cat2 | C5: =IF(design_flow<1,1,IF(design_flow<10,2,3)) -> 1 | D5: 1 indicates small system, 2 indicates medium, 3 indicates large | E5: ss_cat2 is used to select ventilation requirements and building type
A6: Building height | B6: Building_height | C6: =MAX(min_building_height, (2* ct_diam) + ceiling_clearance) -> 10 | D6: ft
A7: Buiding 1 length and width | B7: build1_side | C7: =build1_fp^0.5 -> 7.071067812 | D7: ft
A8: Include HVAC? | B8: include_HVAC | C8: =IF(include_HVAC_I="no",0,IF(include_HVAC_I="yes",1,2)) -> 0 | D8: 0 = always exclude, 1 = always include, 2 = use model default
A10: Ventilation
A11: Building 1 weighted average air changes | B11: air_changes_build1 | C11: =(Air_changes_chem_storage*(chem_store_fp+day_tank_fp))/build1_fp -> 1.92 | D11: air changes/hr
A12: Building 1 ventilation | C12: =CHOOSE(ss_cat2,fan_days_build1_small,fan_days_build1_medium,fan_days_build1_large)*24*0.746*Fan_pressure_drop*build1_fp*Building_height*air_changes_build1/33000 -> 11.71898182 | D12: kWh/yr
A13: Total ventilation | B13: ventilation | C13: =IF(include_HVAC=0,0,SUM(C12:C12)/1000) -> 0 | D13: MWh/yr
A15: Building 1 air exchange rate | B15: build1_cfm | C15: =build1_fp*Building_height*air_changes_build1/60 -> 16 | D15: cfm
A17: Heating and Cooling
A18: Include heating for building 1 | B18: build1_need_heat | C18: =IF(include_HVAC=0,0,IF(include_HVAC=1,1,VLOOKUP(IF(component_level_I="","low cost",component_level_I),IF(build1_fp<500,heating_table_shed,heating_table),ss_cat2+2,FALSE))) -> 0 | D18: 1 for yes, 0 for no | E18: Based on system size, building floorplan, and inputs
A19: Include cooling for building 1 | B19: build1_need_cool | C19: =IF(include_HVAC=0,0,IF(include_HVAC=1,1,VLOOKUP(IF(component_level_I="","low cost",component_level_I),IF(build1_fp<500,cooling_table_shed,cooling_table),ss_cat2+2,FALSE))) -> 0 | D19: 1 for yes, 0 for no
A21: Heating Requirements
A22: Building 1 side conductance heat loss | C22: =4*build1_side*Building_height*heat_DD*24/R_wall -> 1156713.557 | D22: BTU/yr
A23: Buiding 1 ceiling conductance heat loss | C23: =build1_fp*heat_DD*24/R_ceiling -> 104326.5306 | D23: BTU/yr
A24: Building 1 air exchange heat loss | C24: =build1_cfm*heat_viload -> 2698864 | D24: BTU/yr
A25: Building 1 total annual heat loss | B25: build1_heat_loss_yr | C25: =SUM(C22:C24) -> 3959904.088 | D25: BTU/yr
A26: Building 1 heating requirement in thousand BTU/hr | B26: build1_heat_mbh | C26: =build1_heat_loss_yr/365.25/24/1000 -> 0.4517344385 | D26: MBH
A27: Building 1 number of heating zones | B27: build1_heat_zones | C27: =ROUNDUP(build1_heat_mbh/max_heat_cl,0) -> 1
A29: Cooling Requirements
A30: Building 1 side conductance cooling loss | C30: =4*build1_side*Building_height*cool_DD*24/R_wall -> 384213.5406 | D30: BTU/yr
A31: Buiding 1 ceiling conductance cooling loss | C31: =build1_fp*cool_DD*24/R_ceiling -> 34653.06122 | D31: BTU/yr
A32: Building 1 air exchange cooling loss | C32: =build1_cfm*cool_viload -> 828336 | D32: BTU/yr
A33: Building 1 total annual cooling loss | B33: build1_cooling_loss_yr | C33: =SUM(C30:C32) -> 1247202.602 | D33: BTU/yr
A34: Building 1 cooling loss per hour | B34: build1_cooling_loss_hr | C34: =build1_cooling_loss_yr/365.25/24 -> 142.277276 | D34: BTU/hr
A36: Building 1 power lost: booster pumps | B36: build1_eloss_pumps | C36: 0 | D36: kWh
A37: Building 1 waste heat: booster pumps | B37: build1_waste_heat_pumps | C37: =build1_eloss_pumps*3415 -> 0 | D37: BTU/hr
A39: Building 1 total cooling requirement | B39: build1_cooling_req | C39: =build1_cooling_loss_hr+build1_waste_heat_pumps -> 142.277276 | D39: BTU/hr
A40: Building 1 annual cooling requirement | B40: build1_cooling_yr | C40: =build1_cooling_req*365.25*24 -> 1247202.602 | D40: BTU/yr
A41: Building 1 total cooling requirement in tons | B41: build1_cooling_tons | C41: =build1_cooling_req/12000 -> 0.01185643967 | D41: tons
A42: Building 1 number of cooling zones | B42: build1_cool_zones | C42: =ROUNDUP(build1_cooling_tons/max_cool_cl,0) -> 1
A44: Heating Options
A46: Building 1 number of HVAC zones | B46: build1_zones | C46: =MAX(build1_heat_zones, build1_cool_zones) -> 1
A48: Heat pump OK for building 1? | B48: hp_ok_1 | C48: =AND(build1_heat_mbh<=hp_max_heat_cl,build1_cooling_tons<=hp_max_cool_cl) -> TRUE | E48: For heat pumps, we check both heating and cooling capacities.
A50: Building 1 | B50: build1_heat_options
A51: Option | B51: Size needed per zone (MBH) | C51: Size selected (MBH) | D51: Direct Cost Per Zone | E51: Useful Life (yrs) | F51: Annualized Capital Cost, All Zones | G51: Energy/Yr | I51: Energy Unit Cost | K51: Annual Energy Cost | L51: Total Annual Cost
A52: Electric resistance | B52: =build1_heat_mbh/build1_zones -> 0.4517344385 | C52: =IF(curve=1,B52,VLOOKUP(B52,hvac_elec_cost_cl,2)) -> 0.4517344385 | D52: =IF(curve=1,hvac_elec_eq_1,VLOOKUP(B52,hvac_elec_cost_cl,3)) -> 620.9904335 | E52: =VLOOKUP(B52,hvac_elec_cost_cl,IF(ss_cat="large",4,5)) -> 20 | F52: =IF(D52="contact vendor","n/a",-PMT(Discount_rate,E52,D52)*build1_zones) -> 58.61710388 | G52: =build1_heat_loss_yr/3412000/resist_eff -> 1.18426684 | H52: MWh/yr | I52: =energy_cost_cl -> 0.1100175092 | J52: /kwh | K52: =I52*G52*1000 -> 130.290088 | L52: =IF(OR(F52="n/a",K52="n/a"),"n/a",F52+K52) -> 188.9071919
A53: Heat pump | B53: capital costs are in the cooling table | F53: n/a | G53: =IF(hp_ok_1,build1_heat_loss_yr/3412000/COP,"n/a") -> 0.3516913645 | H53: MWh/yr | I53: =energy_cost_cl -> 0.1100175092 | J53: /kwh | K53: =IF(G53="n/a","n/a",I53*G53*1000) -> 38.69220794 | L53: n/a
A54: Natural gas non-condensing furnace | B54: =build1_heat_mbh/build1_zones -> 0.4517344385 | C54: =IF(curve=1,B54,VLOOKUP(B54,hvac_gas_non_cost_cl,2)) -> 0.4517344385 | D54: =IF(curve=1,hvac_gas_non_eq_1,VLOOKUP(B54,hvac_gas_non_cost_cl,3)) -> 487.3817554 | E54: =VLOOKUP(B54,hvac_gas_non_cost_cl,IF(ss_cat="large",4,5)) -> 20 | F54: =IF(D54="contact vendor","n/a",-PMT(Discount_rate,E54,D54)*build1_zones) -> 46.00538985 | G54: =build1_heat_loss_yr/100000/gas_non_eff -> 46.58710691 | H54: therms/yr | I54: =gas_cost_cl -> 0.5785614035 | J54: /therm | K54: =I54*G54 -> 26.95350196 | L54: 72.95889181
A55: Natural gas condensing furnace | B55: =build1_heat_mbh/build1_zones -> 0.4517344385 | C55: =IF(curve=1,B55,VLOOKUP(B55,hvac_gas_cost_cl,2)) -> 0.4517344385 | D55: =IF(curve=1,hvac_gas_eq_1,VLOOKUP(B55,hvac_gas_cost_cl,3)) -> 487.3817554 | E55: =VLOOKUP(B55,hvac_gas_cost_cl,IF(ss_cat="large",4,5)) -> 20 | F55: =IF(D55="contact vendor","n/a",-PMT(Discount_rate,E55,D55)*build1_zones) -> 46.00538985 | G55: =build1_heat_loss_yr/100000/gas_eff -> 43.99893431 | H55: therms/yr | I55: =gas_cost_cl -> 0.5785614035 | J55: /therm | K55: =I55*G55 -> 25.45608519 | L55: 71.46147503
A56: Standard efficiency oil furnace | B56: =build1_heat_mbh/build1_zones -> 0.4517344385 | C56: =IF(curve=1,B56,VLOOKUP(B56,hvac_oil_std_cost_cl,2)) -> 0.4517344385 | D56: =IF(curve=1,hvac_oil_std_eq_1,VLOOKUP(B56,hvac_oil_std_cost_cl,3)) -> 656.705685 | E56: =VLOOKUP(B56,hvac_oil_std_cost_cl,IF(ss_cat="large",4,5)) -> 20 | F56: =IF(D56="contact vendor","n/a",-PMT(Discount_rate,E56,D56)*build1_zones) -> 61.98837096 | G56: =build1_heat_loss_yr/diesel_heat_content/diesel_non_eff -> 34.74209587 | H56: gal/yr | I56: =diesel_cost_cl -> 3.829500772 | J56: /gal | K56: =I56*G56 -> 133.044883 | L56: 195.0332539
A57: Mid-efficiency oil furnace | B57: =build1_heat_mbh/build1_zones -> 0.4517344385 | C57: =IF(curve=1,B57,VLOOKUP(B57,hvac_oil_mid_cost_cl,2)) -> 0.4517344385 | D57: =IF(curve=1,hvac_oil_mid_eq_1,VLOOKUP(B57,hvac_oil_mid_cost_cl,3)) -> 656.705685 | E57: =VLOOKUP(B57,hvac_oil_mid_cost_cl,IF(ss_cat="large",4,5)) -> 20 | F57: =IF(D57="contact vendor","n/a",-PMT(Discount_rate,E57,D57)*build1_zones) -> 61.98837096 | G57: =build1_heat_loss_yr/diesel_heat_content/diesel_eff -> 31.65390957 | H57: gal/yr | I57: =diesel_cost_cl -> 3.829500772 | J57: /gal | K57: =I57*G57 -> 121.2186711 | L57: 183.2070421
A60: Cooling Options
A61: Building 1 | B61: build1_cool_options
A62: Option | B62: Size needed per zone (tons) | C62: Size selected (tons) | D62: Direct Cost Per Zone | E62: Useful Life (yrs) | F62: Annualized Capital Cost, All Zones | G62: Energy/Yr | I62: Energy Unit Cost | K62: Annual Energy Cost | L62: Total Annual Cost
A63: Air conditioner | B63: =build1_cooling_tons/build1_zones -> 0.01185643967 | C63: =IF(curve=1,B63,VLOOKUP(B63,hvac_ac_cost_cl,2)) -> 0.01185643967 | D63: =IF(curve=1,hvac_ac_eq_1,VLOOKUP(B63,hvac_ac_cost_cl,3)) -> 17.50119572 | E63: =VLOOKUP(B63,hvac_ac_cost_cl,IF(ss_cat="large",4,5)) -> 20 | F63: =IF(D63="contact vendor","n/a",-PMT(Discount_rate,E63,D63)*build1_zones) -> 1.651989068 | G63: =build1_cooling_yr/EER/10^6 -> 0.1056951358 | H63: MWh/yr | I63: =energy_cost_cl -> 0.1100175092 | J63: /kwh | K63: =I63*G63*1000 -> 11.62831557 | L63: =IF(F63="n/a","n/a",F63+K63) -> 13.28030464
A64: Heat pump | B64: =build1_cooling_tons/build1_zones -> 0.01185643967 | C64: =IF(hp_ok_1,IF(curve=1,B64,VLOOKUP(B64,hvac_hp_cost_cl,2)),"n/a") -> 0.01185643967 | D64: =IF(C64="n/a","n/a",IF(curve=1,hvac_hp_eq_1,VLOOKUP(B64,hvac_hp_cost_cl,3))) -> 347.8225109 | E64: =IF(C64="n/a","n/a",VLOOKUP(B64,hvac_hp_cost_cl,IF(ss_cat="large",4,5))) -> 20 | F64: =IF(OR(D64="contact vendor",D64="n/a"),"n/a",-PMT(Discount_rate,E64,D64)*build1_zones) -> 32.83198444 | G64: =IF(C64="n/a","n/a",build1_cooling_yr/hp_EER/10^6) -> 0.1056951358 | H64: MWh/yr | I64: =energy_cost_cl -> 0.1100175092 | J64: /kwh | K64: =IF(C64="n/a","n/a",I64*G64*1000) -> 11.62831557 | L64: =IF(F64="n/a","n/a",F64+K64) -> 44.46030002
A67: Heating and Cooling Selection | E67: We will select the option with the lowest annual cost for each building.
A69: Building 1 Selection
A70: Heating option | B70: Annual cost | C70: Cooling option | D70: Annual cost | E70: Total annual cost
A71: Electric resistance | B71: =IF(build1_need_heat,VLOOKUP(A71,build1_heat_options,12,FALSE),0) -> 0 | C71: Air conditioner | D71: =IF(build1_need_cool,VLOOKUP(C71,build1_cool_options,12,FALSE),0) -> 0 | E71: =IF(OR(B71="n/a",D71="n/a"),"n/a",ROUND(B71+D71,0)) -> 0
A72: Natural gas non-condensing furnace | B72: =IF(build1_need_heat,VLOOKUP(A72,build1_heat_options,12,FALSE),0) -> 0 | C72: Air conditioner | D72: =IF(build1_need_cool,VLOOKUP(C72,build1_cool_options,12,FALSE),0) -> 0 | E72: 0
A73: Natural gas condensing furnace | B73: =IF(build1_need_heat,VLOOKUP(A73,build1_heat_options,12,FALSE),0) -> 0 | C73: Air conditioner | D73: =IF(build1_need_cool,VLOOKUP(C73,build1_cool_options,12,FALSE),0) -> 0 | E73: 0
A74: Standard efficiency oil furnace | B74: =IF(build1_need_heat,VLOOKUP(A74,build1_heat_options,12,FALSE),0) -> 0 | C74: Air conditioner | D74: =IF(build1_need_cool,VLOOKUP(C74,build1_cool_options,12,FALSE),0) -> 0 | E74: 0
A75: Mid-efficiency oil furnace | B75: =IF(build1_need_heat,VLOOKUP(A75,build1_heat_options,12,FALSE),0) -> 0 | C75: Air conditioner | D75: =IF(build1_need_cool,VLOOKUP(C75,build1_cool_options,12,FALSE),0) -> 0 | E75: 0
A76: Heat pump | B76: =IF(AND(build1_need_heat, build1_need_cool),K53,"n/a") -> n/a | C76: Heat pump | D76: =IF(AND(build1_need_heat,build1_need_cool),VLOOKUP(C76,build1_cool_options,12,FALSE),0) -> 0 | E76: n/a
A78: Row selected | B78: build1_row | C78: =MATCH(MIN(E71:E76),E71:E76,0) -> 1
A79: Building 1 heating selection | B79: build1_heat | C79: =IF(build1_need_heat,INDEX(A71:A76,build1_row),"n/a") -> n/a
A80: Building 1 cooling selection | B80: build1_cool | C80: =IF(build1_need_cool,INDEX(C71:C76,build1_row),"n/a") -> n/a

Sheet Indirect
A1: Indirect and Add-on Cost Calculations
A3: Calculation | B3: Range Name | C3: Value | D3: Units | E3: Guidance
A4: Buildings and Land
A5: Include buildings? | B5: include_buildings | C5: =IF(include_buildings_I="no",0,1) -> 1 | D5: 1 = yes, 0 = no
A6: Include land? | B6: include_land | C6: =IF(include_land_I="no",0,1) -> 1 | D6: 1 = yes, 0 = no
A8: Sitework
A9: Total technology footprint | B9: tech_fp | C9: =total_fp -> 50 | D9: square feet
A10: Total sitework cost | B10: sitework_cost | C10: =tech_fp*sitework_sf_cl -> 759.5604396
A12: Permits
A13: Building #1 value | C13: =SUMPRODUCT(OUTPUT!J98:J110,OUTPUT!L98:L110) -> 2537.114472 | E13: Determined using Use? Column of output sheet
A14: Building permit cost | C14: =VLOOKUP(design_flow,UBC_mult_table_cl,3)*(BPCost_UBC97(C13)) -> 216.45 | E14: Uses custom function to apply formula and multiplier documented in Abt Associates, 2020, Permitting Requirement Costs for Drinking Water Treatment Cost Models. Prepared for USEPA. October.
A15: Total permit cost | B15: permit_cost | C15: =C14 -> 216.45
A17: Construction Management and General Contractor Job Overhead
A18: Builder's risk insurance percentage | C18: =br_ins_pct*direct_cost -> 71.35312762
A19: Performance bond cost | C19: =include_bond*(VLOOKUP(direct_cost,performance_bond_table_cl,3)+VLOOKUP(direct_cost,performance_bond_table_cl,4)*(direct_cost-VLOOKUP(direct_cost,performance_bond_table_cl,5))) -> 524.6553502 | E19: Bracket determined from direct capital cost
A20: Construction management percentage | C20: =VLOOKUP(direct_cost,construction_mgt_table_cl,3) -> 0.1 | E20: Looked up from direct capital cost
A21: Construction management fee | C21: =include_cm*C20*direct_cost -> 2098.621401
A22: Total construction management/job overhead cost | B22: cm_cost | C22: =SUM(C18:C19,C21) -> 2694.629878
A24: Percent Contributions to Annualized Cost
A25: Total annualized cost percent capital | B25: TAC_pct_cap | C25: =Annualized_Capital_Cost/Annualized_Cost -> 0.5207404944
A26: Total annualized cost percent O&M | B26: TAC_pct_OM | C26: =om_cost/Annualized_Cost -> 0.4792595056

Sheet Cost Equations
A1: Cost Equations
A2: This sheet is used internally to calculate component costs using the cost equations method; see model documentation for more details on the development of cost equations
A4: Component | B4: Equation Name | C4: Result | D4: Variable | E4: Equation Lookup Name | F4: 2 | G4: 3 | H4: 4 | I4: 5 | J4: 6 | K4: 7 | L4: 8 | M4: 9 | N4: 10 | O4: 11 | P4: 16 | Q4: 17
A5: Tanks
A6: Caustic Storage Tanks
A7: Plastic/XLPE | B7: pl_cst_eq_naoh | C7: =IF(OR(D7>P7,D7<Q7),"contact vendor",F7*D7^G7+H7*LN(D7)+I7+J7*EXP(K7*D7)+L7*D7^3+M7*D7^2+N7*D7+O7) ->  | D7: =caustic_tank_vol -> 0 | E7: pl_cst_eq | F7: =VLOOKUP($E7,eq_table_cl,F$4,FALSE) -> 0 | G7: 0 | H7: 0 | I7: 0 | J7: 0 | K7: 0 | L7: 0 | M7: 0.000189841 | N7: 1.125069329 | O7: 710.8399624 | P7: 6601 | Q7: 0
A8: Fiberglass | B8: fg_cst_eq_naoh | C8: =IF(OR(D8>P8,D8<Q8),"contact vendor",F8*D8^G8+H8*LN(D8)+I8+J8*EXP(K8*D8)+L8*D8^3+M8*D8^2+N8*D8+O8) ->  | D8: =caustic_tank_vol -> 0 | E8: fg_cst_eq | F8: 259.3553294 | G8: 0.551376562 | H8: 0 | I8: 0 | J8: 0 | K8: 0 | L8: 0 | M8: 0 | N8: 0 | O8: 0 | P8: 30001 | Q8: 0
A9: Stainless Steel | B9: ss_cst_eq_naoh | C9: =IF(OR(D9>P9,D9<Q9),"contact vendor",F9*D9^G9+H9*LN(D9)+I9+J9*EXP(K9*D9)+L9*D9^3+M9*D9^2+N9*D9+O9) ->  | D9: =caustic_tank_vol -> 0 | E9: ss_cst_eq | F9: 57.02158923 | G9: 0.729325391 | H9: 0 | I9: 0 | J9: 0 | K9: 0 | L9: 0 | M9: 0 | N9: 0 | O9: 0 | P9: 30001 | Q9: 0
A10: Heat Tracing | B10: cst_heat_eq | C10: =IF(OR(D10>P10,D10<Q10),"contact vendor",F10*D10^G10+H10*LN(D10)+I10+J10*EXP(K10*D10)+L10*D10^3+M10*D10^2+N10*D10+O10) ->  | D10: =caustic_tank_vol -> 0 | E10: cst_heat_eq | F10: 0 | G10: 0 | H10: 0 | I10: 0 | J10: 0 | K10: 0 | L10: 0 | M10: 2.0172e-05 | N10: 0.198704238 | O10: 2163.446294 | P10: 30001 | Q10: 0
A11: Insulation | B11: cst_insul_eq | C11: =IF(OR(D11>P11,D11<Q11),"contact vendor",F11*D11^G11+H11*LN(D11)+I11+J11*EXP(K11*D11)+L11*D11^3+M11*D11^2+N11*D11+O11) ->  | D11: =caustic_tank_vol -> 0 | E11: cst_insul_eq | F11: 21.04607705 | G11: 0.643558775 | H11: 0 | I11: 0 | J11: 0 | K11: 0 | L11: 0 | M11: 0 | N11: 0 | O11: 0 | P11: 30001 | Q11: 0
A12: Day Tanks
A13: Plastic/XLPE | B13: pl_day_eq | C13: =IF(OR(D13>P13,D13<Q13),"contact vendor",F13*D13^G13+H13*LN(D13)+I13+J13*EXP(K13*D13)+L13*D13^3+M13*D13^2+N13*D13+O13) ->  | D13: =day_tank_vol -> 0 | E13: pl_cst_eq | F13: =VLOOKUP($E13,eq_table_cl,F$4,FALSE) -> 0 | G13: 0 | H13: 0 | I13: 0 | J13: 0 | K13: 0 | L13: 0 | M13: 0.000189841 | N13: 1.125069329 | O13: 710.8399624 | P13: 6601 | Q13: 0
A14: Fiberglass | B14: fg_day_eq | C14: =IF(OR(D14>P14,D14<Q14),"contact vendor",F14*D14^G14+H14*LN(D14)+I14+J14*EXP(K14*D14)+L14*D14^3+M14*D14^2+N14*D14+O14) ->  | D14: =day_tank_vol -> 0 | E14: fg_cst_eq | F14: 259.3553294 | G14: 0.551376562 | H14: 0 | I14: 0 | J14: 0 | K14: 0 | L14: 0 | M14: 0 | N14: 0 | O14: 0 | P14: 30001 | Q14: 0
A15: Stainless Steel | B15: ss_day_eq | C15: =IF(OR(D15>P15,D15<Q15),"contact vendor",F15*D15^G15+H15*LN(D15)+I15+J15*EXP(K15*D15)+L15*D15^3+M15*D15^2+N15*D15+O15) ->  | D15: =day_tank_vol -> 0 | E15: ss_cst_eq | F15: 57.02158923 | G15: 0.729325391 | H15: 0 | I15: 0 | J15: 0 | K15: 0 | L15: 0 | M15: 0 | N15: 0 | O15: 0 | P15: 30001 | Q15: 0
A16: Heat Tracing | B16: day_heat_eq | C16: =IF(OR(D16>P16,D16<Q16),"contact vendor",F16*D16^G16+H16*LN(D16)+I16+J16*EXP(K16*D16)+L16*D16^3+M16*D16^2+N16*D16+O16) ->  | D16: =day_tank_vol -> 0 | E16: cst_heat_eq | F16: 0 | G16: 0 | H16: 0 | I16: 0 | J16: 0 | K16: 0 | L16: 0 | M16: 2.0172e-05 | N16: 0.198704238 | O16: 2163.446294 | P16: 30001 | Q16: 0
A17: Insulation | B17: day_insul_eq | C17: =IF(OR(D17>P17,D17<Q17),"contact vendor",F17*D17^G17+H17*LN(D17)+I17+J17*EXP(K17*D17)+L17*D17^3+M17*D17^2+N17*D17+O17) ->  | D17: =day_tank_vol -> 0 | E17: cst_insul_eq | F17: 21.04607705 | G17: 0.643558775 | H17: 0 | I17: 0 | J17: 0 | K17: 0 | L17: 0 | M17: 0 | N17: 0 | O17: 0 | P17: 30001 | Q17: 0
A18: Storage Tank Mixers
A19: Portable | B19: no equation
A20: Mounted | B20: cmount_mix_eq | C20: =IF(OR(D20>P20,D20<Q20),"contact vendor",F20*D20^G20+H20*LN(D20)+I20+J20*EXP(K20*D20)+L20*D20^3+M20*D20^2+N20*D20+O20) ->  | D20: =cmix_size -> 0 | E20: mount_mix_eq | F20: =VLOOKUP($E20,eq_table_cl,F$4,FALSE) -> 3220.980063 | G20: 0.148044622 | H20: 0 | I20: 0 | J20: 0 | K20: 0 | L20: 0 | M20: 0 | N20: 0 | O20: 0 | P20: 4.1 | Q20: 0
A21: Impeller Mixers | B21: cimp_mix_eq | C21: =IF(OR(D21>P21,D21<Q21),"contact vendor",F21*D21^G21+H21*LN(D21)+I21+J21*EXP(K21*D21)+L21*D21^3+M21*D21^2+N21*D21+O21) ->  | D21: =cmix_size -> 0 | E21: imp_mix_eq | F21: 0 | G21: 0 | H21: 0 | I21: 0 | J21: 0 | K21: 0 | L21: 0 | M21: 0 | N21: 1053.024974 | O21: 4010.016173 | P21: 110 | Q21: 0
A22: Day Tank Mixers
A23: Portable | B23: no equation
A24: Mounted | B24: dmount_mix_eq | C24: =IF(OR(D24>P24,D24<Q24),"contact vendor",F24*D24^G24+H24*LN(D24)+I24+J24*EXP(K24*D24)+L24*D24^3+M24*D24^2+N24*D24+O24) ->  | D24: =dmix_size -> 0 | E24: mount_mix_eq | F24: =VLOOKUP($E24,eq_table_cl,F$4,FALSE) -> 3220.980063 | G24: 0.148044622 | H24: 0 | I24: 0 | J24: 0 | K24: 0 | L24: 0 | M24: 0 | N24: 0 | O24: 0 | P24: 4.1 | Q24: 0
A25: Impeller Mixers | B25: dimp_mix_eq | C25: =IF(OR(D25>P25,D25<Q25),"contact vendor",F25*D25^G25+H25*LN(D25)+I25+J25*EXP(K25*D25)+L25*D25^3+M25*D25^2+N25*D25+O25) ->  | D25: =dmix_size -> 0 | E25: imp_mix_eq | F25: 0 | G25: 0 | H25: 0 | I25: 0 | J25: 0 | K25: 0 | L25: 0 | M25: 0 | N25: 1053.024974 | O25: 4010.016173 | P25: 110 | Q25: 0
A26: Piping
A27: Caustic Piping
A28: CPVC | B28: cpvc_pipe_eq_caustic | C28: =IF(OR(D28>P28,D28<Q28),"contact vendor",F28*D28^G28+H28*LN(D28)+I28+J28*EXP(K28*D28)+L28*D28^3+M28*D28^2+N28*D28+O28) -> 2.593344082 | D28: =caustic_pipe_diam -> 0.5 | E28: cpvc_pipe_eq | F28: =VLOOKUP($E28,eq_table_cl,F$4,FALSE) -> 0 | G28: 0 | H28: 0 | I28: 0 | J28: 0 | K28: 0 | L28: 0.006507248 | M28: 0.744088166 | N28: 2.910642758 | O28: 0.951187256 | P28: 18.1 | Q28: 0
A29: PVC | B29: pvc_pipe_eq_caustic | C29: =IF(OR(D29>P29,D29<Q29),"contact vendor",F29*D29^G29+H29*LN(D29)+I29+J29*EXP(K29*D29)+L29*D29^3+M29*D29^2+N29*D29+O29) -> 1.852484879 | D29: =caustic_pipe_diam -> 0.5 | E29: pvc_pipe_eq | F29: 0 | G29: 0 | H29: 0 | I29: 0 | J29: 0 | K29: 0 | L29: 0 | M29: 0.097106987 | N29: 0.800977414 | O29: 1.427719425 | P29: 48.1 | Q29: 0
A30: Stainless Steel | B30: ss_pipe_eq_caustic | C30: =IF(OR(D30>P30,D30<Q30),"contact vendor",F30*D30^G30+H30*LN(D30)+I30+J30*EXP(K30*D30)+L30*D30^3+M30*D30^2+N30*D30+O30) -> 16.35807022 | D30: =caustic_pipe_diam -> 0.5 | E30: ss_pipe_eq | F30: 0 | G30: 0 | H30: 0 | I30: 0 | J30: 0 | K30: 0 | L30: 0.048585111 | M30: -2.584525622 | N30: 58.92832832 | O30: -12.46603568 | P30: 48.1 | Q30: 0
A31: Valves
A32: Motor/Air Operated (on/off)
A33: Polypropylene/PVC - Caustic line | B33: pp_mov_eq_caustic | C33: =IF(OR(D33>P33,D33<Q33),"contact vendor",F33*D33^G33+H33*LN(D33)+I33+J33*EXP(K33*D33)+L33*D33^3+M33*D33^2+N33*D33+O33) -> 656.0631953 | D33: =caustic_valve_size -> 0.5 | E33: =IF(D33>12,"pp_mov_eq_large","pp_mov_eq_small") -> pp_mov_eq_small | F33: =VLOOKUP($E33,eq_table_cl,F$4,FALSE) -> 0 | G33: 0 | H33: 0 | I33: 0 | J33: 599.0006203 | K33: 0.18198897 | L33: 0 | M33: 0 | N33: 0 | O33: 0 | P33: 12 | Q33: 0
A34: Stainless Steel - Caustic line | B34: ss_mov_eq_caustic | C34: =IF(OR(D34>P34,D34<Q34),"contact vendor",F34*D34^G34+H34*LN(D34)+I34+J34*EXP(K34*D34)+L34*D34^3+M34*D34^2+N34*D34+O34) -> 1419.488948 | D34: =caustic_valve_size -> 0.5 | E34: ss_mov_eq | F34: 0 | G34: 0 | H34: 0 | I34: 0 | J34: 0 | K34: 0 | L34: 1.481345126 | M34: 44.57582587 | N34: -42.85092445 | O34: 1429.585285 | P34: 48.1 | Q34: 0
A35: Manual
A36: Polypropylene/PVC - Caustic line | B36: pp_man_eq_caustic | C36: =IF(OR(D36>P36,D36<Q36),"contact vendor",F36*D36^G36+H36*LN(D36)+I36+J36*EXP(K36*D36)+L36*D36^3+M36*D36^2+N36*D36+O36) -> 138.5557703 | D36: =caustic_valve_size -> 0.5 | E36: =IF(D36>12,"pp_man_eq_large","pp_man_eq_small") -> pp_man_eq_small | F36: =VLOOKUP($E36,eq_table_cl,F$4,FALSE) -> 0 | G36: 0 | H36: 0 | I36: 0 | J36: 0 | K36: 0 | L36: 0 | M36: 12.11782352 | N36: 45.057729 | O36: 112.9974499 | P36: 12 | Q36: 0
A37: Stainless Steel - Caustic line | B37: ss_man_eq_caustic | C37: =IF(OR(D37>P37,D37<Q37),"contact vendor",F37*D37^G37+H37*LN(D37)+I37+J37*EXP(K37*D37)+L37*D37^3+M37*D37^2+N37*D37+O37) -> 143.1703951 | D37: =caustic_valve_size -> 0.5 | E37: ss_man_eq | F37: 271.9831646 | G37: 0.925784152 | H37: 0 | I37: 0 | J37: 0 | K37: 0 | L37: 0 | M37: 0 | N37: 0 | O37: 0 | P37: 12.1 | Q37: 0
A38: Check Valves
A39: Polypropylene/PVC - Caustic line | B39: pp_chv_eq_caustic | C39: =IF(OR(D39>P39,D39<Q39),"contact vendor",F39*D39^G39+H39*LN(D39)+I39+J39*EXP(K39*D39)+L39*D39^3+M39*D39^2+N39*D39+O39) -> 76.11900968 | D39: =caustic_valve_size -> 0.5 | E39: pp_chv_eq | F39: =VLOOKUP($E39,eq_table_cl,F$4,FALSE) -> 0 | G39: 0 | H39: 0 | I39: 0 | J39: 0 | K39: 0 | L39: 0 | M39: 23.86718131 | N39: 53.97412715 | O39: 43.16515077 | P39: 12.1 | Q39: 0
A40: Stainless Steel - Caustic line | B40: ss_chv_eq_caustic | C40: =IF(OR(D40>P40,D40<Q40),"contact vendor",F40*D40^G40+H40*LN(D40)+I40+J40*EXP(K40*D40)+L40*D40^3+M40*D40^2+N40*D40+O40) -> 218.4037498 | D40: =caustic_valve_size -> 0.5 | E40: ss_chv_eq | F40: 0 | G40: 0 | H40: 0 | I40: 0 | J40: 0 | K40: 0 | L40: 0 | M40: 43.73937074 | N40: 186.7909987 | O40: 114.0734077 | P40: 48.1 | Q40: 0
A41: Pumps
A42: Caustic Metering
A43: PVC - Motor Driven | B43: pvc_mmpump_eq_caustic | C43: =IF(OR(D43>P43,D43<Q43),"contact vendor",F43*D43^G43+H43*LN(D43)+I43+J43*EXP(K43*D43)+L43*D43^3+M43*D43^2+N43*D43+O43) -> 3008.169431 | D43: =cm_pump_rating -> 0.13 | E43: pvc_mmpump_eq | F43: =VLOOKUP($E43,eq_table_cl,F$4,FALSE) -> 0 | G43: 0 | H43: 0 | I43: 0 | J43: 0 | K43: 0 | L43: 0.000584597 | M43: -0.31291286 | N43: 58.80044432 | O43: 3000.53066 | P43: 132.01 | Q43: 0
A44: Stainless Steel - Motor Driven | B44: ss_mmpump_eq_caustic | C44: =IF(OR(D44>P44,D44<Q44),"contact vendor",F44*D44^G44+H44*LN(D44)+I44+J44*EXP(K44*D44)+L44*D44^3+M44*D44^2+N44*D44+O44) -> 3438.717763 | D44: =cm_pump_rating -> 0.13 | E44: ss_mmpump_eq | F44: 0 | G44: 0 | H44: 0 | I44: 0 | J44: 0 | K44: 0 | L44: 0 | M44: -0.197615781 | N44: 60.92805622 | O44: 3430.800455 | P44: 132.01 | Q44: 0
A45: PVC - Electric | B45: pvc_empump_eq_caustic | C45: =IF(OR(D45>P45,D45<Q45),"contact vendor",F45*D45^G45+H45*LN(D45)+I45+J45*EXP(K45*D45)+L45*D45^3+M45*D45^2+N45*D45+O45) -> 1156.17085 | D45: =cm_pump_rating -> 0.13 | E45: pvc_empump_eq | F45: 0 | G45: 0 | H45: 0 | I45: 0 | J45: 1147.972396 | K45: 0.054740779 | L45: 0 | M45: 0 | N45: 0 | O45: 0 | P45: 21.01 | Q45: 0
A46: Stainless Steel - Electric | B46: ss_empump_eq_caustic | C46: =IF(OR(D46>P46,D46<Q46),"contact vendor",F46*D46^G46+H46*LN(D46)+I46+J46*EXP(K46*D46)+L46*D46^3+M46*D46^2+N46*D46+O46) -> 1729.497108 | D46: =cm_pump_rating -> 0.13 | E46: ss_empump_eq | F46: 2305.922201 | G46: 0.140989643 | H46: 0 | I46: 0 | J46: 0 | K46: 0 | L46: 0 | M46: 0 | N46: 0 | O46: 0 | P46: 21.01 | Q46: 0
A47: Transfer Pumps | B47: xfer_pump_eq | C47: =IF(OR(D47>P47,D47<Q47),"contact vendor",F47*D47^G47+H47*LN(D47)+I47+J47*EXP(K47*D47)+L47*D47^3+M47*D47^2+N47*D47+O47) ->  | D47: =xfer_pump_rating -> 0 | E47: chem_pump_eq | F47: 0 | G47: 0 | H47: 0 | I47: 0 | J47: 0 | K47: 0 | L47: 7e-09 | M47: -8.4886e-05 | N47: 0.697045972 | O47: 250.0890299 | P47: 12180.01 | Q47: 0
A48: Mixers and Other Equipment
A49: Inline Mixers
A50: Plastic | B50: pl_in_mix_eq | C50: =IF(OR(D50>P50,D50<Q50),"contact vendor",F50*D50^G50+H50*LN(D50)+I50+J50*EXP(K50*D50)+L50*D50^3+M50*D50^2+N50*D50+O50) -> 555.7061717 | D50: =mixer_size -> 1.5 | E50: pl_in_mix_eq | F50: =VLOOKUP($E50,eq_table_cl,F$4,FALSE) -> 0 | G50: 0 | H50: 0 | I50: 0 | J50: 0 | K50: 0 | L50: -6.340985913 | M50: 74.01884445 | N50: 18.86416826 | O50: 382.2683468 | P50: 6.1 | Q50: 0
A51: Stainless Steel | B51: in_mix_eq | C51: =IF(OR(D51>P51,D51<Q51),"contact vendor",F51*D51^G51+H51*LN(D51)+I51+J51*EXP(K51*D51)+L51*D51^3+M51*D51^2+N51*D51+O51) -> 1713.480068 | D51: =mixer_size -> 1.5 | E51: in_mix_eq | F51: 0 | G51: 0 | H51: 0 | I51: 0 | J51: 0 | K51: 0 | L51: 0.894369999 | M51: -7.568834588 | N51: 587.6429996 | O51: 846.0269475 | P51: 42.1 | Q51: 0
A52: Building Structures and HVAC | C52: =IF(LEN($E52)=0,"",IF(OR(D52>P52,D52<Q52),"contact vendor",F52*D52^G52+H52*LN(D52)+I52+J52*EXP(K52*D52)+L52*D52^3+M52*D52^2+N52*D52+O52)) ->  | F52: =IF(LEN($E52)=0,"",VLOOKUP($E52,eq_table_cl,F$7,FALSE)) -> 
A53: Building 1
A54: Low Quality Structure | B54: bldg_lo_eq_1 | C54: 112.8117285 | D54: =build1_fp -> 50 | E54: bldg_lo_eq | F54: =VLOOKUP($E54,eq_table_cl,F$4,FALSE) -> 163.7208726 | G54: -0.095204622 | H54: 0 | I54: 0 | J54: 0 | K54: 0 | L54: 0 | M54: 0 | N54: 0 | O54: 0 | P54: 200000.1 | Q54: 0
A55: Medium Quality Structure | B55: bldg_mid_eq_1 | C55: 135.8922173 | D55: =build1_fp -> 50 | E55: bldg_mid_eq | F55: 198.0211938 | G55: -0.096244836 | H55: 0 | I55: 0 | J55: 0 | K55: 0 | L55: 0 | M55: 0 | N55: 0 | O55: 0 | P55: 200000.1 | Q55: 0
A56: High Quality Structure | B56: bldg_hi_eq_1 | C56: 221.6613917 | D56: =build1_fp -> 50 | E56: bldg_hi_eq | F56: 378.4122185 | G56: -0.136715242 | H56: 0 | I56: 0 | J56: 0 | K56: 0 | L56: 0 | M56: 0 | N56: 0 | O56: 0 | P56: 200000.1 | Q56: 0
A57: Heating System
A58: Electric resistance | B58: hvac_elec_eq_1 | C58: 620.9904335 | D58: =build1_heat_mbh/build1_zones -> 0.4517344385 | E58: hvac_elec_eq | F58: =VLOOKUP($E58,eq_table_cl,F$4,FALSE) -> 1144.497327 | G58: 0.769391329 | H58: 0 | I58: 0 | J58: 0 | K58: 0 | L58: 0 | M58: 0 | N58: 0 | O58: 0 | P58: 6148.1 | Q58: 0
A59: Natural gas non-condensing furnace | B59: hvac_gas_non_eq_1 | C59: 487.3817554 | D59: =build1_heat_mbh/build1_zones -> 0.4517344385 | E59: hvac_gas_non_eq | F59: 884.952743 | G59: 0.750617798 | H59: 0 | I59: 0 | J59: 0 | K59: 0 | L59: 0 | M59: 0 | N59: 0 | O59: 0 | P59: 5032.1 | Q59: 0
A60: Natural gas condensing furnace | B60: hvac_gas_eq_1 | C60: 487.3817554 | D60: =build1_heat_mbh/build1_zones -> 0.4517344385 | E60: hvac_gas_eq | F60: 884.952743 | G60: 0.750617798 | H60: 0 | I60: 0 | J60: 0 | K60: 0 | L60: 0 | M60: 0 | N60: 0 | O60: 0 | P60: 5032.1 | Q60: 0
A61: Standard efficiency oil furnace | B61: hvac_oil_std_eq_1 | C61: 656.705685 | D61: =build1_heat_mbh/build1_zones -> 0.4517344385 | E61: hvac_oil_std_eq | F61: 1161.335 | G61: 0.717399847 | H61: 0 | I61: 0 | J61: 0 | K61: 0 | L61: 0 | M61: 0 | N61: 0 | O61: 0 | P61: 3350.1 | Q61: 0
A62: Mid-efficiency oil furnace | B62: hvac_oil_mid_eq_1 | C62: 656.705685 | D62: =build1_heat_mbh/build1_zones -> 0.4517344385 | E62: hvac_oil_mid_eq | F62: 1161.335 | G62: 0.717399847 | H62: 0 | I62: 0 | J62: 0 | K62: 0 | L62: 0 | M62: 0 | N62: 0 | O62: 0 | P62: 3350.1 | Q62: 0
A63: Cooling System
A64: Air conditioning system | B64: hvac_ac_eq_1 | C64: =IF(LEN($E64)=0,"",IF(OR(D64>P64,D64<Q64),"contact vendor",F64*D64^G64+H64*LN(D64)+I64+J64*EXP(K64*D64)+L64*D64^3+M64*D64^2+N64*D64+O64)) -> 17.50119572 | D64: =build1_cooling_tons/build1_zones -> 0.01185643967 | E64: hvac_ac_eq | F64: =VLOOKUP($E64,eq_table_cl,F$4,FALSE) -> 2490.016643 | G64: 1.117904172 | H64: 0 | I64: 0 | J64: 0 | K64: 0 | L64: 0 | M64: 0 | N64: 0 | O64: 0 | P64: 113.33 | Q64: 0
A65: Heat pump | B65: hvac_hp_eq_1 | C65: 347.8225109 | D65: =build1_cooling_tons/build1_zones -> 0.01185643967 | E65: =IF(D65>12,"hvac_hp_eq_large","hvac_hp_eq_small") -> hvac_hp_eq_small | F65: 3571.600363 | G65: 0.525171947 | H65: 0 | I65: 0 | J65: 0 | K65: 0 | L65: 0 | M65: 0 | N65: 0 | O65: 0 | P65: 12 | Q65: 0

Sheet Cost Coefficients
A1: Coefficients for Component Cost Equations
A2: This sheet is used internally to calculate component costs using the cost equations method; see model documentation for more details on the development of cost equations
B4: Power: C1*x^C2 | D4: Logarithmic: C3*Ln(x) + C4 | F4: Exponential: C5*e^(C6*x) | H4: Polynomial: C7*x^3 + C8*x^2 + C9*x + C10 | L4: NOTES
A5: Equation Lookup Name | B5: C1 | C5: C2 | D5: C3 | E5: C4 | F5: C5 | G5: C6 | H5: C7 | I5: C8 | J5: C9 | K5: C10 | L5: Pct deviation of fit equation | M5: Modified by | N5: Last modified | O5: Rsq of fit equation | P5: max size used to gen curve | Q5: min size for which curve fits are valid
A6: bldg_hi_eq | B6: 378.4122185 | C6: -0.136715242 | D6: 0 | E6: 0 | F6: 0 | G6: 0 | H6: 0 | I6: 0 | J6: 0 | K6: 0 | L6: 0.04037254638 | N6: 1/25/2023 5:11:07 PM | O6: 0.9531994767 | P6: 200000.1 | Q6: 0
A7: bldg_lo_eq | B7: 163.7208726 | C7: -0.095204622 | D7: 0 | E7: 0 | F7: 0 | G7: 0 | H7: 0 | I7: 0 | J7: 0 | K7: 0 | L7: 0.02487130985 | N7: 1/25/2023 5:10:26 PM | O7: 0.9670083031 | P7: 200000.1 | Q7: 0
A8: bldg_mid_eq | B8: 198.0211938 | C8: -0.096244836 | D8: 0 | E8: 0 | F8: 0 | G8: 0 | H8: 0 | I8: 0 | J8: 0 | K8: 0 | L8: 0.02588134287 | N8: 1/25/2023 5:10:48 PM | O8: 0.9658849562 | P8: 200000.1 | Q8: 0
A9: chem_pump_eq | B9: 0 | C9: 0 | D9: 0 | E9: 0 | F9: 0 | G9: 0 | H9: 7e-09 | I9: -8.4886e-05 | J9: 0.697045972 | K9: 250.0890299 | L9: 0.1435994826 | N9: 1/17/2023 12:22:04 PM | O9: 0.9672766263 | P9: 12180.01 | Q9: 0
A10: cpvc_pipe_eq | B10: 0 | C10: 0 | D10: 0 | E10: 0 | F10: 0 | G10: 0 | H10: 0.006507248 | I10: 0.744088166 | J10: 2.910642758 | K10: 0.951187256 | L10: 0.09273012797 | N10: 1/13/2023 3:31:55 PM | O10: 0.9799783493 | P10: 18.1 | Q10: 0
A11: cst_heat_eq | B11: 0 | C11: 0 | D11: 0 | E11: 0 | F11: 0 | G11: 0 | H11: 0 | I11: 2.0172e-05 | J11: 0.198704238 | K11: 2163.446294 | L11: 0.1112926929 | N11: 1/13/2023 11:43:02 AM | O11: 0.8931228532 | P11: 30001 | Q11: 0
A12: cst_insul_eq | B12: 21.04607705 | C12: 0.643558775 | D12: 0 | E12: 0 | F12: 0 | G12: 0 | H12: 0 | I12: 0 | J12: 0 | K12: 0 | L12: 0.05771887846 | N12: 1/13/2023 11:42:30 AM | O12: 0.9897356441 | P12: 30001 | Q12: 0
A13: fg_cst_eq | B13: 259.3553294 | C13: 0.551376562 | D13: 0 | E13: 0 | F13: 0 | G13: 0 | H13: 0 | I13: 0 | J13: 0 | K13: 0 | L13: 0.3725873288 | N13: 1/13/2023 11:28:39 AM | O13: 0.6598574704 | P13: 30001 | Q13: 0
A14: hvac_ac_eq | B14: 2490.016643 | C14: 1.117904172 | D14: 0 | E14: 0 | F14: 0 | G14: 0 | H14: 0 | I14: 0 | J14: 0 | K14: 0 | L14: 0.029060053 | N14: 1/25/2023 5:27:00 PM | O14: 0.9970856962 | P14: 113.33 | Q14: 0
A15: hvac_elec_eq | B15: 1144.497327 | C15: 0.769391329 | D15: 0 | E15: 0 | F15: 0 | G15: 0 | H15: 0 | I15: 0 | J15: 0 | K15: 0 | L15: 0.2182470901 | N15: 1/25/2023 5:44:55 PM | O15: 0.9836330835 | P15: 6148.1 | Q15: 0
A16: hvac_gas_eq | B16: 884.952743 | C16: 0.750617798 | D16: 0 | E16: 0 | F16: 0 | G16: 0 | H16: 0 | I16: 0 | J16: 0 | K16: 0 | L16: 0.111170462 | N16: 1/25/2023 5:45:25 PM | O16: 0.9737846825 | P16: 5032.1 | Q16: 0
A17: hvac_gas_non_eq | B17: 884.952743 | C17: 0.750617798 | D17: 0 | E17: 0 | F17: 0 | G17: 0 | H17: 0 | I17: 0 | J17: 0 | K17: 0 | L17: 0.111170462 | N17: 1/25/2023 5:45:06 PM | O17: 0.9737846825 | P17: 5032.1 | Q17: 0
A18: hvac_hp_eq_large | B18: 2416.51094 | C18: 0.810849807 | D18: 0 | E18: 0 | F18: 0 | G18: 0 | H18: 0 | I18: 0 | J18: 0 | K18: 0 | L18: 0.06374801182 | N18: 1/25/2023 6:00:17 PM | O18: 0.9843854662 | P18: 50.01 | Q18: 12
A19: hvac_hp_eq_small | B19: 3571.600363 | C19: 0.525171947 | D19: 0 | E19: 0 | F19: 0 | G19: 0 | H19: 0 | I19: 0 | J19: 0 | K19: 0 | L19: 0.2017819092 | N19: 1/25/2023 5:58:02 PM | O19: 0.8010194397 | P19: 12 | Q19: 0
A20: hvac_oil_mid_eq | B20: 1161.335 | C20: 0.717399847 | D20: 0 | E20: 0 | F20: 0 | G20: 0 | H20: 0 | I20: 0 | J20: 0 | K20: 0 | L20: 0.08961066388 | N20: 1/25/2023 5:45:51 PM | O20: 0.9857951341 | P20: 3350.1 | Q20: 0
A21: hvac_oil_std_eq | B21: 1161.335 | C21: 0.717399847 | D21: 0 | E21: 0 | F21: 0 | G21: 0 | H21: 0 | I21: 0 | J21: 0 | K21: 0 | L21: 0.08961066388 | N21: 1/25/2023 5:45:40 PM | O21: 0.9857951341 | P21: 3350.1 | Q21: 0
A22: imp_mix_eq | B22: 0 | C22: 0 | D22: 0 | E22: 0 | F22: 0 | G22: 0 | H22: 0 | I22: 0 | J22: 1053.024974 | K22: 4010.016173 | L22: 0.06537073819 | N22: 1/23/2023 12:37:02 PM | O22: 0.9846598235 | P22: 110 | Q22: 0
A23: in_mix_eq | B23: 0 | C23: 0 | D23: 0 | E23: 0 | F23: 0 | G23: 0 | H23: 0.894369999 | I23: -7.568834588 | J23: 587.6429996 | K23: 846.0269475 | L23: 0.1915607734 | N23: 1/23/2023 12:23:00 PM | O23: 0.9915357957 | P23: 42.1 | Q23: 0
A24: mount_mix_eq | B24: 3220.980063 | C24: 0.148044622 | D24: 0 | E24: 0 | F24: 0 | G24: 0 | H24: 0 | I24: 0 | J24: 0 | K24: 0 | L24: 0.1009671419 | N24: 1/23/2023 12:36:43 PM | O24: 0.5757971272 | P24: 4.1 | Q24: 0
A25: pl_cst_eq | B25: 0 | C25: 0 | D25: 0 | E25: 0 | F25: 0 | G25: 0 | H25: 0 | I25: 0.000189841 | J25: 1.125069329 | K25: 710.8399624 | L25: 0.191815402 | N25: 1/13/2023 11:24:17 AM | O25: 0.9665490921 | P25: 6601 | Q25: 0
A26: pl_in_mix_eq | B26: 0 | C26: 0 | D26: 0 | E26: 0 | F26: 0 | G26: 0 | H26: -6.340985913 | I26: 74.01884445 | J26: 18.86416826 | K26: 382.2683468 | L26: 0.05974391009 | N26: 1/23/2023 12:23:20 PM | O26: 0.9941275073 | P26: 6.1 | Q26: 0
A27: pp_chv_eq | B27: 0 | C27: 0 | D27: 0 | E27: 0 | F27: 0 | G27: 0 | H27: 0 | I27: 23.86718131 | J27: 53.97412715 | K27: 43.16515077 | L27: 0.1427349788 | N27: 1/17/2023 10:59:04 AM | O27: 0.9337515499 | P27: 12.1 | Q27: 0
A28: pp_man_eq_large | B28: 0 | C28: 0 | D28: 0 | E28: 0 | F28: 0 | G28: 0 | H28: 0 | I28: 0 | J28: 2553.34436 | K28: -25690.34754 | L28: 0.1288535088 | N28: 1/17/2023 10:02:52 AM | O28: 0.8113765781 | P28: 24.1 | Q28: 14
A29: pp_man_eq_small | B29: 0 | C29: 0 | D29: 0 | E29: 0 | F29: 0 | G29: 0 | H29: 0 | I29: 12.11782352 | J29: 45.057729 | K29: 112.9974499 | L29: 0.2556628805 | N29: 1/17/2023 9:54:09 AM | O29: 0.8631768407 | P29: 12 | Q29: 0
A30: pp_mov_eq_large | B30: 0 | C30: 0 | D30: 0 | E30: 0 | F30: 0 | G30: 0 | H30: 0 | I30: 0 | J30: 2443.380072 | K30: -21582.79242 | L30: 0.1060617548 | N30: 1/17/2023 9:48:39 AM | O30: 0.8484577011 | P30: 24.1 | Q30: 14
A31: pp_mov_eq_small | B31: 0 | C31: 0 | D31: 0 | E31: 0 | F31: 599.0006203 | G31: 0.18198897 | H31: 0 | I31: 0 | J31: 0 | K31: 0 | L31: 0.1044259769 | N31: 1/17/2023 9:44:40 AM | O31: 0.9798046345 | P31: 12 | Q31: 0
A32: pvc_empump_eq | B32: 0 | C32: 0 | D32: 0 | E32: 0 | F32: 1147.972396 | G32: 0.054740779 | H32: 0 | I32: 0 | J32: 0 | K32: 0 | L32: 0.3967613727 | N32: 1/17/2023 12:05:11 PM | O32: 0.6216291998 | P32: 21.01 | Q32: 0
A33: pvc_mmpump_eq | B33: 0 | C33: 0 | D33: 0 | E33: 0 | F33: 0 | G33: 0 | H33: 0.000584597 | I33: -0.31291286 | J33: 58.80044432 | K33: 3000.53066 | L33: 0.05912122313 | N33: 1/17/2023 12:20:25 PM | O33: 0.958056971 | P33: 132.01 | Q33: 0
A34: pvc_pipe_eq | B34: 0 | C34: 0 | D34: 0 | E34: 0 | F34: 0 | G34: 0 | H34: 0 | I34: 0.097106987 | J34: 0.800977414 | K34: 1.427719425 | L34: 0.1946947517 | N34: 1/13/2023 3:33:26 PM | O34: 0.9975021896 | P34: 48.1 | Q34: 0
A35: ss_chv_eq | B35: 0 | C35: 0 | D35: 0 | E35: 0 | F35: 0 | G35: 0 | H35: 0 | I35: 43.73937074 | J35: 186.7909987 | K35: 114.0734077 | L35: 0.2211775173 | N35: 1/17/2023 11:03:14 AM | O35: 0.9807261184 | P35: 48.1 | Q35: 0
A36: ss_cst_eq | B36: 57.02158923 | C36: 0.729325391 | D36: 0 | E36: 0 | F36: 0 | G36: 0 | H36: 0 | I36: 0 | J36: 0 | K36: 0 | L36: 0.06872076182 | N36: 1/13/2023 11:27:47 AM | O36: 0.9949499759 | P36: 30001 | Q36: 0
A37: ss_empump_eq | B37: 2305.922201 | C37: 0.140989643 | D37: 0 | E37: 0 | F37: 0 | G37: 0 | H37: 0 | I37: 0 | J37: 0 | K37: 0 | L37: 0.1937930465 | N37: 1/17/2023 12:17:46 PM | O37: 0.4009338692 | P37: 21.01 | Q37: 0
A38: ss_man_eq | B38: 271.9831646 | C38: 0.925784152 | D38: 0 | E38: 0 | F38: 0 | G38: 0 | H38: 0 | I38: 0 | J38: 0 | K38: 0 | L38: 0.1937680445 | N38: 1/17/2023 10:07:57 AM | O38: 0.8807162519 | P38: 12.1 | Q38: 0
A39: ss_mmpump_eq | B39: 0 | C39: 0 | D39: 0 | E39: 0 | F39: 0 | G39: 0 | H39: 0 | I39: -0.197615781 | J39: 60.92805622 | K39: 3430.800455 | L39: 0.05338252717 | N39: 1/17/2023 12:20:38 PM | O39: 0.9732140276 | P39: 132.01 | Q39: 0
A40: ss_mov_eq | B40: 0 | C40: 0 | D40: 0 | E40: 0 | F40: 0 | G40: 0 | H40: 1.481345126 | I40: 44.57582587 | J40: -42.85092445 | K40: 1429.585285 | L40: 0.2754835444 | N40: 1/17/2023 9:46:38 AM | O40: 0.9385946585 | P40: 48.1 | Q40: 0
A41: ss_pipe_eq | B41: 0 | C41: 0 | D41: 0 | E41: 0 | F41: 0 | G41: 0 | H41: 0.048585111 | I41: -2.584525622 | J41: 58.92832832 | K41: -12.46603568 | L41: 0.2560591342 | N41: 1/13/2023 3:33:57 PM | O41: 0.9364659873 | P41: 48.1 | Q41: 0

Sheet Cost Data
A1: Cost Data
A2: This sheet is used internally and contains component cost data extracted from the central cost database
A3: To maintain vendor confidentiality, the central cost database itself is not provided here
A5: bls118 | B5: Alarms (High/Low Pressure Alarms, Level Switch/Alarms, Low Alarms)
A6: 43 | D6: Unit Cost | E6: Useful Life (large) | F6: Useful Life (small)
A7: alarm_cost_cl | B7: 0 | C7: 0 | D7: 600.1870767 | E7: 15 | F7: 14
A10: bls061 | B10: Chemical Costs
A11: 11 | B11: Chemical | C11: Units | D11: Avg. Unit Cost | E11: Useful Life (large) | F11: Useful Life (small)
A12: chem_cost_cl | B12: Acetic Acid | C12: lb | D12: 0.2589229828 | E12: N/A | F12: N/A
B13: Aluminum Sulfate (alum) | C13: ton | D13: 379.6724965 | E13: N/A | F13: N/A
B14: Ammonium Chloride | C14: lb | D14: 0.9840017674 | E14: N/A | F14: N/A
B15: Antiscalant - Basic | C15: lb | D15: 2.935905988 | E15: N/A | F15: N/A
B16: Antiscalant - Premium | C16: lb | D16: 4.298511396 | E16: N/A | F16: N/A
B17: Calcium Hydroxide (Lime) - Large Qty | C17: lb | D17: 0.1493336571 | E17: N/A | F17: N/A
B18: Calcium Hydroxide (Lime) - Small Qty | C18: lb | D18: 0.2509236045 | E18: N/A | F18: N/A
B19: Calcium Hypochlorite - Large Qty | C19: lb | D19: 1.807650955 | E19: N/A | F19: N/A
B20: Calcium Hypochlorite - Small Qty | C20: lb | D20: 3.019593129 | E20: N/A | F20: N/A
B21: Calcium Oxide (Quicklime) | C21: ton | D21: 292.1460247 | E21: N/A | F21: N/A
B22: Citric Acid (food grade) | C22: lb | D22: 1.284788958 | E22: N/A | F22: N/A
B23: Ethanol | C23: gal | D23: 4.566910575 | E23: N/A | F23: N/A
B24: Ferric Chloride | C24: lb | D24: 0.1601741633 | E24: N/A | F24: N/A
B25: Ferric Sulfate | C25: lb | D25: 0.1420401875 | E25: N/A | F25: N/A
B26: Ferrous Sulfate - Large Qty | C26: lb | D26: 1.475 | E26: N/A | F26: N/A
B27: Ferrous Sulfate - Mid Qty | C27: lb | D27: 1.1012 | E27: N/A | F27: N/A
B28: Ferrous Sulfate - Small Qty | C28: lb | D28: 0.9145 | E28: N/A | F28: N/A
B29: Hydrochloric Acid - Large Qty | C29: lb | D29: 0.4925546395 | E29: N/A | F29: N/A
B30: Hydrochloric Acid - Mid Qty | C30: lb | D30: 0.5700427586 | E30: N/A | F30: N/A
B31: Hydrochloric Acid - Small Qty | C31: lb | D31: 0.9337261754 | E31: N/A | F31: N/A
B32: Hydrogen Peroxide - Large Qty | C32: lb | D32: 0.3172018248 | E32: N/A | F32: N/A
B33: Hydrogen Peroxide - Small Qty | C33: lb | D33: 0.4702288329 | E33: N/A | F33: N/A
B34: Liquid Oxygen - Large Qty | C34: ton | D34: 78.47663229 | E34: N/A | F34: N/A
B35: Liquid Oxygen - Mid Qty | C35: ton | D35: 361.7648759 | E35: N/A | F35: N/A
B36: Liquid Oxygen - Small Qty | C36: ton | D36: 811.400469 | E36: N/A | F36: N/A
B37: Membrane Cleaner - High pH Detergent | C37: gal | D37: 44.17765696 | E37: N/A | F37: N/A
B38: Membrane Cleaner - Low pH Sulfate Control | C38: gal | D38: 38.52574585 | E38: N/A | F38: N/A
B39: Phosphoric Acid 75% - Large Qty | C39: lb | D39: 0.6560089743 | E39: N/A | F39: N/A
B40: Phosphoric Acid 75% - Mid Qty | C40: lb | D40: 0.7419312949 | E40: N/A | F40: N/A
B41: Phosphoric Acid 75% - Small Qty | C41: lb | D41: 0.8467424228 | E41: N/A | F41: N/A
B42: Phosphoric Acid 36% - Large Qty | C42: lb | D42: 0.3323431742 | E42: N/A | F42: N/A
B43: Phosphoric Acid 36% - Small Qty | C43: lb | D43: 0.8137065074 | E43: N/A | F43: N/A
B44: Polyaluminum Chloride - Large Qty | C44: lb | D44: 0.2043822561 | E44: N/A | F44: N/A
B45: Polyaluminum Chloride - Small Qty | C45: lb | D45: 0.4081280582 | E45: N/A | F45: N/A
B46: Polymers | C46: lb | D46: 0.741373992 | E46: N/A | F46: N/A
B47: Potassium Permanganate | C47: lb | D47: 2.388116143 | E47: N/A | F47: N/A
B48: Sodium Bicarbonate | C48: lb | D48: 0.4257503212 | E48: N/A | F48: N/A
B49: Sodium Bisulfite | C49: lb | D49: 0.486944208 | E49: N/A | F49: N/A
B50: Sodium Carbonate (soda ash) | C50: lb | D50: 0.3899934976 | E50: N/A | F50: N/A
B51: Sodium Chloride - Large Qty | C51: lb | D51: 0.1044594813 | E51: N/A | F51: N/A
B52: Sodium Chloride - Mid Qty | C52: lb | D52: 0.2144816352 | E52: N/A | F52: N/A
B53: Sodium Chloride - Small Qty | C53: lb | D53: 0.28961344 | E53: N/A | F53: N/A
B54: Sodium Chlorite 25.0% Solution | C54: lb | D54: 0.875438867 | E54: N/A | F54: N/A
B55: Sodium Chlorite 7.5% Solution | C55: lb | D55: 0.4859144978 | E55: N/A | F55: N/A
B56: Sodium Hexametaphosphate | C56: lb | D56: 0.6825579177 | E56: N/A | F56: N/A
B57: Sodium Hydroxide 50% - Large Qty | C57: lb | D57: 0.2132522802 | E57: N/A | F57: N/A
B58: Sodium Hydroxide 50% - Mid Qty | C58: lb | D58: 0.2558351123 | E58: N/A | F58: N/A
B59: Sodium Hydroxide 50% - Small Qty | C59: lb | D59: 0.3182779442 | E59: N/A | F59: N/A
B60: Sodium Hydroxide 25% - Large Qty | C60: lb | D60: 0.1253194982 | E60: N/A | F60: N/A
B61: Sodium Hydroxide 25% - Mid Qty | C61: lb | D61: 0.1572856579 | E61: N/A | F61: N/A
B62: Sodium Hydroxide 25% - Small Qty | C62: lb | D62: 0.179783474 | E62: N/A | F62: N/A
B63: Sodium Hypochlorite - Large Qty | C63: gal | D63: 1.011128205 | E63: N/A | F63: N/A
B64: Sodium Hypochlorite - Mid Qty | C64: gal | D64: 1.370802599 | E64: N/A | F64: N/A
B65: Sodium Hypochlorite - Small Qty | C65: gal | D65: 1.720322271 | E65: N/A | F65: N/A
B66: Sulfuric Acid - Large Qty | C66: lb | D66: 0.1370982862 | E66: N/A | F66: N/A
B67: Sulfuric Acid - Small Qty | C67: lb | D67: 0.1950981789 | E67: N/A | F67: N/A
B68: Tetrasodium Pyrophosphate | C68: lb | D68: 8.351149194 | E68: N/A | F68: N/A
B69: Zinc Orthophosphate - Large Qty | C69: gal | D69: 6.310922336 | E69: N/A | F69: N/A
B70: Zinc Orthophosphate - Mid Qty | C70: gal | D70: 8.036289905 | E70: N/A | F70: N/A
B71: Zinc Orthophosphate - Small Qty | C71: gal | D71: 10.7482628 | E71: N/A | F71: N/A
A74: bls1141 | B74: Chemical Pumps (non-metering, for regeneration chemicals, etc.)
A75: 30 | B75: Size needed (gph) | C75: Size selected (gph) | D75: Avg. Unit Cost | E75: Useful Life (large) | F75: Useful Life (small)
A76: chem_pump_cost_cl | B76: 0 | C76: 900 | D76: 835.6380585 | E76: 20 | F76: 17
B77: 900.01 | C77: 1080 | D77: 896.4966974 | E77: 20 | F77: 17
B78: 1080.01 | C78: 1170 | D78: 954.8943623 | E78: 20 | F78: 17
B79: 1170.01 | C79: 1800 | D79: 1082.626638 | E79: 20 | F79: 17
B80: 1800.01 | C80: 2400 | D80: 1962.141343 | E80: 20 | F80: 17
B81: 2400.01 | C81: 2520 | D81: 2021.784527 | E81: 20 | F81: 17
B82: 2520.01 | C82: 4200 | D82: 2041.079931 | E82: 20 | F82: 17
B83: 4200.01 | C83: 5700 | D83: 2234.31792 | E83: 20 | F83: 17
B84: 5700.01 | C84: 6960 | D84: 4016.35722 | E84: 20 | F84: 17
B85: 6960.01 | C85: 8160 | D85: 4421.168098 | E85: 20 | F85: 17
B86: 8160.01 | C86: 12180 | D86: 8059.883355 | E86: 20 | F86: 17
B87: 12180.01 | C87: contact vendor | D87: contact vendor | E87: 20 | F87: 17
A90: BCI | B90: Concrete for Basins
A91: 3 | D91: Avg. Unit Cost (per cy) | E91: Useful Life (large) | F91: Useful Life (small)
A92: conc_basin_cost_cl | B92: 0 | C92: 0 | D92: 739.6055887 | E92: 40 | F92: 37
A95: bls061 | B95: Chemical Resistant Coating for Concrete
A96: 11 | D96: Avg. Unit Cost (per gal) | E96: Useful Life (large) | F96: Useful Life (small)
A97: conc_coating_cost_cl | B97: 0 | C97: 0 | D97: 389.13 | E97: 10 | F97: 10
A100: BCI | B100: Concrete Pad
A101: 3 | D101: Avg. Unit Cost (per cy) | E101: Useful Life (large) | F101: Useful Life (small)
A102: conc_pad_cost_cl | B102: 0 | C102: 0 | D102: 492.75 | E102: 40 | F102: 37
A105: bls072106033 | B105: CPVC Piping
A106: 15 | B106: Size needed (in. diam) | C106: Size selected (in. diam) | D106: Avg. Unit Cost ($/lf) | E106: Useful Life (large) | F106: Useful Life (small)
A107: cpvc_pipe_cost_cl | B107: 0 | C107: 0.5 | D107: 2.663213531 | E107: 22 | F107: 17
B108: 0.6 | C108: 0.75 | D108: 3.416186131 | E108: 22 | F108: 17
B109: 0.76 | C109: 1 | D109: 4.61919029 | E109: 22 | F109: 17
B110: 1.1 | C110: 1.5 | D110: 6.989738218 | E110: 22 | F110: 17
B111: 1.6 | C111: 2 | D111: 9.73076176 | E111: 22 | F111: 17
B112: 2.1 | C112: 2.5 | D112: 13.91601788 | E112: 22 | F112: 17
B113: 2.6 | C113: 3 | D113: 15.47963635 | E113: 22 | F113: 17
B114: 3.1 | C114: 4 | D114: 27.68732263 | E114: 22 | F114: 17
B115: 4.1 | C115: 6 | D115: 50.76884644 | E115: 22 | F115: 17
B116: 6.1 | C116: 8 | D116: 60.9070839 | E116: 22 | F116: 17
B117: 8.1 | C117: 10 | D117: 120.492462 | E117: 22 | F117: 17
B118: 10.1 | C118: 12 | D118: 157.9989811 | E118: 22 | F118: 17
B119: 12.1 | C119: 14 | D119: 232.0193034 | E119: 22 | F119: 17
B120: 14.1 | C120: 16 | D120: 296.6537921 | E120: 22 | F120: 17
B121: 16.1 | C121: 18 | D121: 297.3340569 | E121: 22 | F121: 17
B122: 18.1 | C122: contact vendor | D122: contact vendor | E122: 22 | F122: 17
A125: bls106 | B125: Heat Tracing for Storage Tanks
A126: 22 | B126: Size Needed (gal) | C126: Size Selected (gal) | D126: Avg. Unit Cost | E126: Useful Life (large) | F126: Useful Life (small)
A127: cst_heat_cost_cl | B127: 0 | C127: 40 | D127: 2118 | E127: 10 | F127: 7
B128: 41 | C128: 60 | D128: 2118 | E128: 10 | F128: 7
B129: 61 | C129: 80 | D129: 2118 | E129: 10 | F129: 7
B130: 81 | C130: 120 | D130: 2118 | E130: 10 | F130: 7
B131: 121 | C131: 140 | D131: 2118 | E131: 10 | F131: 7
B132: 141 | C132: 175 | D132: 2118 | E132: 10 | F132: 7
B133: 176 | C133: 200 | D133: 2118 | E133: 10 | F133: 7
B134: 201 | C134: 250 | D134: 2118 | E134: 10 | F134: 7
B135: 251 | C135: 300 | D135: 2118 | E135: 10 | F135: 7
B136: 301 | C136: 400 | D136: 2203 | E136: 10 | F136: 7
B137: 401 | C137: 550 | D137: 2203 | E137: 10 | F137: 7
B138: 551 | C138: 625 | D138: 3358 | E138: 10 | F138: 7
B139: 626 | C139: 700 | D139: 2491 | E139: 10 | F139: 7
B140: 701 | C140: 850 | D140: 2306 | E140: 10 | F140: 7
B141: 851 | C141: 950 | D141: 2560 | E141: 10 | F141: 7
B142: 951 | C142: 1000 | D142: 2184.75 | E142: 10 | F142: 7
B143: 1001 | C143: 1100 | D143: 2627 | E143: 10 | F143: 7
B144: 1101 | C144: 1200 | D144: 2636 | E144: 10 | F144: 7
B145: 1201 | C145: 1500 | D145: 2627 | E145: 10 | F145: 7
B146: 1501 | C146: 1850 | D146: 2694 | E146: 10 | F146: 7
B147: 1851 | C147: 2000 | D147: 2694 | E147: 10 | F147: 7
B148: 2001 | C148: 2050 | D148: 2694 | E148: 10 | F148: 7
B149: 2051 | C149: 2400 | D149: 3033 | E149: 10 | F149: 7
B150: 2401 | C150: 2500 | D150: 2571.95 | E150: 10 | F150: 7
B151: 2501 | C151: 2900 | D151: 3136 | E151: 10 | F151: 7
B152: 2901 | C152: 3000 | D152: 3136 | E152: 10 | F152: 7
B153: 3001 | C153: 4000 | D153: 3424 | E153: 10 | F153: 7
B154: 4001 | C154: 4100 | D154: 3424 | E154: 10 | F154: 7
B155: 4101 | C155: 4200 | D155: 3424 | E155: 10 | F155: 7
B156: 4201 | C156: 5200 | D156: 2781.75 | E156: 10 | F156: 7
B157: 5201 | C157: 5500 | D157: 3542 | E157: 10 | F157: 7
B158: 5501 | C158: 5600 | D158: 3542 | E158: 10 | F158: 7
B159: 5601 | C159: 6500 | D159: 5354 | E159: 10 | F159: 7
B160: 6501 | C160: 6510 | D160: 5354 | E160: 10 | F160: 7
B161: 6511 | C161: 7300 | D161: 5777 | E161: 10 | F161: 7
B162: 7301 | C162: 8000 | D162: 4290.45 | E162: 10 | F162: 7
B163: 8001 | C163: 8400 | D163: 5777 | E163: 10 | F163: 7
B164: 8401 | C164: 10000 | D164: 5777 | E164: 10 | F164: 7
B165: 10001 | C165: 12000 | D165: 8374.167271 | E165: 10 | F165: 7
B166: 12001 | C166: contact vendor | D166: contact vendor | E166: 10 | F166: 7
A169: bls106 | B169: Insulation for Storage Tanks
A170: 22 | B170: Size Needed (gal) | C170: Size Selected (gal) | D170: Avg. Unit Cost | E170: Useful Life (large) | F170: Useful Life (small)
A171: cst_insul_cost_cl | B171: 0 | C171: 40 | D171: 230 | E171: 10 | F171: 7
B172: 41 | C172: 60 | D172: 294 | E172: 10 | F172: 7
B173: 61 | C173: 80 | D173: 353 | E173: 10 | F173: 7
B174: 81 | C174: 120 | D174: 460 | E174: 10 | F174: 7
B175: 121 | C175: 140 | D175: 506 | E175: 10 | F175: 7
B176: 141 | C176: 175 | D176: 558 | E176: 10 | F176: 7
B177: 176 | C177: 200 | D177: 615 | E177: 10 | F177: 7
B178: 201 | C178: 250 | D178: 727 | E178: 10 | F178: 7
B179: 251 | C179: 300 | D179: 879 | E179: 10 | F179: 7
B180: 301 | C180: 400 | D180: 1016 | E180: 10 | F180: 7
B181: 401 | C181: 550 | D181: 1257 | E181: 10 | F181: 7
B182: 551 | C182: 625 | D182: 1306 | E182: 10 | F182: 7
B183: 626 | C183: 700 | D183: 1306 | E183: 10 | F183: 7
B184: 701 | C184: 850 | D184: 1724 | E184: 10 | F184: 7
B185: 851 | C185: 950 | D185: 1758 | E185: 10 | F185: 7
B186: 951 | C186: 1000 | D186: 1613.8 | E186: 10 | F186: 7
B187: 1001 | C187: 1100 | D187: 1834 | E187: 10 | F187: 7
B188: 1101 | C188: 1200 | D188: 2032 | E188: 10 | F188: 7
B189: 1201 | C189: 1500 | D189: 2469 | E189: 10 | F189: 7
B190: 1501 | C190: 1850 | D190: 2823 | E190: 10 | F190: 7
B191: 1851 | C191: 2000 | D191: 2823 | E191: 10 | F191: 7
B192: 2001 | C192: 2050 | D192: 3237 | E192: 10 | F192: 7
B193: 2051 | C193: 2400 | D193: 3221 | E193: 10 | F193: 7
B194: 2401 | C194: 2500 | D194: 2956.9 | E194: 10 | F194: 7
B195: 2501 | C195: 2900 | D195: 3648 | E195: 10 | F195: 7
B196: 2901 | C196: 3000 | D196: 3648 | E196: 10 | F196: 7
B197: 3001 | C197: 4000 | D197: 4418 | E197: 10 | F197: 7
B198: 4001 | C198: 4100 | D198: 4549 | E198: 10 | F198: 7
B199: 4101 | C199: 4200 | D199: 4654 | E199: 10 | F199: 7
B200: 4201 | C200: 5200 | D200: 4641.1 | E200: 10 | F200: 7
B201: 5201 | C201: 5500 | D201: 4808 | E201: 10 | F201: 7
B202: 5501 | C202: 5600 | D202: 5674 | E202: 10 | F202: 7
B203: 5601 | C203: 6500 | D203: 6276 | E203: 10 | F203: 7
B204: 6501 | C204: 6510 | D204: 5297 | E204: 10 | F204: 7
B205: 6511 | C205: 7300 | D205: 6966 | E205: 10 | F205: 7
B206: 7301 | C206: 8000 | D206: 6394.7 | E206: 10 | F206: 7
B207: 8001 | C207: 8400 | D207: 7347 | E207: 10 | F207: 7
B208: 8401 | C208: 10000 | D208: 8170 | E208: 10 | F208: 7
B209: 10001 | C209: 12000 | D209: 9076 | E209: 10 | F209: 7
B210: 12001 | C210: contact vendor | D210: contact vendor | E210: 10 | F210: 7
A214: Current Year | B214: current_year_cl | C214: 2021
A217: bls07210606 | B217: Fiberglass Chemical Storage Tanks
A218: 16 | B218: Size Needed (gal) | C218: Size Selected (gal) | D218: Avg. Unit Cost | E218: Useful Life (large) | F218: Useful Life (small)
A219: fg_cst_cost_cl | B219: 0 | C219: 564 | D219: 10643.27206 | E219: 10 | F219: 7
B220: 565 | C220: 600 | D220: 9872.830882 | E220: 10 | F220: 7
B221: 601 | C221: 625 | D221: 10625.875 | E221: 10 | F221: 7
B222: 626 | C222: 1000 | D222: 12232.28571 | E222: 10 | F222: 7
... 549 more rows

Sheet Engineering Data
A1: Engineering Data
A2: This sheet is used internally and contains engineering reference and indirect cost data extracted from the central cost database
A4: Architectural Fee
A5: Building cost lookup | B5: Corresponds to the range | C5: Architectural fee
A6: 0 | B6: <$250,000 | C6: 0.09
A7: 250000 | B7: $250,000 to $500,000 | C7: 0.08
A8: 500000 | B8: $500,000 to $1,000,000 | C8: 0.07
A9: 1000000 | B9: $1,000,000 to $5,000,000 | C9: 0.062
A10: 5000000 | B10: $5,000,000 to $10,000,000 | C10: 0.053
A11: 10000000 | B11: $10,000,000 to $50,000,000 | C11: 0.049
A12: 50000000 | B12: >$50,000,000 | C12: 0.045
A15: Chemical Price Break Points
A16: Chemical | B16: Quantity Breakpoint | C16: Units
A17: Calcium Hydroxide (Lime) - Large Qty | B17: 50000 | C17: lbs | D17: Large Qty price is for 600 tons per year (100,000 lbs/month); assume breakpoint occurs at approximate midpoint between large and small
A18: Calcium Hydroxide (Lime) - Mid Qty | B18: 50000 | C18: lbs | D18: Uses same value as large qty because no intermediate price break exists
A19: Calcium Hydroxide (Lime) - Small Qty | B19: 0 | C19: lbs | D19: Small Qty price is for Pallet Lots (50x) 50 lb bags
A20: Calcium Hypochlorite - Large Qty | B20: 2000 | C20: lbs | D20: Large Qty price is for 8,000 to 9,800 lbs per year; assume breakpoint occurs at monthly purchase of 5x 100 lb bags (60 per year) (approximate midpoint between large and small qtys)
A21: Calcium Hypochlorite - Mid Qty | B21: 2000 | C21: lbs | D21: Uses same value as large qty because no intermediate price break exists
A22: Calcium Hypochlorite - Small Qty | B22: 0 | C22: lbs | D22: Small Qty price is for 500 lbs per year
A23: Ferrous Sulfate - Large Qty | B23: 2000 | C23: lbs | D23: Large Qty price is for 50x 50 lb bags
A24: Ferrous Sulfate - Mid Qty | B24: 500 | C24: lbs | D24: Mid Qty price is for 10x 50 lb bags
A25: Ferrous Sulfate - Small Qty | B25: 0 | C25: lbs | D25: Small Qty prices is for a single 50 lb bag (600 lbs/year)
A26: Hydrochloric Acid - Large Qty | B26: 17710 | C26: lbs | D26: Large Qty price is for bulk delivery of 70,000 gallons to 365,500 gallons per year; assume breakpoint occurs at monthly purchase of 5,000 gal/month
A27: Hydrochloric Acid - Mid Qty | B27: 1771 | C27: lbs | D27: Mid Qty price is for delivery in drums or in mini-bulk of 9,400 to 12,100 gallons per year (~750 to 1,000 gal/month); assume breakpoint occurs at monthly purchase of 500 gal/month (approximate midpoint between small and mid qty)
A28: Hydrochloric Acid - Small Qty | B28: 0 | C28: lbs | D28: Small Qty prices are for delivery in containers (totes or drums) in quantities of 1,875 to 4,000 gallons per year
A29: Hydrogen Peroxide - Large Qty | B29: 50000 | C29: lbs | D29: Large Qty price is for 1,150,000 lbs/year; assume breakpoint occurs at monthly purchase of 50,000 lbs/month (approximate midpoint)
A30: Hydrogen Peroxide - Mid Qty | B30: 50000 | C30: lbs | D30: Uses same value as large qty because no intermediate price break exists
A31: Hydrogen Peroxide - Small Qty | B31: 0 | C31: lbs | D31: Small Qty price are for 14,000 gallons per year (~139,000 lbs/year; 11,500 lbs/month @ specific gravity 1.19) and 60 tons (120,000 lbs/year; 10,000 lbs/month)
A32: Liquid Oxygen - Large Qty | B32: 1 | C32: tons | D32: Large Qty price is for 15 to 15,000 tons per year; assume breakpoint at 1 ton per month
A33: Liquid Oxygen - Mid Qty | B33: 0.5 | C33: tons | D33: Mid Qty price is for bulk delivery, greater than 0.5 tons
A34: Liquid Oxygen - Small Qty | B34: 0 | C34: tons | D34: Small Qty price is for delivery in cylinders
A35: Phosphoric Acid 75% - Large Qty | B35: 44000 | C35: lbs | D35: Large Qty price is for bulk truck deliveries in minimum quantities of 44,000 to 48,000 lbs
A36: Phosphoric Acid 75% - Mid Qty | B36: 3621.75 | C36: lbs | D36: Mid Qty price is for delivery in 275 gal totes (so minimum of 1 tote per month); assume 13.17 lbs/gal consistent with 75% acid
A37: Phosphoric Acid 75% - Small Qty | B37: 0 | C37: lbs
A38: Phosphoric Acid 36% - Large Qty | B38: 44000 | C38: lbs | D38: Large Qty price is for bulk truck deliveries in minimum quantities of 44,000 to 48,000 lbs
A39: Phosphoric Acid 36% - Mid Qty | B39: 44000 | C39: lbs | D39: Uses same value as large qty because no intermediate price break exists
A40: Phosphoric Acid 36% - Small Qty | B40: 0 | C40: lbs
A41: Polyaluminum Chloride - Large Qty | B41: 19800 | C41: lbs | D41: Large Qty prices are for >24,000 gal per year (2,000 gal per month); assume 9.9 lbs/gal and that breakpoint occurs at a bulk truckload of 2,000 gal
A42: Polyaluminum Chloride - Mid Qty | B42: 5445 | C42: lbs | D42: Uses same value as large qty because no intermediate price break exists
A43: Polyaluminum Chloride - Small Qty | B43: 0 | C43: lbs | D43: Small Qty prices are for smaller quantities, including tote delivery (275 lbs)
A44: Sodium Chloride - Large Qty | B44: 27500 | C44: lbs | D44: Large Qty prices are for 270 to 7,000 tons/year; assume breakpoint occurs at 27,5000 lbs/month (approximate midpoint between large and mid qtys)
A45: Sodium Chloride - Mid Qty | B45: 5000 | C45: lbs | D45: Mid Qty prices are for 50 to 60 tons/year; assume breakpoint occurs at 5,000 lbs/month (approximate midpoint between mid and small qtys)
A46: Sodium Chloride - Small Qty | B46: 0 | C46: lbs | D46: Small Qty price is for 8 tons/year in 50 lb bags
A47: Sodium Hydroxide 50% - Large Qty | B47: 25437 | C47: lbs | D47: Large Qty prices for 2,000 tons per year and greater; assume breakpoint occurs at bulk truckload of 2,000 gal
A48: Sodium Hydroxide 50% - Mid Qty | B48: 5000 | C48: lbs | D48: Mid Qty prices are for bulk deliveries in less than truckload quantities; assume breakpoint occurs 2.5 tons/month (approximate midpoint between medium and small qtys)
A49: Sodium Hydroxide 50% - Small Qty | B49: 0 | C49: lbs | D49: Small Qty prices are for totes and smaller quantities
A50: Sodium Hydroxide 25% - Large Qty | B50: 21317.04 | C50: lbs | D50: Large Qty prices are for full bulk truckloads; assume breakpoint occurs at bulk truckload of 2,000 gal
A51: Sodium Hydroxide 25% - Mid Qty | B51: 4000 | C51: lbs | D51: Mid Qty prices are for bulk deliveries of 6,000 to 12,000 gal/year (less than truckload/month); assume breakpoint occurs 2 tons/month (approximate midpoint between 500 gal/month and 275 gal tote, consistent with 50% NaOH breakpoint)
A52: Sodium Hydroxide 25% - Small Qty | B52: 0 | C52: lbs
A53: Sodium Hypochlorite - Large Qty | B53: 2000 | C53: gal | D53: Large Qty prices are for bulk deliveries; assume breakpoint occurs at bulk truckload of 2,000 gal
A54: Sodium Hypochlorite - Mid Qty | B54: 550 | C54: gal | D54: Mid Qty prices are for mini-bulk deliveries of 800 to 1,000 gal each; assume breakpoint occurs at 10x 55 gal drums
A55: Sodium Hypochlorite - Small Qty | B55: 0 | C55: gal | D55: Small Qty prices are for delivery in drums
A56: Sulfuric Acid - Large Qty | B56: 28427.724 | C56: lbs | D56: Large Qty price is for bulk delivery; assume breakpoint occurs at bulk truckload of 2,000 gal
A57: Sulfuric Acid - Mid Qty | B57: 28427.724 | C57: lbs | D57: Uses same value as large qty because no intermediate price break exists
A58: Sulfuric Acid - Small Qty | B58: 0 | C58: lbs
A59: Zinc Orthophosphate - Large Qty | B59: 2000 | C59: gal | D59: Large Qty prices are for bulk delivery; assume bulk density 13.1 lbs/gal consistent with 36% as PO4 and assume breakpoint occurs at bulk truckload of 2,000 gal
A60: Zinc Orthophosphate - Mid Qty | B60: 500 | C60: gal | D60: Mid Qty prices are for mini-bulk deliveries; assume breakpoint occurs at 500 gal/month
A61: Zinc Orthophosphate - Small Qty | B61: 0 | C61: gal | D61: Small Qty prices are for totes and smaller quantities
A64: Construction Management Fee
A65: Building cost lookup | B65: Corresponds to the range | C65: Construction management fee
A66: 0 | B66: <$100,000 | C66: 0.1
A67: 100000 | B67: $100,000 to $250,000 | C67: 0.09
A68: 250000 | B68: $250,000 to $1,000,000 | C68: 0.06
A69: 1000000 | B69: $1,000,000 to $5,000,000 | C69: 0.05
A70: 5000000 | B70: $5,000,000 to $10,000,000 | C70: 0.04
A71: 10000000 | B71: >$10,000,000 | C71: 0.032
A74: Contingency Factors
A75: Project direct cost | B75: Corresponds to the range | C75: Default contingency (prior to application of technology complexity factor)
A76: 0 | B76: <$500,000 | C76: 0.067
A77: 500000 | B77: $500,000 to $3,000,000 | C77: 0.058
A78: 3000000 | B78: $3,000,000 to $15,000,000 | C78: 0.049
A79: 15000000 | B79: $15,000,000 to $50,000,000 | C79: 0.041
A80: 50000000 | B80: $50,000,000 to $100,000,000 | C80: 0.032
A81: 100000000 | B81: >$100,000,000 | C81: 0.058
A84: Maximum cooling capacity for heat pump | B84: hp_max_cool_cl | C84: 50 | D84: tons
A87: Maximum heating capacity for heat pump | B87: hp_max_heat_cl | C87: 200 | D87: MBH
A90: Maximum cooling capacity | B90: max_cool_cl | C90: 113.32 | D90: tons
A93: Maximum heating capacity | B93: max_heat_cl | C93: 6148 | D93: MBH
A96: Pipe Diameter to Maximum Flow
A97: Diameter (inch) | B97: Maximum Flow (GPM)
A98: 0.5 | B98: 2
A99: 0.75 | B99: 4
A100: 1 | B100: 7
A101: 1.5 | B101: 21
A102: 2 | B102: 41
A103: 2.5 | B103: 66
A104: 3 | B104: 116
A105: 4 | B105: 238
A106: 6 | B106: 697
A107: 8 | B107: 1435
A108: 10 | B108: 2608
A109: 12 | B109: 4132
A110: 14 | B110: 5299
A111: 16 | B111: 7528
A112: 18 | B112: 10265
A113: 20 | B113: 13643
A114: 24 | B114: 22174
A115: 30 | B115: 50561
A116: 36 | B116: 81777
A117: 42 | B117: 122025
A120: NaOH Properties
A121: Percent NaOH | B121: Concentration (lbs/gallon) | C121: Concentration (g/L) | D121: Specific Gravity
A122: 0.02 | B122: 0.1704 | C122: 20.41 | D122: 1.021
A123: 0.04 | B123: 0.3481 | C123: 41.71 | D123: 1.043
A124: 0.06 | B124: 0.5332 | C124: 63.89 | D124: 1.065
A125: 0.08 | B125: 0.7256 | C125: 86.95 | D125: 1.087
A126: 0.1 | B126: 0.9254 | C126: 110.9 | D126: 1.109
A127: 0.12 | B127: 1.133 | C127: 135.7 | D127: 1.131
A128: 0.14 | B128: 1.347 | C128: 161.4 | D128: 1.153
A129: 0.16 | B129: 1.569 | C129: 188 | D129: 1.175
A130: 0.18 | B130: 1.798 | C130: 215.5 | D130: 1.197
A131: 0.2 | B131: 2.035 | C131: 243.8 | D131: 1.219
A132: 0.22 | B132: 2.279 | C132: 273 | D132: 1.241
A133: 0.24 | B133: 2.529 | C133: 303.1 | D133: 1.263
A134: 0.25 | B134: 2.66 | C134: 318.7 | D134: 1.278
A135: 0.26 | B135: 2.788 | C135: 334 | D135: 1.285
A136: 0.28 | B136: 3.053 | C136: 365.8 | D136: 1.306
A137: 0.3 | B137: 3.324 | C137: 398.4 | D137: 1.328
A138: 0.32 | B138: 3.602 | C138: 431.7 | D138: 1.349
A139: 0.34 | B139: 3.886 | C139: 465.7 | D139: 1.37
A140: 0.36 | B140: 4.176 | C140: 500.4 | D140: 1.39
A141: 0.38 | B141: 4.472 | C141: 535.8 | D141: 1.41
A142: 0.4 | B142: 4.773 | C142: 572 | D142: 1.34
A143: 0.42 | B143: 5.08 | C143: 608.7 | D143: 1.449
A144: 0.44 | B144: 5.392 | C144: 646.1 | D144: 1.468
A145: 0.46 | B145: 5.709 | C145: 684.2 | D145: 1.487
A146: 0.48 | B146: 6.035 | C146: 723.1 | D146: 1.506
A147: 0.5 | B147: 6.364 | C147: 762.7 | D147: 1.525
A150: Performance Bond
A151: Direct cost lookup | B151: Corresponds to the range | C151: Base cost | D151: Plus fraction | E151: Of amount over
A152: 0 | B152: <$100,000 | C152: 0 | D152: 0.025 | E152: 0
A153: 100000 | B153: $100,000 to $500,000 | C153: 2500 | D153: 0.015 | E153: 100000
A154: 500000 | B154: $500,000 to $2,500,000 | C154: 8500 | D154: 0.01 | E154: 500000
A155: 2500000 | B155: $2,500,000 to $5,000,000 | C155: 28500 | D155: 0.0075 | E155: 2500000
A156: 5000000 | B156: $5,000,000 to $7,500,000 | C156: 47250 | D156: 0.007 | E156: 5000000
A157: 7500000 | B157: >$7,500,000 | C157: 64750 | D157: 0.006 | E157: 7500000
A160: Pipe Size Selection
A161: Pipe Flow to Pipe Diameter
A162: Flow (GPM) | B162: Diameter (inch)
A163: 0 | B163: 0.5
A164: 2.1 | B164: 0.75
A165: 4.1 | B165: 1
A166: 7.1 | B166: 1.5
A167: 21.1 | B167: 2
A168: 41.1 | B168: 2.5
A169: 66.1 | B169: 3
A170: 116.1 | B170: 4
A171: 238.1 | B171: 6
A172: 697.1 | B172: 8
A173: 1435.1 | B173: 10
A174: 2608.1 | B174: 12
A175: 4132.1 | B175: 14
A176: 5299.1 | B176: 16
A177: 7528.1 | B177: 18
A178: 10265.1 | B178: 20
A179: 13643.1 | B179: 24
A180: 22174.1 | B180: 30
A181: 50561.1 | B181: 36
A182: 81777.1 | B182: 42
A183: 122025.1 | B183: 48

Sheet Lookup Tables
A1: Lookup Tables and Input Validation
A2: This sheet is used internally to perform certain reference calculations and support input sheet data validation
A4: Temperature Dependence Coefficients for Calculating Equilibrium Constants
A5: From Table 2, Trussell 1998
A6: Range names are of the form "ax_Kx" (e.g., a1_Kw for first temperature coefficent for the equilbrium constant for water)
A7: Reaction | B7: Constant | C7: a1 | D7: a2 | E7: a3 | F7: a4 | G7: a5
A8: H2O <-> OH- + H+ | B8: Kw | C8: -6.088 | D8: 4471 | F8: 0.01706
A9: H2CO3 <-> HCO3- + H+ | B9: K1 | C9: 356.309 | D9: -21834.4 | E9: -126.834 | F9: 0.06092 | G9: 1685915
A10: HCO3- <-> CO32- + H+ | B10: K2 | C10: 107.887 | D10: -5151.8 | E10: -38.926 | F10: 0.032528 | G10: 563713.9
A12: comp_level_valid
A13: low cost
A14: mid cost
A15: high cost
A17: system_automation_valid
A18: manual
A19: semi-automated
A20: fully automated
A22: yes_no_valid
A23: yes
A24: no
A26: scenario_list
A27: Start: pH 6.5, alkalinity 20 mg/L; Target: pH 7.5
A28: Start: pH 6.5, alkalinity 50 mg/L; Target: pH 7.5
A29: Start: pH 7, alkalinity 50 mg/L; Target: pH 7.5
A30: Start: pH 7, alkalinity 100 mg/L; Target: pH 7.5
A31: user-defined
A32: storage_type_valid | B32: storage_type_table
A33: 55 gallon drums | B33: 1
A34: 330 gallon totes | B34: 2
A35: storage tanks | B35: 3
A36: storage tanks and day tanks | B36: 4
A37: NaOH_freeze_table
A38: NaOH percent by weight | B38: Freezing Point (degrees F) | C38: Freezing point (degrees C)
A39: 0.01 | B39: 30 | C39: -1
A40: 0.05 | B40: 25 | C40: -4
A41: 0.1 | B41: 18 | C41: -8
A42: 0.15 | B42: 0 | C42: -18
A43: 0.2 | B43: -12 | C43: -24
A44: 0.25 | B44: 0 | C44: -18
A45: 0.3 | B45: 36 | C45: 2
A46: 0.4 | B46: 60 | C46: 16
A47: 0.5 | B47: 58 | C47: 14
A48: 0.6 | B48: 120 | C48: 49
A49: 0.7 | B49: 147 | C49: 64
